{"text_format":"1","workbook":"xlsx","n_sheets":5,"sheets":["Instructions","Index","Price List","Websites","Changes"],"not_rendered":{"charts":0,"images":2,"macros":1,"external_links":0,"defined_names":18,"comments":0,"pivot_tables":0},"unopened":[],"bounds":{"document_bytes":16777216,"sheet_cells":100000,"rows_first":2000,"rows_last":500,"rows_between":2000,"halvings":0,"cell_chars":16384,"cell_head_chars":4096},"cells_cut":0,"cells_raw":0,"read":"whole","date_system":"1900"}

{"sheet":"Instructions","index":0,"n_rows":58,"n_cols":10,"rows_kept":58,"cut":false,"hidden":false,"merged":[[7,2,7,7],[36,3,36,4]]}
["Manufacturer","ARC"]
["File as","A"]
["Product Code","N"]
["CCTD Effective Date","10/1/23"]
[]
[]
[]
["Enter your Company Name"]
[]
[null,"Click on \"Index\" to set the print area for the price list index"]
[null,"Then you can send it to print"]
[]
[]
[null,"Click on \"Suggested Price List\" to set the print area for Conestoga Tile's suggested price list."]
[null,"Then you can send it to print"]
[]
[]
[null,"Enter your discount codes if you want a personal net cost sheet."]
[]
[null,"Product"]
[null,"Code","Disc. %"]
[null,{"$f":"+B3","v":"N"},0,"  This is a \"NET\" price list.  0% is the discount for this spreadsheet"]
[]
[null,"Click on \"Your Cost\" to set the print area for your personal cost report."]
[null,"Then you can send it to print"]
[]
[]
["Discount: ","To help establish your price list, enter the gross profit percent for each type of product."]
[null,"If you want to use Conestoga Tile's list price, leave them blank."]
[]
["Round Nickel: ","If you always want your price to round to the nearest nickel, enter \"YES\"."]
[null,"If you enter \"NO\", it will NOT round to the nearest nickel."]
[]
["Ending Cents: ","If you always want your price to end with a certain cents, enter that cent value."]
[null,"If you leave it \"blank\" will NOT round to this cent value.",null,null,null,null,null,null,null," "]
[]
[null,"Group","GP Margin","GP Margin % for",null,"Round Nickel","add/subtract","Ending Cents"]
[null,1,null,"Stocked Pans",null,"No",0]
[null,2,null,"Non-Stock Pans",null,"No",0]
[null,3,null,"Setting Materials",null,"No",0]
[null,4,null,"Accessories",null,"No",0]
[null,5,null,0,null,"No",0]
[null,6,null,0,null,"No",0]
[null,7,null,0,null,"No",0]
[]
["If you want to manually adjust your price list, hit \"F5\" and go to \"Customer_Cost\" to manually adjust pricing."]
["You can enter a value in the column labeled \"Adj.\" to change your price manually."]
[]
[null,"Click on \"Your Price Calculation\" to set the print area for your personal cost calculation report."]
[null,"Then you can send it to print"]
[]
[]
[null,"Click on \"Your Price List\" to set the print area for your personal price list."]
[null,"Then you can send it to print"]
[null,null,null,null,null,null,null,"Yes"]
[]
["If you have any questions on how to best use this spreadsheet, please feel free to contact"]
["Jim Vogel at (800) 422-6860, ext. 4201 or via e-mail at jimvogel@cctd.com"]

{"sheet":"Index","index":1,"n_rows":50,"n_cols":13,"rows_kept":50,"cut":false,"hidden":false,"merged":[[14,2,14,10],[5,0,5,10],[47,0,47,10],[49,0,49,10],[2,5,2,10],[10,2,10,8],[11,2,11,8],[12,2,12,8],[13,2,13,8]]}
[]
[]
[null,null,null,null,null,{"$f":"\"File '\"&Instructions!B2&\"' - \"&Instructions!B1","v":"File 'A' - ARC"}]
[]
[]
[{"$f":"\"Price List Index - \"&Instructions!B4","v":"Price List Index - 10/1/23"}]
[]
[]
[]
[]
["Page",null,"Series / Product Type"]
[1,null,"TrueDEK Classic8 Shower Bases"]
[1,null,"TrueDEK Classic Shower Bases"]
[1,null,"TrueDEK Classic Drains",null,null,null,null,null,null,null,null,null," "]
[2,null,"TrueDEK Linear Shower Bases & TrueDEK Linear Drains"]
["2-3",null,"FastDEK Shower Bases"]
[3,null,"FastDEK Linear Shower Bases"]
[3,null,"FastDEK Standalone Shower Kits"]
[3,null,"Waterproofing Kits"]
["3-4",null,"Waterproofing Supplies"]
[4,null,"FastNICHE Shower Niches"]
[4,null,"Glass Shower Screens"]
[4,null,"Glass Shower Screens & Deflector Panels"]
[4,null,"Bendy Rails"]
[4,null,"Breathable Shower Curtains"]
["4-5",null,"Caregiver Doors"]
[5,null,"Economy Shower Seats (2000 Series)"]
[5,null,"Deluxe Shower Seats with Backs & Arms (4000 Series)"]
[5,null,"Deluxe Shower Seats without Backs & Arms (4000 Series)"]
[5,null,"Deluxe Extra-Wide Shower Seats without Backs & Arms (4000 Series)"]
[5,null,"Velena Series Seats"]
["5-6",null,"Heavy-Duty Grab Bars & Supports"]
[6,null,"Transition Grab Bars"]
[6,null,"Rugao Grab Bars"]
[6,null,"Velena Wall Panels"]
[]
[]
[]
[]
[]
[]
[]
[]
[]
[]
[]
[]
["This price list is available electronically on an Excel spreadsheet at www.conestogatile.com/pricelists."]
[]
["The spreadsheet has many special features to assist you.  Apply your discount to generate your net costs for your purchasing department.  Apply your standard gross margin percentage or custom prices to generate your own custom price list for your showroom.  Print out individual price list for each series that can be attached to the back of your sample boards for easy reference."]

{"sheet":"Price List","index":2,"n_rows":525,"n_cols":42,"rows_kept":525,"cut":false,"hidden":false,"merged":[[95,3,95,20],[18,2,18,19],[514,3,514,4],[17,15,17,16],[508,2,508,20],[510,2,510,20],[94,3,94,20],[336,3,336,4],[13,31,13,33],[10,15,10,16],[9,15,9,20],[9,23,9,24],[9,26,9,33],[12,23,12,24],[12,14,12,20],[14,14,15,20]]}
[null,"Stocked Pans",null,null,"Size",null,"Item #",null,"Description",null,null,null,null,null,null,null,null,null,null,{"$f":"IF(Suggested=\"Yes\",AB1,AH1)","v":0.05},"EA",{"$f":"+Instructions!$B$3","v":"N"},null,{"$f":"+Instructions!$C$22","v":0},{"$f":"ROUND($AB1*(1-X1)+0.004999,2)","v":0.05},null,"new",0.05,{"$f":"+X1","v":0},0.05,{"$f":"(AH1-AD1)/AH1","v":0},null,1,{"$f":"SUM(AK1:AM1)+AF1","v":0.05},null,null,{"$f":"ROUND(AD1/(1-VLOOKUP(AG1,Group,2,FALSE)),2)","v":0.05},{"$f":"IF(VLOOKUP(AG1,Group,5,FALSE)=\"YES\",VLOOKUP(ROUND(ROUND(AK1,1)-AK1,2),Round,2,FALSE)+VLOOKUP(AG1,Group,6,FALSE),0)","v":0},{"$f":"IF(VLOOKUP(AG1,Group,7,FALSE)=\"\",0,ROUND(AK1-0.04999,1)-AK1+AN1)","v":0},{"$f":"IF(VLOOKUP(AG1,Group,7,FALSE)=\"\",\"\",VLOOKUP(AG1,Group,7,FALSE))","v":""},null,"X"]
[null,"Non-Stock Pans",null,null,"Size",null,"Item #",null,"Description",null,null,null,null,null,null,null,null,null,null,{"$f":"IF(Suggested=\"Yes\",AB2,AH2)","v":0.05},"EA",{"$f":"+Instructions!$B$3","v":"N"},null,{"$f":"+Instructions!$C$22","v":0},0.05,null,"new",0.05,0,0.05,0,null,2,0.05,null,null,0.05,0,0,"",null,"X"]
[null,"Setting Materials",null,null,"Size",null,"Item #",null,"Description",null,null,null,null,null,null,null,null,null,null,{"$f":"IF(Suggested=\"Yes\",AB3,AH3)","v":0.05},"EA",{"$f":"+Instructions!$B$3","v":"N"},null,{"$f":"+Instructions!$C$22","v":0},{"$f":"ROUND($AB3*(1-X3)+0.004999,2)","v":0.05},null,"new",0.05,{"$f":"+X3","v":0},{"$f":"+Y3","v":0.05},{"$f":"(AH3-AD3)/AH3","v":0},null,3,{"$f":"SUM(AK3:AM3)+AF3","v":0.05},null,null,{"$f":"ROUND(AD3/(1-VLOOKUP(AG3,Group,2,FALSE)),2)","v":0.05},{"$f":"IF(VLOOKUP(AG3,Group,5,FALSE)=\"YES\",VLOOKUP(ROUND(ROUND(AK3,1)-AK3,2),Round,2,FALSE)+VLOOKUP(AG3,Group,6,FALSE),0)","v":0},{"$f":"IF(VLOOKUP(AG3,Group,7,FALSE)=\"\",0,ROUND(AK3-0.04999,1)-AK3+AN3)","v":0},{"$f":"IF(VLOOKUP(AG3,Group,7,FALSE)=\"\",\"\",VLOOKUP(AG3,Group,7,FALSE))","v":""},null,"X"]
[null,"Accessories",null,null,"Size",null,"Item #",null,"Description",null,null,null,null,null,null,null,null,null,null,0.05,"EA",{"$f":"+Instructions!$B$3","v":"N"},null,{"$f":"+Instructions!$C$22","v":0},0.05,null,"new",0.05,0,0.05,0,null,4,0.05,null,null,0.05,0,0,"",null,"X"]
[null,0,null,null,"Size",null,"Item #",null,"Description",null,null,null,null,null,null,null,null,null,null,0,"EA",{"$f":"+Instructions!$B$3","v":"N"},null,{"$f":"+Instructions!$C$22","v":0},0,null,"new",0,0,0,{"$error":"#DIV/0!"},null,5,0,null,null,0,0,0,"",null,"X"]
[null,0,null,null,"Size",null,"Item #",null,"Description",null,null,null,null,null,null,null,null,null,null,0,"EA",{"$f":"+Instructions!$B$3","v":"N"},null,{"$f":"+Instructions!$C$22","v":0},0,null,"new",0,0,0,{"$error":"#DIV/0!"},null,6,0,null,null,0,0,0,"",null,"X"]
[null,0,null,null,"Size",null,"Item #",null,"Description",null,null,null,null,null,null,null,null,null,null,0,"EA",{"$f":"+Instructions!$B$3","v":"N"},null,{"$f":"+Instructions!$C$22","v":0},0,null,"new",0,0,0,{"$error":"#DIV/0!"},null,7,0,null,null,0,0,0,"",null,"X"]
[null,"Format",null,null,null,null,null,null,null,null,null,null,null,null,null,null,null,"Stock","a",1000,"ABC",null,null,0.1,1000,null,"ABC",1000,0.1,1000,0.1,10,null,1000,null,null,null,null,null,null,null,"X"]
[null,null,null,null,null,null,null,null,null,null,null,null,null,null,null,null,null,null,null,null,null,null,null,null,null,null,null,null,null,null,null,null,null,null,null,null,null,null,null,null,null,"X"]
[null,null,null,null,null,null,null,null,null,null,null,null,null,null,null,"Price List",null,null,null,null,null,null,null,"Cust. Cost",null,null,"Customer Cost Calculation",null,null,null,null,null,null,null,null,null,null,null,null,null,null,"X"]
[null,null,null,"Sizes & Shapes",null,null,null,null,null,null,null,null,null,null,null,"Full Carton",null,"Stock","Note",{"$f":"IF(Suggested=\"Yes\",AB11,AH11)","v":"Net Price"},"U/M","Code",null,"Disc.","Net",null,"Chg","Net Price","Disc","Act. Cost","GP%","Adj.","Group","Price",null,null,"Calc Price",".05 Round","Cents","Round to",null,"X"]
[null,null,null,null,null,null,null,null,null,null,null,null,null,null,null,null,null,null,null,null,null,null,null,null,null,null,null,null,null,null,null,null,null,null,null,null,null,null,null,null,null,"X"]
[null,null,null,null,null,null,null,null,null,null,null,null,null,null,{"$f":"\"File '\"&Instructions!B2&\"' - \"&Instructions!B1","v":"File 'A' - ARC"},null,null,null,null,null,null,null,null,"Cost",null,null,null,null,null,null,null,null,null,"Retail Price Calculations",null,null,null,null,null,null,null,"X"]
[null,null,null,null,null,null,null,null,null,null,null,null,null,null,null,null,null,null,null,null,{"$f":"+Instructions!B4","v":"10/1/23"},null,null,null,null,null,null,null,null,null,null,{"$f":"TODAY()","v":"2023-09-06"},null,null,null,null,null,null,null,null,null,"X"]
[null,null,null,null,null,null,null,null,null,null,null,null,null,null,{"$f":"IF(Instructions!C8=\"\",\"\",+Instructions!C8)","v":""},null,null,null,null,null,null,null,null,null,null,null,null,null,null,null,null,null,null,null,null,null,null,null,null,null,null,"X"]
[null,null,{"$f":"\"Product Code '\"&Instructions!B3&\"'\"","v":"Product Code 'N'"},null,null,null,null,null,null,null,null,null,null,null,null,null,null,null,null,null,null,null,null,null,null,null,null,null,null,null,null,null,null,{"$f":"IF(Instructions!$C$8=\"\",\"\",Instructions!$C$8)","v":""},null,null,null,null,null,null,null,"X"]
[null,null,null,null,null,null,null,null,null,null,null,null,null,null,null,null,null,null,null,null,null,null,null,null,null,null,null,null,null,null,null,null,null,null,null,null,null,null,null,null,null,"X"]
[null,null,"Sizes & Shapes",null,null,null,null,null,null,null,null,null,null,null,null,null,null,"Stock","Note",{"$f":"+T$11","v":"Net Price"},"U/M",{"$f":"+V$11","v":"Code"},null,"Disc.","Net",null,"Chg","Net Price",{"$f":"+AC$11","v":"Disc"},"Act. Cost","GP%","Adj.",{"$f":"+AG$11","v":"Group"},"Price",null,null,"Calc Price",".05 Round","Cents","Round to",null,"X"]
[null,null,"PRICING LISTED IS NET PRICING. TRADE DISCOUNTS DO NOT APPLY.",null,null,null,null,null,null,null,null,null,null,null,null,null,null,null,null,null,null,null,null,null,null,null,null,null,null,null,null,null,null,null,null,null,null,null,null,null,null,"X"]
[null,null,null,null,null,null,null,null,null,null,null,null,null,null,null," ",null,null,null,null,null,null,null,null,null,null,null,null,null,null,null,null,null,null,null,null,null,null,null,null,null,"X"]
[null,null,"TrueDEK Classic8 Shower Bases - 7/8\" Thick at edges",null,null,null,null,null,null,null,null,null,null,null,null,null,null,null,"Item # Lookup:","AKTF8",null,null,null,null,null,null,null,null,null,null,null,null,null,null,null,null,null,null,null,null,null,"X"]
[null,null,null,null,null,null,null,null,null,null,null,null,null,null,null,null,null,null,null,null,null,null,null,null,null,null,null,null,null,null,null,null,null,null,null,null,null,null,null,null,null,"X"]
[null,null,null,"The new TrueDEK Classic8 line of shower bases offers all the exceptional qualities of a TrueDEK Classic with the added benefit"]
[null,null,null,"of a rotating drain plate.  This plate allows you to index the drain in 8 positions, including centered on the base.  Turning the base"]
[null,null,null,"180 degrees results in 7 more unique drain positions, for a total of 15 options to get the best drain position for your shower."]
[null,null,null,"With the fully pitched drain plate, there’s consistent and efficient water drainage throughout the entire shower area."]
[]
[null,"Non-Stock Pans",null,null,"35-1/2\" x 35-1/2\"",null,21130,null,null,null,null,null,null,null,null,null,null,null,null,{"$f":"IF(Suggested=\"Yes\",AB28,AH28)","v":694.2},"EA",{"$f":"+Instructions!$B$3","v":"N"},null,{"$f":"+Instructions!$C$22","v":0},{"$f":"ROUND($AB28*(1-X28)+0.004999,2)","v":694.2},null,"",694.2,{"$f":"+X28","v":0},{"$f":"+Y28","v":694.2},{"$f":"(AH28-AD28)/AH28","v":0},null,2,{"$f":"SUM(AK28:AM28)+AF28","v":694.2},null,null,{"$f":"ROUND(AD28/(1-VLOOKUP(AG28,Group,2,FALSE)),2)","v":694.2},{"$f":"IF(VLOOKUP(AG28,Group,5,FALSE)=\"YES\",VLOOKUP(ROUND(ROUND(AK28,1)-AK28,2),Round,2,FALSE)+VLOOKUP(AG28,Group,6,FALSE),0)","v":0},{"$f":"IF(VLOOKUP(AG28,Group,7,FALSE)=\"\",0,ROUND(AK28-0.04999,1)-AK28+AN28)","v":0},{"$f":"IF(VLOOKUP(AG28,Group,7,FALSE)=\"\",\"\",VLOOKUP(AG28,Group,7,FALSE))","v":""},null,"X"]
[null,"Non-Stock Pans",null,null,"39-3/8\" x 39-3/8\"",null,21131,null,null,null,null,null,null,null,null,null,null,null,null,694.65,"EA",{"$f":"+Instructions!$B$3","v":"N"},null,{"$f":"+Instructions!$C$22","v":0},694.65,null,"",694.65,0,694.65,0,null,2,694.65,null,null,694.65,0,0,"",null,"X"]
[null,"Non-Stock Pans",null,null,"44-3/4\" x 30-1/4\"",null,21132,null,null,null,null,null,null,null,null,null,null,null,null,694.45,"EA",{"$f":"+Instructions!$B$3","v":"N"},null,{"$f":"+Instructions!$C$22","v":0},694.45,null,"",694.45,0,694.45,0,null,2,694.45,null,null,694.45,0,0,"",null,"X"]
[null,"Stocked Pans",null,null,"47-1/4\" x 47-1/4\"",null,21133,null,null,null,null,null,null,null,null,null,null,"Stock",null,{"$f":"IF(Suggested=\"Yes\",AB31,AH31)","v":695.3},"EA",{"$f":"+Instructions!$B$3","v":"N"},null,{"$f":"+Instructions!$C$22","v":0},695.3,null,"new",695.3,0,695.3,0,null,1,695.3,null,null,695.3,0,0,"",null,"X"]
[null,"Non-Stock Pans",null,null,"51-1/4\" x 32-1/4\"",null,21134,null,null,null,null,null,null,null,null,null,null,null,null,694.65,"EA",{"$f":"+Instructions!$B$3","v":"N"},null,{"$f":"+Instructions!$C$22","v":0},694.65,null,"",694.65,0,694.65,0,null,2,694.65,null,null,694.65,0,0,"",null,"X"]
[null,"Non-Stock Pans",null,null,"55-1/8\" x 35-1/2\"",null,21135,null,null,null,null,null,null,null,null,null,null,null,null,694.9,"EA",{"$f":"+Instructions!$B$3","v":"N"},null,{"$f":"+Instructions!$C$22","v":0},694.9,null,"",694.9,0,694.9,0,null,2,694.9,null,null,694.9,0,0,"",null,"X"]
[null,"Stocked Pans",null,null,"59\" x 32-1/4\"",null,21136,null,null,null,null,null,null,null,null,null,null,"Stock",null,{"$f":"IF(Suggested=\"Yes\",AB34,AH34)","v":694.9},"EA",{"$f":"+Instructions!$B$3","v":"N"},null,{"$f":"+Instructions!$C$22","v":0},{"$f":"ROUND($AB34*(1-X34)+0.004999,2)","v":694.9},null,"new",694.9,{"$f":"+X34","v":0},{"$f":"+Y34","v":694.9},{"$f":"(AH34-AD34)/AH34","v":0},null,1,{"$f":"SUM(AK34:AM34)+AF34","v":694.9},null,null,{"$f":"ROUND(AD34/(1-VLOOKUP(AG34,Group,2,FALSE)),2)","v":694.9},{"$f":"IF(VLOOKUP(AG34,Group,5,FALSE)=\"YES\",VLOOKUP(ROUND(ROUND(AK34,1)-AK34,2),Round,2,FALSE)+VLOOKUP(AG34,Group,6,FALSE),0)","v":0},{"$f":"IF(VLOOKUP(AG34,Group,7,FALSE)=\"\",0,ROUND(AK34-0.04999,1)-AK34+AN34)","v":0},{"$f":"IF(VLOOKUP(AG34,Group,7,FALSE)=\"\",\"\",VLOOKUP(AG34,Group,7,FALSE))","v":""},null,"X"]
[null,"Stocked Pans",null,null,"59\" x 47-1/4\"",null,21137,null,null,null,null,null,null,null,null,null,null,"Stock",null,{"$f":"IF(Suggested=\"Yes\",AB35,AH35)","v":759.45},"EA",{"$f":"+Instructions!$B$3","v":"N"},null,{"$f":"+Instructions!$C$22","v":0},{"$f":"ROUND($AB35*(1-X35)+0.004999,2)","v":759.45},null,"new",759.45,{"$f":"+X35","v":0},{"$f":"+Y35","v":759.45},{"$f":"(AH35-AD35)/AH35","v":0},null,1,{"$f":"SUM(AK35:AM35)+AF35","v":759.45},null,null,{"$f":"ROUND(AD35/(1-VLOOKUP(AG35,Group,2,FALSE)),2)","v":759.45},{"$f":"IF(VLOOKUP(AG35,Group,5,FALSE)=\"YES\",VLOOKUP(ROUND(ROUND(AK35,1)-AK35,2),Round,2,FALSE)+VLOOKUP(AG35,Group,6,FALSE),0)","v":0},{"$f":"IF(VLOOKUP(AG35,Group,7,FALSE)=\"\",0,ROUND(AK35-0.04999,1)-AK35+AN35)","v":0},{"$f":"IF(VLOOKUP(AG35,Group,7,FALSE)=\"\",\"\",VLOOKUP(AG35,Group,7,FALSE))","v":""},null,"X"]
[null,"Non-Stock Pans",null,null,"70-7/8\" x 32-1/4\"",null,21138,null,null,null,null,null,null,null,null,null,null,null,null,759,"EA",{"$f":"+Instructions!$B$3","v":"N"},null,{"$f":"+Instructions!$C$22","v":0},759,null,"",759,0,759,0,null,2,759,null,null,759,0,0,"",null,"X"]
[null,null,null,null,null,null,null,null,null,null,null,null,null,null,null,null,null,null,null,null,null,null,null,null,null,null,null,null,null,null,null,null,null,null,null,null,null,null,null,null,null,"X"]
[null,"Stocked Pans",null,null,"12\" x 60\"",null,"TB6012-PXT",null,null,null,"TruePITCH Extension",null,null,null,null,null,null,"Stock",null,{"$f":"IF(Suggested=\"Yes\",AB38,AH38)","v":83.3},"EA",{"$f":"+Instructions!$B$3","v":"N"},null,{"$f":"+Instructions!$C$22","v":0},{"$f":"ROUND($AB38*(1-X38)+0.004999,2)","v":83.3},null,"new",83.3,{"$f":"+X38","v":0},{"$f":"+Y38","v":83.3},{"$f":"(AH38-AD38)/AH38","v":0},null,1,{"$f":"SUM(AK38:AM38)+AF38","v":83.3},null,null,{"$f":"ROUND(AD38/(1-VLOOKUP(AG38,Group,2,FALSE)),2)","v":83.3},{"$f":"IF(VLOOKUP(AG38,Group,5,FALSE)=\"YES\",VLOOKUP(ROUND(ROUND(AK38,1)-AK38,2),Round,2,FALSE)+VLOOKUP(AG38,Group,6,FALSE),0)","v":0},{"$f":"IF(VLOOKUP(AG38,Group,7,FALSE)=\"\",0,ROUND(AK38-0.04999,1)-AK38+AN38)","v":0},{"$f":"IF(VLOOKUP(AG38,Group,7,FALSE)=\"\",\"\",VLOOKUP(AG38,Group,7,FALSE))","v":""},null,"X"]
[null,null,null,null,null,null,null,null,null,null,null,null,null,null,null,null,null,null,null,null,null,null,null,null,null,null,null,null,null,null,null,null,null,null,null,null,null,null,null,null,null,"X"]
[null,null,"TrueDEK Classic Shower Bases - 7/8\" Thick at edges",null,null,null,null,null,null,null,null,null,null,null,null,null,null,null,"Item # Lookup:","AKTF",null,null,null,null,null,null,null,null,null,null,null,null,null,null,null,null,null,null,null,null,null,"X"]
[null,null,null,null,null,null,null,null,null,null,null,null,null,null,null,null,null,null,null,null,null,null,null,null,null,null,null,null,null,null,null,null,null,null,null,null,null,null,null,null,null,"X"]
[null,null,null,"-  A barrier-free shower pan system.  Requires only 7/8\" recess into the floor, is designed to sit on the floor joists"]
[null,null,null,"   16\" on center,edge support minimizes the need to restructure the floor."]
[null,null,null,"-  Can be cut on site, to any shape or size within 6\" of the drain."]
[null,null,null,"-  Eliminates the need to profile the floor manually with no water dam or curb required."]
[null,null,null,"-  Manufactured of Glass Reinforced Plastic for maximum strength - certified compliant w/ IRC, IPC, UPC, NPC"]
[null,null,null,"   & IAPMO PS106-2015E1 for pre-fabricated tileable shower receptors."]
[]
[null,"Non-Stock Pans",null,null,"35-1/2\" x 35-1/2\"",null,21000,null,null,null,null,null,null,null,null,null,null,null,null,{"$f":"IF(Suggested=\"Yes\",AB49,AH49)","v":654.6},"EA",{"$f":"+Instructions!$B$3","v":"N"},null,{"$f":"+Instructions!$C$22","v":0},{"$f":"ROUND($AB49*(1-X49)+0.004999,2)","v":654.6},null,"",654.6,{"$f":"+X49","v":0},{"$f":"+Y49","v":654.6},{"$f":"(AH49-AD49)/AH49","v":0},null,2,{"$f":"SUM(AK49:AM49)+AF49","v":654.6},null,null,{"$f":"ROUND(AD49/(1-VLOOKUP(AG49,Group,2,FALSE)),2)","v":654.6},{"$f":"IF(VLOOKUP(AG49,Group,5,FALSE)=\"YES\",VLOOKUP(ROUND(ROUND(AK49,1)-AK49,2),Round,2,FALSE)+VLOOKUP(AG49,Group,6,FALSE),0)","v":0},{"$f":"IF(VLOOKUP(AG49,Group,7,FALSE)=\"\",0,ROUND(AK49-0.04999,1)-AK49+AN49)","v":0},{"$f":"IF(VLOOKUP(AG49,Group,7,FALSE)=\"\",\"\",VLOOKUP(AG49,Group,7,FALSE))","v":""},null,"X"]
[null,"Non-Stock Pans",null,null,"39-3/8\" x 39-3/8\"",null,21008,null,null,null,null,null,null,null,null,null,null,null,null,655.04999999999995,"EA",{"$f":"+Instructions!$B$3","v":"N"},null,{"$f":"+Instructions!$C$22","v":0},655.04999999999995,null,"",655.04999999999995,0,655.04999999999995,0,null,2,655.04999999999995,null,null,655.04999999999995,0,0,"",null,"X"]
[null,"Non-Stock Pans",null,null,"44-3/4\" x 30-1/4\"",null,21012,null,null,null,null,null,null,null,null,null,null,null,null,654.85,"EA",{"$f":"+Instructions!$B$3","v":"N"},null,{"$f":"+Instructions!$C$22","v":0},654.85,null,"",654.85,0,654.85,0,null,2,654.85,null,null,654.85,0,0,"",null,"X"]
[null,"Stocked Pans",null,null,"47-1/4\" x 47-1/4\"",null,21018,null,null,null,null,null,null,null,null,null,null,"Stock",null,647.54999999999995,"EA",{"$f":"+Instructions!$B$3","v":"N"},null,{"$f":"+Instructions!$C$22","v":0},647.54999999999995,null,"",647.54999999999995,0,647.54999999999995,0,null,1,647.54999999999995,null,null,647.54999999999995,0,0,"",null,"X"]
[null,"Non-Stock Pans",null,null,"51-1/4\" x 32-1/4\"",null,21027,null,null,null,null,null,null,null,null,null,null,null,null,655.04999999999995,"EA",{"$f":"+Instructions!$B$3","v":"N"},null,{"$f":"+Instructions!$C$22","v":0},655.04999999999995,null,"",655.04999999999995,0,655.04999999999995,0,null,2,655.04999999999995,null,null,655.04999999999995,0,0,"",null,"X"]
[null,"Stocked Pans",null,null,"55-1/8\" x 35-1/2\"",null,21028,null,null,null,null,null,null,null,null,null,null,"Stock",null,647.20000000000005,"EA",{"$f":"+Instructions!$B$3","v":"N"},null,{"$f":"+Instructions!$C$22","v":0},647.20000000000005,null,"",647.20000000000005,0,647.20000000000005,0,null,1,647.20000000000005,null,null,647.20000000000005,0,0,"",null,"X"]
[null,"Stocked Pans",null,null,"59\" x 32-1/4\"",null,21036,null,null,null,"Tub Replacement Base",null,null,null,null,null,null,"Stock",null,647.20000000000005,"EA",{"$f":"+Instructions!$B$3","v":"N"},null,{"$f":"+Instructions!$C$22","v":0},647.20000000000005,null,"",647.20000000000005,0,647.20000000000005,0,null,1,647.20000000000005,null,null,647.20000000000005,0,0,"",null,"X"]
[null,"Stocked Pans",null,null,"60\" x 36\"",null,21035,null,null,null,"Tub Replacement Base (Center drain hole located on end)",null,null,null,null,null,null,"Stock",null,{"$f":"IF(Suggested=\"Yes\",AB56,AH56)","v":647.54999999999995},"EA",{"$f":"+Instructions!$B$3","v":"N"},null,{"$f":"+Instructions!$C$22","v":0},647.54999999999995,null,"",647.54999999999995,0,647.54999999999995,0,null,1,647.54999999999995,null,null,647.54999999999995,0,0,"",null,"X"]
[null,"Stocked Pans",null,null,"59\" x 47-1/4\"",null,21045,null,null,null,null,null,null,null,null,null,null,"Stock",null,701.4,"EA",{"$f":"+Instructions!$B$3","v":"N"},null,{"$f":"+Instructions!$C$22","v":0},701.4,null,"",701.4,0,701.4,0,null,1,701.4,null,null,701.4,0,0,"",null,"X"]
[null,"Stocked Pans",null,null,"70-7/8\" x 32-1/4\"",null,21050,null,null,null,null,null,null,null,null,null,null,"Stock",null,701,"EA",{"$f":"+Instructions!$B$3","v":"N"},null,{"$f":"+Instructions!$C$22","v":0},701,null,"",701,0,701,0,null,1,701,null,null,701,0,0,"",null,"X"]
[null,"Stocked Pans",null,null,"72\" x 48\"",null,21053,null,null,null,null,null,null,null,null,null,null,"Stock",null,{"$f":"IF(Suggested=\"Yes\",AB59,AH59)","v":735.2},"EA",{"$f":"+Instructions!$B$3","v":"N"},null,{"$f":"+Instructions!$C$22","v":0},735.2,null,"new",735.2,0,735.2,0,null,1,735.2,null,null,735.2,0,0,"",null,"X"]
[null,null,null,null,null,null,null,null,null,null,null,null,null,null,null,null,null,null,null,null,null,null,null,null,null,null,null,null,null,null,null,null,null,null,null,null,null,null,null,null,null,"X"]
[null,"Stocked Pans",null,null,"12\" x 60\"",null,"TB6012-PXT",null,null,null,"TruePITCH Extension",null,null,null,null,null,null,"Stock",null,{"$f":"IF(Suggested=\"Yes\",AB61,AH61)","v":83.3},"EA",{"$f":"+Instructions!$B$3","v":"N"},null,{"$f":"+Instructions!$C$22","v":0},{"$f":"ROUND($AB61*(1-X61)+0.004999,2)","v":83.3},null,"new",83.3,{"$f":"+X61","v":0},{"$f":"+Y61","v":83.3},{"$f":"(AH61-AD61)/AH61","v":0},null,1,{"$f":"SUM(AK61:AM61)+AF61","v":83.3},null,null,{"$f":"ROUND(AD61/(1-VLOOKUP(AG61,Group,2,FALSE)),2)","v":83.3},{"$f":"IF(VLOOKUP(AG61,Group,5,FALSE)=\"YES\",VLOOKUP(ROUND(ROUND(AK61,1)-AK61,2),Round,2,FALSE)+VLOOKUP(AG61,Group,6,FALSE),0)","v":0},{"$f":"IF(VLOOKUP(AG61,Group,7,FALSE)=\"\",0,ROUND(AK61-0.04999,1)-AK61+AN61)","v":0},{"$f":"IF(VLOOKUP(AG61,Group,7,FALSE)=\"\",\"\",VLOOKUP(AG61,Group,7,FALSE))","v":""},null,"X"]
[null,null,null,null,null,null,null,null,null,null,null,null,null,null,null,null,null,null,null,null,null,null,null,null,null,null,null,null,null,null,null,null,null,null,null,null,null,null,null,null,null,"X"]
[null,null,null,"Notes:","Use Tank/10 waterproofing for complete system warranty.",null,null,null,null,null,null,"a) Not for use with the 21035 TrueDEK Classic Shower Base. ",null,null,null,null,null,null,null,null,null,null,null,null,null,null,null,null,null,null,null,null,null,null,null,null,null,null,null,null,null,"X"]
[null,null,null,null,null,null,null,null,null,null,null,null,null,null,null,null,null,null,null,null,null,null,null,null,null,null,null,null,null,null,null,null,null,null,null,null,null,null,null,null,null,"X"]
[null,null,"TrueDEK Classic Drains",null,null,null,null,null,null,null,null,null,null,null,null,null,null,null,"Item # Lookup:","AKTF",null,null,null,null,null,null,null,null,null,null,null,null,null,null,null,null,null,null,null,null,null,"X"]
[null,null,null,null,null,null,null,null,null,null,null,null,null,null,null,null,null,null,null,null,null,null,null,null,null,null,null,null,null,null,null,null,null,null,null,null,null,null,null,null,null,"X"]
[null,"Setting Materials",null,null,null,null,"CD1250-BS",null,null,"Classic Drain Assembly w/ Brushed Stainless Steel Pinhole Pattern Grate",null,null,null,null,null,null,null,null,"a",{"$f":"IF(Suggested=\"Yes\",AB67,AH67)","v":142.5},"EA",{"$f":"+Instructions!$B$3","v":"N"},null,{"$f":"+Instructions!$C$22","v":0},{"$f":"ROUND($AB67*(1-X67)+0.004999,2)","v":142.5},null,"",142.5,{"$f":"+X67","v":0},{"$f":"+Y67","v":142.5},{"$f":"(AH67-AD67)/AH67","v":0},null,3,{"$f":"SUM(AK67:AM67)+AF67","v":142.5},null,null,{"$f":"ROUND(AD67/(1-VLOOKUP(AG67,Group,2,FALSE)),2)","v":142.5},{"$f":"IF(VLOOKUP(AG67,Group,5,FALSE)=\"YES\",VLOOKUP(ROUND(ROUND(AK67,1)-AK67,2),Round,2,FALSE)+VLOOKUP(AG67,Group,6,FALSE),0)","v":0},{"$f":"IF(VLOOKUP(AG67,Group,7,FALSE)=\"\",0,ROUND(AK67-0.04999,1)-AK67+AN67)","v":0},{"$f":"IF(VLOOKUP(AG67,Group,7,FALSE)=\"\",\"\",VLOOKUP(AG67,Group,7,FALSE))","v":""},null,"X"]
[null,"Setting Materials",null,null,null,null,"CD1210-BS",null,null,"Classic Drain Assembly w/ Brushed Stainless Steel Swirl Pattern Grate",null,null,null,null,null,null,null,"Stock","a",{"$f":"IF(Suggested=\"Yes\",AB68,AH68)","v":142.5},"EA",{"$f":"+Instructions!$B$3","v":"N"},null,{"$f":"+Instructions!$C$22","v":0},{"$f":"ROUND($AB68*(1-X68)+0.004999,2)","v":142.5},null,"",142.5,{"$f":"+X68","v":0},{"$f":"+Y68","v":142.5},{"$f":"(AH68-AD68)/AH68","v":0},null,3,{"$f":"SUM(AK68:AM68)+AF68","v":142.5},null,null,{"$f":"ROUND(AD68/(1-VLOOKUP(AG68,Group,2,FALSE)),2)","v":142.5},{"$f":"IF(VLOOKUP(AG68,Group,5,FALSE)=\"YES\",VLOOKUP(ROUND(ROUND(AK68,1)-AK68,2),Round,2,FALSE)+VLOOKUP(AG68,Group,6,FALSE),0)","v":0},{"$f":"IF(VLOOKUP(AG68,Group,7,FALSE)=\"\",0,ROUND(AK68-0.04999,1)-AK68+AN68)","v":0},{"$f":"IF(VLOOKUP(AG68,Group,7,FALSE)=\"\",\"\",VLOOKUP(AG68,Group,7,FALSE))","v":""},null,"X"]
[null,null,null,null,null,null,null,null,null,null,null,null,null,null,null,null,null,null,null,null,null,null,null,null,null,null,null,null,null,null,null,null,null,null,null,null,null,null,null,null,null,"X"]
[null,"Setting Materials",null,null,null,null,"CD1233-BK",null,null,"Classic Drain Assembly w/ Matte Black Pinhole Pattern Grate",null,null,null,null,null,null,null,null,"a",{"$f":"IF(Suggested=\"Yes\",AB70,AH70)","v":229.6},"EA",{"$f":"+Instructions!$B$3","v":"N"},null,{"$f":"+Instructions!$C$22","v":0},{"$f":"ROUND($AB70*(1-X70)+0.004999,2)","v":229.6},null,"",229.6,{"$f":"+X70","v":0},{"$f":"+Y70","v":229.6},{"$f":"(AH70-AD70)/AH70","v":0},null,3,{"$f":"SUM(AK70:AM70)+AF70","v":229.6},null,null,{"$f":"ROUND(AD70/(1-VLOOKUP(AG70,Group,2,FALSE)),2)","v":229.6},{"$f":"IF(VLOOKUP(AG70,Group,5,FALSE)=\"YES\",VLOOKUP(ROUND(ROUND(AK70,1)-AK70,2),Round,2,FALSE)+VLOOKUP(AG70,Group,6,FALSE),0)","v":0},{"$f":"IF(VLOOKUP(AG70,Group,7,FALSE)=\"\",0,ROUND(AK70-0.04999,1)-AK70+AN70)","v":0},{"$f":"IF(VLOOKUP(AG70,Group,7,FALSE)=\"\",\"\",VLOOKUP(AG70,Group,7,FALSE))","v":""},null,"X"]
[null,"Setting Materials",null,null,null,null,"CD1213-BK",null,null,"Classic Drain Assembly w/ Matte Black Swirl Pattern Grate",null,null,null,null,null,null,null,null,"a",{"$f":"IF(Suggested=\"Yes\",AB71,AH71)","v":229.6},"EA",{"$f":"+Instructions!$B$3","v":"N"},null,{"$f":"+Instructions!$C$22","v":0},{"$f":"ROUND($AB71*(1-X71)+0.004999,2)","v":229.6},null,"",229.6,{"$f":"+X71","v":0},{"$f":"+Y71","v":229.6},{"$f":"(AH71-AD71)/AH71","v":0},null,3,{"$f":"SUM(AK71:AM71)+AF71","v":229.6},null,null,{"$f":"ROUND(AD71/(1-VLOOKUP(AG71,Group,2,FALSE)),2)","v":229.6},{"$f":"IF(VLOOKUP(AG71,Group,5,FALSE)=\"YES\",VLOOKUP(ROUND(ROUND(AK71,1)-AK71,2),Round,2,FALSE)+VLOOKUP(AG71,Group,6,FALSE),0)","v":0},{"$f":"IF(VLOOKUP(AG71,Group,7,FALSE)=\"\",0,ROUND(AK71-0.04999,1)-AK71+AN71)","v":0},{"$f":"IF(VLOOKUP(AG71,Group,7,FALSE)=\"\",\"\",VLOOKUP(AG71,Group,7,FALSE))","v":""},null,"X"]
[null,null,null,null,null,null,null,null,null,null,null,null,null,null,null,null,null,null,null,null,null,null,null,null,null,null,null,null,null,null,null,null,null,null,null,null,null,null,null,null,null,"X"]
[null,"Setting Materials",null,null,null,null,"CD1240-ORB",null,null,"Classic Drain Assembly w/ Oil-Rubbed Bronze Pinhole Pattern Grate",null,null,null,null,null,null,null,null,"a",{"$f":"IF(Suggested=\"Yes\",AB73,AH73)","v":229.6},"EA",{"$f":"+Instructions!$B$3","v":"N"},null,{"$f":"+Instructions!$C$22","v":0},{"$f":"ROUND($AB73*(1-X73)+0.004999,2)","v":229.6},null,"",229.6,{"$f":"+X73","v":0},{"$f":"+Y73","v":229.6},{"$f":"(AH73-AD73)/AH73","v":0},null,3,{"$f":"SUM(AK73:AM73)+AF73","v":229.6},null,null,{"$f":"ROUND(AD73/(1-VLOOKUP(AG73,Group,2,FALSE)),2)","v":229.6},{"$f":"IF(VLOOKUP(AG73,Group,5,FALSE)=\"YES\",VLOOKUP(ROUND(ROUND(AK73,1)-AK73,2),Round,2,FALSE)+VLOOKUP(AG73,Group,6,FALSE),0)","v":0},{"$f":"IF(VLOOKUP(AG73,Group,7,FALSE)=\"\",0,ROUND(AK73-0.04999,1)-AK73+AN73)","v":0},{"$f":"IF(VLOOKUP(AG73,Group,7,FALSE)=\"\",\"\",VLOOKUP(AG73,Group,7,FALSE))","v":""},null,"X"]
[null,"Setting Materials",null,null,null,null,"CD1230-ORB",null,null,"Classic Drain Assembly w/ Oil-Rubbed Bronze Swirl Pattern Grate",null,null,null,null,null,null,null,"Stock","a",{"$f":"IF(Suggested=\"Yes\",AB74,AH74)","v":229.6},"EA",{"$f":"+Instructions!$B$3","v":"N"},null,{"$f":"+Instructions!$C$22","v":0},{"$f":"ROUND($AB74*(1-X74)+0.004999,2)","v":229.6},null,"",229.6,{"$f":"+X74","v":0},{"$f":"+Y74","v":229.6},{"$f":"(AH74-AD74)/AH74","v":0},null,3,{"$f":"SUM(AK74:AM74)+AF74","v":229.6},null,null,{"$f":"ROUND(AD74/(1-VLOOKUP(AG74,Group,2,FALSE)),2)","v":229.6},{"$f":"IF(VLOOKUP(AG74,Group,5,FALSE)=\"YES\",VLOOKUP(ROUND(ROUND(AK74,1)-AK74,2),Round,2,FALSE)+VLOOKUP(AG74,Group,6,FALSE),0)","v":0},{"$f":"IF(VLOOKUP(AG74,Group,7,FALSE)=\"\",0,ROUND(AK74-0.04999,1)-AK74+AN74)","v":0},{"$f":"IF(VLOOKUP(AG74,Group,7,FALSE)=\"\",\"\",VLOOKUP(AG74,Group,7,FALSE))","v":""},null,"X"]
[null,null,null,null,null,null,null,null,null,null,null,null,null,null,null,null,null,null,null,null,null,null,null,null,null,null,null,null,null,null,null,null,null,null,null,null,null,null,null,null,null,"X"]
[null,"Setting Materials",null,null," ",null,"CD1280-CH",null,null,"Classic Drain Assembly w/ Polished Stainless Steel Pinhole Pattern Grate",null,null,null,null,null,null,null,null,"a",{"$f":"IF(Suggested=\"Yes\",AB76,AH76)","v":185.7},"EA",{"$f":"+Instructions!$B$3","v":"N"},null,{"$f":"+Instructions!$C$22","v":0},{"$f":"ROUND($AB76*(1-X76)+0.004999,2)","v":185.7},null,"",185.7,{"$f":"+X76","v":0},{"$f":"+Y76","v":185.7},{"$f":"(AH76-AD76)/AH76","v":0},null,3,{"$f":"SUM(AK76:AM76)+AF76","v":185.7},null,null,{"$f":"ROUND(AD76/(1-VLOOKUP(AG76,Group,2,FALSE)),2)","v":185.7},{"$f":"IF(VLOOKUP(AG76,Group,5,FALSE)=\"YES\",VLOOKUP(ROUND(ROUND(AK76,1)-AK76,2),Round,2,FALSE)+VLOOKUP(AG76,Group,6,FALSE),0)","v":0},{"$f":"IF(VLOOKUP(AG76,Group,7,FALSE)=\"\",0,ROUND(AK76-0.04999,1)-AK76+AN76)","v":0},{"$f":"IF(VLOOKUP(AG76,Group,7,FALSE)=\"\",\"\",VLOOKUP(AG76,Group,7,FALSE))","v":""},null,"X"]
[null,"Setting Materials",null,null,null,null,"CD1290-CH",null,null,"Classic Drain Assembly w/ Polished Stainless Steel Swirl Pattern Grate",null,null,null,null,null,null,null,"Stock","a",{"$f":"IF(Suggested=\"Yes\",AB77,AH77)","v":185.7},"EA",{"$f":"+Instructions!$B$3","v":"N"},null,{"$f":"+Instructions!$C$22","v":0},{"$f":"ROUND($AB77*(1-X77)+0.004999,2)","v":185.7},null,"",185.7,{"$f":"+X77","v":0},{"$f":"+Y77","v":185.7},{"$f":"(AH77-AD77)/AH77","v":0},null,3,{"$f":"SUM(AK77:AM77)+AF77","v":185.7},null,null,{"$f":"ROUND(AD77/(1-VLOOKUP(AG77,Group,2,FALSE)),2)","v":185.7},{"$f":"IF(VLOOKUP(AG77,Group,5,FALSE)=\"YES\",VLOOKUP(ROUND(ROUND(AK77,1)-AK77,2),Round,2,FALSE)+VLOOKUP(AG77,Group,6,FALSE),0)","v":0},{"$f":"IF(VLOOKUP(AG77,Group,7,FALSE)=\"\",0,ROUND(AK77-0.04999,1)-AK77+AN77)","v":0},{"$f":"IF(VLOOKUP(AG77,Group,7,FALSE)=\"\",\"\",VLOOKUP(AG77,Group,7,FALSE))","v":""},null,"X"]
[null,null,null,null,null,null,null,null,null,null,null,null,null,null,null,null,null,null,null,null,null,null,null,null,null,null,null,null,null,null,null,null,null,null,null,null,null,null,null,null,null,"X"]
[null,"Setting Materials",null,null,null,null,"CD1270-SBP",null,null,"Classic Drain Assembly w/ Satin Brass Pinhole Pattern Grate",null,null,null,null,null,null,null,null,"a",{"$f":"IF(Suggested=\"Yes\",AB79,AH79)","v":229.6},"EA",{"$f":"+Instructions!$B$3","v":"N"},null,{"$f":"+Instructions!$C$22","v":0},{"$f":"ROUND($AB79*(1-X79)+0.004999,2)","v":229.6},null,"new",229.6,{"$f":"+X79","v":0},{"$f":"+Y79","v":229.6},{"$f":"(AH79-AD79)/AH79","v":0},null,3,{"$f":"SUM(AK79:AM79)+AF79","v":229.6},null,null,{"$f":"ROUND(AD79/(1-VLOOKUP(AG79,Group,2,FALSE)),2)","v":229.6},{"$f":"IF(VLOOKUP(AG79,Group,5,FALSE)=\"YES\",VLOOKUP(ROUND(ROUND(AK79,1)-AK79,2),Round,2,FALSE)+VLOOKUP(AG79,Group,6,FALSE),0)","v":0},{"$f":"IF(VLOOKUP(AG79,Group,7,FALSE)=\"\",0,ROUND(AK79-0.04999,1)-AK79+AN79)","v":0},{"$f":"IF(VLOOKUP(AG79,Group,7,FALSE)=\"\",\"\",VLOOKUP(AG79,Group,7,FALSE))","v":""},null,"X"]
[null,"Setting Materials",null,null,null,null,"CD1271-SBS",null,null,"Classic Drain Assembly w/ Satin Brass Swirl Pattern Grate",null,null,null,null,null,null,null,null,"a",{"$f":"IF(Suggested=\"Yes\",AB80,AH80)","v":229.6},"EA",{"$f":"+Instructions!$B$3","v":"N"},null,{"$f":"+Instructions!$C$22","v":0},{"$f":"ROUND($AB80*(1-X80)+0.004999,2)","v":229.6},null,"new",229.6,{"$f":"+X80","v":0},{"$f":"+Y80","v":229.6},{"$f":"(AH80-AD80)/AH80","v":0},null,3,{"$f":"SUM(AK80:AM80)+AF80","v":229.6},null,null,{"$f":"ROUND(AD80/(1-VLOOKUP(AG80,Group,2,FALSE)),2)","v":229.6},{"$f":"IF(VLOOKUP(AG80,Group,5,FALSE)=\"YES\",VLOOKUP(ROUND(ROUND(AK80,1)-AK80,2),Round,2,FALSE)+VLOOKUP(AG80,Group,6,FALSE),0)","v":0},{"$f":"IF(VLOOKUP(AG80,Group,7,FALSE)=\"\",0,ROUND(AK80-0.04999,1)-AK80+AN80)","v":0},{"$f":"IF(VLOOKUP(AG80,Group,7,FALSE)=\"\",\"\",VLOOKUP(AG80,Group,7,FALSE))","v":""},null,"X"]
[null,null,null,null,null,null,null,null,null,null,null,null,null,null,null,null,null,null,null,null,null,null,null,null,null,null,null,null,null,null,null,null,null,null,null,null,null,null,null,null,null,"X"]
[null,"Setting Materials",null,null,null,null,"CD1260",null,null,"Classic Tile-In Drain Assembly w/ Stainless Steel Drain Cover",null,null,null,null,null,null,null,null,"b",{"$f":"IF(Suggested=\"Yes\",AB82,AH82)","v":143.4},"EA",{"$f":"+Instructions!$B$3","v":"N"},null,{"$f":"+Instructions!$C$22","v":0},{"$f":"ROUND($AB82*(1-X82)+0.004999,2)","v":143.4},null,"new",143.4,{"$f":"+X82","v":0},{"$f":"+Y82","v":143.4},{"$f":"(AH82-AD82)/AH82","v":0},null,3,{"$f":"SUM(AK82:AM82)+AF82","v":143.4},null,null,{"$f":"ROUND(AD82/(1-VLOOKUP(AG82,Group,2,FALSE)),2)","v":143.4},{"$f":"IF(VLOOKUP(AG82,Group,5,FALSE)=\"YES\",VLOOKUP(ROUND(ROUND(AK82,1)-AK82,2),Round,2,FALSE)+VLOOKUP(AG82,Group,6,FALSE),0)","v":0},{"$f":"IF(VLOOKUP(AG82,Group,7,FALSE)=\"\",0,ROUND(AK82-0.04999,1)-AK82+AN82)","v":0},{"$f":"IF(VLOOKUP(AG82,Group,7,FALSE)=\"\",\"\",VLOOKUP(AG82,Group,7,FALSE))","v":""},null,"X"]
[null,null,null,null,null,null,null,null,null,null,null,null,null,null,null,null,null,null,null,null,null,null,null,null,null,null,null,null,null,null,null,null,null,null,null,null,null,null,null,null,null,"X"]
[null,"Setting Materials",null,null,null,null,"CD1250-VL",null,null,"Classic Drain Assembly for Vinyl Flooring w/ White Grate",null,null,null,null,null,null,null,null,"c",{"$f":"IF(Suggested=\"Yes\",AB84,AH84)","v":41.4},"EA",{"$f":"+Instructions!$B$3","v":"N"},null,{"$f":"+Instructions!$C$22","v":0},{"$f":"ROUND($AB84*(1-X84)+0.004999,2)","v":41.4},null,"",41.4,{"$f":"+X84","v":0},{"$f":"+Y84","v":41.4},{"$f":"(AH84-AD84)/AH84","v":0},null,3,{"$f":"SUM(AK84:AM84)+AF84","v":41.4},null,null,{"$f":"ROUND(AD84/(1-VLOOKUP(AG84,Group,2,FALSE)),2)","v":41.4},{"$f":"IF(VLOOKUP(AG84,Group,5,FALSE)=\"YES\",VLOOKUP(ROUND(ROUND(AK84,1)-AK84,2),Round,2,FALSE)+VLOOKUP(AG84,Group,6,FALSE),0)","v":0},{"$f":"IF(VLOOKUP(AG84,Group,7,FALSE)=\"\",0,ROUND(AK84-0.04999,1)-AK84+AN84)","v":0},{"$f":"IF(VLOOKUP(AG84,Group,7,FALSE)=\"\",\"\",VLOOKUP(AG84,Group,7,FALSE))","v":""},null,"X"]
[null,null,null,null,null,null,null,null,null,null,null,null,null,null,null,null,null,null,null,null,null,null,null,null,null,null,null,null,null,null,null,null,null,null,null,null,null,null,null,null,null,"X"]
[null,"Setting Materials",null,null,null,null,"DC5500-PVC",null,null,"2\" PVC Drain Line Connector",null,null,null,null,null,null,null,null,null,{"$f":"IF(Suggested=\"Yes\",AB86,AH86)","v":17.95},"EA",{"$f":"+Instructions!$B$3","v":"N"},null,{"$f":"+Instructions!$C$22","v":0},{"$f":"ROUND($AB86*(1-X86)+0.004999,2)","v":17.95},null,"",17.95,{"$f":"+X86","v":0},{"$f":"+Y86","v":17.95},{"$f":"(AH86-AD86)/AH86","v":0},null,3,{"$f":"SUM(AK86:AM86)+AF86","v":17.95},null,null,{"$f":"ROUND(AD86/(1-VLOOKUP(AG86,Group,2,FALSE)),2)","v":17.95},{"$f":"IF(VLOOKUP(AG86,Group,5,FALSE)=\"YES\",VLOOKUP(ROUND(ROUND(AK86,1)-AK86,2),Round,2,FALSE)+VLOOKUP(AG86,Group,6,FALSE),0)","v":0},{"$f":"IF(VLOOKUP(AG86,Group,7,FALSE)=\"\",0,ROUND(AK86-0.04999,1)-AK86+AN86)","v":0},{"$f":"IF(VLOOKUP(AG86,Group,7,FALSE)=\"\",\"\",VLOOKUP(AG86,Group,7,FALSE))","v":""},null,"X"]
[null,null,null,null,null,null,null,null,null,null,null,null,null,null,null,null,null,null,null,null,null,null,null,null,null,null,null,null,null,null,null,null,null,null,null,null,null,null,null,null,null,"X"]
[null,null,null,"Notes:","a) Includes Drain Gasket & DC5500-PVC 2\" PVC Drain line connector.",null,null,null,null,null,null,null,null,null,null,null,null,null,null,null,null,null,null,null,null,null,null,null,null,null,null,null,null,null,null,null,null,null,null,null,null,"X"]
[null,null,null,null,"b) Compatible with all TrueDEK Classic and TrueDEK Classic8 shower bases.  Includes Drain",null,null,null,null,null,null,null,null,null,null,null,null,null,null,null,null,null,null,null,null,null,null,null,null,null,null,null,null,null,null,null,null,null,null,null,null,"X"]
[null,null,null,null,"Gasket, DC5500-PVC 2\" PVC Drain line connector, 4 screws and a 2\" Fernco Hub drain coupling.",null,null,null,null,null,null,null,null,null,null,null,null,null,null,null,null,null,null,null,null,null,null,null,null,null,null,null,null,null,null,null,null,null,null,null,null,"X"]
[null,null,null,null,"c) Includes DC5500-PVC 2\" PVC Drain line connector.",null,null,null,null,null,null,null,null,null,null,null,null,null,null,null,null,null,null,null,null,null,null,null,null,null,null,null,null,null,null,null,null,null,null,null,null,"X"]
[null,null,null,null,null,null,null,null,null,null,null,null,null,null,null,null,null,null,null,null,null,null,null,null,null,null,null,null,null,null,null,null,null,null,null,null,null,null,null,null,null,"X"]
[null,null,"TrueDEK Linear Shower Bases & TrueDEK Linear Drains",null,null,null,null,null,null,null,null,null,null,null,null,null,null,null,"Item # Lookup:","AKTF",null,null,null,null,null,null,null,null,null,null,null,null,null,null,null,null,null,null,null,null,null,"X"]
[null,null,null,null,null,null,null,null,null,null,null,null,null,null,null,null,null,null,null,null,null,null,null,null,null,null,null,null,null,null,null,null,null,null,null,null,null,null,null,null,null,"X"]
[null,null,null,"-  Structural glass reinforced plastic shower foundation spans 16\" on-center joists, 7/8\" Thick at edges."]
[null,null,null,"-  Integrated linear drain handles high flow showers - up to 17 gallons per minute."]
[null,null,null,"-  Rated to support up to 560 lbs. when properly installed on joists."]
[null,null,null,"-  Reversible two-in-one stainless steel drain covers allow for tile inserts up to 5/8\" thick."]
[null,null,null,"-  Suited for hydronic or electric mat heat installation."]
[null,null,null,"-  certified compliant w/ IRC, IPC, UPC, NPC & IAPMO PS106-2015E1 for pre-fabricated tileable "]
[null,null,null,"   shower receptors (complies w/ ANSI Z124.1.2-2005)."]
[null,null,null,null,null,null,null,null,null,null,null,null,null,null,null,null,null,null,null,null,null,null,null,null,null,null,null,null,null,null,null,null,null,null,null,null,null,null,null,null,null,"X"]
[null,"Non-Stock Pans",null,null,"35-1/2\" x 35-1/2\"",null,21205,null,null,null,"TrueDEK Linear Base",null,null,null,null,null,null,null,"a",{"$f":"IF(Suggested=\"Yes\",AB103,AH103)","v":644.85},"EA",{"$f":"+Instructions!$B$3","v":"N"},null,{"$f":"+Instructions!$C$22","v":0},{"$f":"ROUND($AB103*(1-X103)+0.004999,2)","v":644.85},null,"",644.85,{"$f":"+X103","v":0},644.85,{"$f":"(AH103-AD103)/AH103","v":0},null,2,{"$f":"SUM(AK103:AM103)+AF103","v":644.85},null,null,{"$f":"ROUND(AD103/(1-VLOOKUP(AG103,Group,2,FALSE)),2)","v":644.85},{"$f":"IF(VLOOKUP(AG103,Group,5,FALSE)=\"YES\",VLOOKUP(ROUND(ROUND(AK103,1)-AK103,2),Round,2,FALSE)+VLOOKUP(AG103,Group,6,FALSE),0)","v":0},{"$f":"IF(VLOOKUP(AG103,Group,7,FALSE)=\"\",0,ROUND(AK103-0.04999,1)-AK103+AN103)","v":0},{"$f":"IF(VLOOKUP(AG103,Group,7,FALSE)=\"\",\"\",VLOOKUP(AG103,Group,7,FALSE))","v":""},null,"X"]
[null,"Non-Stock Pans",null,null,"39-3/8\" x 39-3/8\"",null,21206,null,null,null,"TrueDEK Linear Base",null,null,null,null,null,null,null,"a",{"$f":"IF(Suggested=\"Yes\",AB104,AH104)","v":651.85},"EA",{"$f":"+Instructions!$B$3","v":"N"},null,{"$f":"+Instructions!$C$22","v":0},{"$f":"ROUND($AB104*(1-X104)+0.004999,2)","v":651.85},null,"",651.85,0,651.85,{"$f":"(AH104-AD104)/AH104","v":0},null,2,{"$f":"SUM(AK104:AM104)+AF104","v":651.85},null,null,{"$f":"ROUND(AD104/(1-VLOOKUP(AG104,Group,2,FALSE)),2)","v":651.85},{"$f":"IF(VLOOKUP(AG104,Group,5,FALSE)=\"YES\",VLOOKUP(ROUND(ROUND(AK104,1)-AK104,2),Round,2,FALSE)+VLOOKUP(AG104,Group,6,FALSE),0)","v":0},{"$f":"IF(VLOOKUP(AG104,Group,7,FALSE)=\"\",0,ROUND(AK104-0.04999,1)-AK104+AN104)","v":0},{"$f":"IF(VLOOKUP(AG104,Group,7,FALSE)=\"\",\"\",VLOOKUP(AG104,Group,7,FALSE))","v":""},null,"X"]
[null,"Non-Stock Pans",null,null,"51-1/4\" x 32-1/4\"",null,21207,null,null,null,"TrueDEK Linear Base",null,null,null,null,null,null,null,"a",{"$f":"IF(Suggested=\"Yes\",AB105,AH105)","v":653.6},"EA",{"$f":"+Instructions!$B$3","v":"N"},null,{"$f":"+Instructions!$C$22","v":0},{"$f":"ROUND($AB105*(1-X105)+0.004999,2)","v":653.6},null,"",653.6,0,653.6,{"$f":"(AH105-AD105)/AH105","v":0},null,2,{"$f":"SUM(AK105:AM105)+AF105","v":653.6},null,null,{"$f":"ROUND(AD105/(1-VLOOKUP(AG105,Group,2,FALSE)),2)","v":653.6},{"$f":"IF(VLOOKUP(AG105,Group,5,FALSE)=\"YES\",VLOOKUP(ROUND(ROUND(AK105,1)-AK105,2),Round,2,FALSE)+VLOOKUP(AG105,Group,6,FALSE),0)","v":0},{"$f":"IF(VLOOKUP(AG105,Group,7,FALSE)=\"\",0,ROUND(AK105-0.04999,1)-AK105+AN105)","v":0},{"$f":"IF(VLOOKUP(AG105,Group,7,FALSE)=\"\",\"\",VLOOKUP(AG105,Group,7,FALSE))","v":""},null,"X"]
[null,"Non-Stock Pans",null,null,"47-1/4\" x 47-1/4\"",null,21208,null,null,null,"TrueDEK Linear Base",null,null,null,null,null,null,null,"a",{"$f":"IF(Suggested=\"Yes\",AB106,AH106)","v":664.1},"EA",{"$f":"+Instructions!$B$3","v":"N"},null,{"$f":"+Instructions!$C$22","v":0},{"$f":"ROUND($AB106*(1-X106)+0.004999,2)","v":664.1},null,"",664.1,{"$f":"+X106","v":0},{"$f":"+Y106","v":664.1},{"$f":"(AH106-AD106)/AH106","v":0},null,2,{"$f":"SUM(AK106:AM106)+AF106","v":664.1},null,null,{"$f":"ROUND(AD106/(1-VLOOKUP(AG106,Group,2,FALSE)),2)","v":664.1},{"$f":"IF(VLOOKUP(AG106,Group,5,FALSE)=\"YES\",VLOOKUP(ROUND(ROUND(AK106,1)-AK106,2),Round,2,FALSE)+VLOOKUP(AG106,Group,6,FALSE),0)","v":0},{"$f":"IF(VLOOKUP(AG106,Group,7,FALSE)=\"\",0,ROUND(AK106-0.04999,1)-AK106+AN106)","v":0},{"$f":"IF(VLOOKUP(AG106,Group,7,FALSE)=\"\",\"\",VLOOKUP(AG106,Group,7,FALSE))","v":""},null,"X"]
[null,null,null,null,null,null,null,null,null,null,null,null,null,null,null,null,null,null,null,null,null,null,null,null,null,null,null,null,null,null,null,null,null,null,null,null,null,null,null,null,null,"X"]
[null,"Non-Stock Pans",null,null,"72\" x 48\"",null,21240,null,null,null,"TrueDEK Ultimate Linear Base",null,null,null,null,null,null,null,null,{"$f":"IF(Suggested=\"Yes\",AB108,AH108)","v":814.4},"EA",{"$f":"+Instructions!$B$3","v":"N"},null,{"$f":"+Instructions!$C$22","v":0},{"$f":"ROUND($AB108*(1-X108)+0.004999,2)","v":814.4},null,"",814.4,{"$f":"+X108","v":0},{"$f":"+Y108","v":814.4},{"$f":"(AH108-AD108)/AH108","v":0},null,2,{"$f":"SUM(AK108:AM108)+AF108","v":814.4},null,null,{"$f":"ROUND(AD108/(1-VLOOKUP(AG108,Group,2,FALSE)),2)","v":814.4},{"$f":"IF(VLOOKUP(AG108,Group,5,FALSE)=\"YES\",VLOOKUP(ROUND(ROUND(AK108,1)-AK108,2),Round,2,FALSE)+VLOOKUP(AG108,Group,6,FALSE),0)","v":0},{"$f":"IF(VLOOKUP(AG108,Group,7,FALSE)=\"\",0,ROUND(AK108-0.04999,1)-AK108+AN108)","v":0},{"$f":"IF(VLOOKUP(AG108,Group,7,FALSE)=\"\",\"\",VLOOKUP(AG108,Group,7,FALSE))","v":""},null,"X"]
[null,null,null,null,null,null,null,null,null,null,null,null,null,null,null,null,null,null,null,null,null,null,null,null,null,null,null,null,null,null,null,null,null,null,null,null,null,null,null,null,null,"X"]
[null,"Non-Stock Pans",null,null,"1/4\" x 47-1/4\"",null,"21241R",null,null,null,"TrueDEK Ultimate Linear S. S. Edge Trim 1/4\" Tile RH",null,null,null,null,null,null,null,null,{"$f":"IF(Suggested=\"Yes\",AB110,AH110)","v":32.6},"EA",{"$f":"+Instructions!$B$3","v":"N"},null,{"$f":"+Instructions!$C$22","v":0},{"$f":"ROUND($AB110*(1-X110)+0.004999,2)","v":32.6},null,"new",32.6,{"$f":"+X110","v":0},{"$f":"+Y110","v":32.6},{"$f":"(AH110-AD110)/AH110","v":0},null,2,{"$f":"SUM(AK110:AM110)+AF110","v":32.6},null,null,{"$f":"ROUND(AD110/(1-VLOOKUP(AG110,Group,2,FALSE)),2)","v":32.6},{"$f":"IF(VLOOKUP(AG110,Group,5,FALSE)=\"YES\",VLOOKUP(ROUND(ROUND(AK110,1)-AK110,2),Round,2,FALSE)+VLOOKUP(AG110,Group,6,FALSE),0)","v":0},{"$f":"IF(VLOOKUP(AG110,Group,7,FALSE)=\"\",0,ROUND(AK110-0.04999,1)-AK110+AN110)","v":0},{"$f":"IF(VLOOKUP(AG110,Group,7,FALSE)=\"\",\"\",VLOOKUP(AG110,Group,7,FALSE))","v":""},null,"X"]
[null,"Non-Stock Pans",null,null,"1/4\" x 47-1/4\"",null,"21241L",null,null,null,"TrueDEK Ultimate Linear S. S. Edge Trim 1/4\" Tile LH",null,null,null,null,null,null,null,null,32.6,"EA",{"$f":"+Instructions!$B$3","v":"N"},null,{"$f":"+Instructions!$C$22","v":0},32.6,null,"new",32.6,0,32.6,0,null,2,32.6,null,null,32.6,0,0,"",null,"X"]
[null,"Non-Stock Pans",null,null,"3/8\" x 47-1/4\"",null,"21242R",null,null,null,"TrueDEK Ultimate Linear S. S. Edge Trim 3/8\" Tile RH",null,null,null,null,null,null,null,null,35.4,"EA",{"$f":"+Instructions!$B$3","v":"N"},null,{"$f":"+Instructions!$C$22","v":0},35.4,null,"new",35.4,0,35.4,0,null,2,35.4,null,null,35.4,0,0,"",null,"X"]
[null,"Non-Stock Pans",null,null,"3/8\" x 47-1/4\"",null,"21242L",null,null,null,"TrueDEK Ultimate Linear S. S. Edge Trim 3/8\" Tile LH",null,null,null,null,null,null,null,null,{"$f":"IF(Suggested=\"Yes\",AB113,AH113)","v":35.4},"EA",{"$f":"+Instructions!$B$3","v":"N"},null,{"$f":"+Instructions!$C$22","v":0},{"$f":"ROUND($AB113*(1-X113)+0.004999,2)","v":35.4},null,"new",35.4,{"$f":"+X113","v":0},{"$f":"+Y113","v":35.4},{"$f":"(AH113-AD113)/AH113","v":0},null,2,{"$f":"SUM(AK113:AM113)+AF113","v":35.4},null,null,{"$f":"ROUND(AD113/(1-VLOOKUP(AG113,Group,2,FALSE)),2)","v":35.4},{"$f":"IF(VLOOKUP(AG113,Group,5,FALSE)=\"YES\",VLOOKUP(ROUND(ROUND(AK113,1)-AK113,2),Round,2,FALSE)+VLOOKUP(AG113,Group,6,FALSE),0)","v":0},{"$f":"IF(VLOOKUP(AG113,Group,7,FALSE)=\"\",0,ROUND(AK113-0.04999,1)-AK113+AN113)","v":0},{"$f":"IF(VLOOKUP(AG113,Group,7,FALSE)=\"\",\"\",VLOOKUP(AG113,Group,7,FALSE))","v":""},null,"X"]
[null,"Non-Stock Pans",null,null,"1/2\" x 47-1/4\"",null,"21243R",null,null,null,"TrueDEK Ultimate Linear S. S. Edge Trim 1/2\" Tile RH",null,null,null,null,null,null,null,null,{"$f":"IF(Suggested=\"Yes\",AB114,AH114)","v":39.5},"EA",{"$f":"+Instructions!$B$3","v":"N"},null,{"$f":"+Instructions!$C$22","v":0},{"$f":"ROUND($AB114*(1-X114)+0.004999,2)","v":39.5},null,"new",39.5,{"$f":"+X114","v":0},{"$f":"+Y114","v":39.5},{"$f":"(AH114-AD114)/AH114","v":0},null,2,{"$f":"SUM(AK114:AM114)+AF114","v":39.5},null,null,{"$f":"ROUND(AD114/(1-VLOOKUP(AG114,Group,2,FALSE)),2)","v":39.5},{"$f":"IF(VLOOKUP(AG114,Group,5,FALSE)=\"YES\",VLOOKUP(ROUND(ROUND(AK114,1)-AK114,2),Round,2,FALSE)+VLOOKUP(AG114,Group,6,FALSE),0)","v":0},{"$f":"IF(VLOOKUP(AG114,Group,7,FALSE)=\"\",0,ROUND(AK114-0.04999,1)-AK114+AN114)","v":0},{"$f":"IF(VLOOKUP(AG114,Group,7,FALSE)=\"\",\"\",VLOOKUP(AG114,Group,7,FALSE))","v":""},null,"X"]
[null,"Non-Stock Pans",null,null,"1/2\" x 47-1/4\"",null,"21243L",null,null,null,"TrueDEK Ultimate Linear S. S. Edge Trim 1/2\" Tile LH",null,null,null,null,null,null,null,null,{"$f":"IF(Suggested=\"Yes\",AB115,AH115)","v":39.5},"EA",{"$f":"+Instructions!$B$3","v":"N"},null,{"$f":"+Instructions!$C$22","v":0},{"$f":"ROUND($AB115*(1-X115)+0.004999,2)","v":39.5},null,"new",39.5,{"$f":"+X115","v":0},{"$f":"+Y115","v":39.5},{"$f":"(AH115-AD115)/AH115","v":0},null,2,{"$f":"SUM(AK115:AM115)+AF115","v":39.5},null,null,{"$f":"ROUND(AD115/(1-VLOOKUP(AG115,Group,2,FALSE)),2)","v":39.5},{"$f":"IF(VLOOKUP(AG115,Group,5,FALSE)=\"YES\",VLOOKUP(ROUND(ROUND(AK115,1)-AK115,2),Round,2,FALSE)+VLOOKUP(AG115,Group,6,FALSE),0)","v":0},{"$f":"IF(VLOOKUP(AG115,Group,7,FALSE)=\"\",0,ROUND(AK115-0.04999,1)-AK115+AN115)","v":0},{"$f":"IF(VLOOKUP(AG115,Group,7,FALSE)=\"\",\"\",VLOOKUP(AG115,Group,7,FALSE))","v":""},null,"X"]
[null,null,null,null,null,null,null,null,null,null,null,null,null,null,null,null,null,null,null,null,null,null,null,null,null,null,null,null,null,null,null,null,null,null,null,null,null,null,null,null,null,"X"]
[null,"Stocked Pans",null,null,"12\" x 60\"",null,"TB6012-PXT",null,null,null,"TruePITCH Extension",null,null,null,null,null,null,"Stock",null,{"$f":"IF(Suggested=\"Yes\",AB117,AH117)","v":83.3},"EA",{"$f":"+Instructions!$B$3","v":"N"},null,{"$f":"+Instructions!$C$22","v":0},{"$f":"ROUND($AB117*(1-X117)+0.004999,2)","v":83.3},null,"new",83.3,{"$f":"+X117","v":0},{"$f":"+Y117","v":83.3},{"$f":"(AH117-AD117)/AH117","v":0},null,1,{"$f":"SUM(AK117:AM117)+AF117","v":83.3},null,null,{"$f":"ROUND(AD117/(1-VLOOKUP(AG117,Group,2,FALSE)),2)","v":83.3},{"$f":"IF(VLOOKUP(AG117,Group,5,FALSE)=\"YES\",VLOOKUP(ROUND(ROUND(AK117,1)-AK117,2),Round,2,FALSE)+VLOOKUP(AG117,Group,6,FALSE),0)","v":0},{"$f":"IF(VLOOKUP(AG117,Group,7,FALSE)=\"\",0,ROUND(AK117-0.04999,1)-AK117+AN117)","v":0},{"$f":"IF(VLOOKUP(AG117,Group,7,FALSE)=\"\",\"\",VLOOKUP(AG117,Group,7,FALSE))","v":""},null,"X"]
[null,null,null,null,null,null,null,null,null,null,null,null,null,null,null,null,null,null,null,null,null,null,null,null,null,null,null,null,null,null,null,null,null,null,null,null,null,null,null,null,null,"X"]
[null,"Non-Stock Pans",null,null,null,null,21213,null,null,null,"Linear Drain Assy. w/ Brushed Stainless Steel Solid Cover",null,null,null,null,null,null,null,"b",{"$f":"IF(Suggested=\"Yes\",AB119,AH119)","v":314.8},"EA",{"$f":"+Instructions!$B$3","v":"N"},null,{"$f":"+Instructions!$C$22","v":0},{"$f":"ROUND($AB119*(1-X119)+0.004999,2)","v":314.8},null,"",314.8,{"$f":"+X119","v":0},314.8,{"$f":"(AH119-AD119)/AH119","v":0},null,2,{"$f":"SUM(AK119:AM119)+AF119","v":314.8},null,null,{"$f":"ROUND(AD119/(1-VLOOKUP(AG119,Group,2,FALSE)),2)","v":314.8},{"$f":"IF(VLOOKUP(AG119,Group,5,FALSE)=\"YES\",VLOOKUP(ROUND(ROUND(AK119,1)-AK119,2),Round,2,FALSE)+VLOOKUP(AG119,Group,6,FALSE),0)","v":0},{"$f":"IF(VLOOKUP(AG119,Group,7,FALSE)=\"\",0,ROUND(AK119-0.04999,1)-AK119+AN119)","v":0},{"$f":"IF(VLOOKUP(AG119,Group,7,FALSE)=\"\",\"\",VLOOKUP(AG119,Group,7,FALSE))","v":""},null,"X"]
[null,"Non-Stock Pans",null,null,null,null,"21213-BK",null,null,null,"Linear Drain Assy. w/ Matte Black Solid Cover",null,null,null,null,null,null,null,"b",350.8,"EA",{"$f":"+Instructions!$B$3","v":"N"},null,{"$f":"+Instructions!$C$22","v":0},350.8,null,"",350.8,0,350.8,0,null,2,350.8,null,null,350.8,0,0,"",null,"X"]
[null,"Non-Stock Pans",null,null,null,null,"21213-ORB",null,null,null,"Linear Drain Assy. w/ Oil-Rubbed Bronze Solid Cover",null,null,null,null,null,null,null,"b",350.8,"EA",{"$f":"+Instructions!$B$3","v":"N"},null,{"$f":"+Instructions!$C$22","v":0},350.8,null,"",350.8,0,350.8,0,null,2,350.8,null,null,350.8,0,0,"",null,"X"]
[null,"Non-Stock Pans",null,null,null,null,21215,null,null,null,"Linear Drain Assy. w/ Brushed Stainless Steel Slotted Cover",null,null,null,null,null,null,null,"b",314.8,"EA",{"$f":"+Instructions!$B$3","v":"N"},null,{"$f":"+Instructions!$C$22","v":0},314.8,null,"",314.8,0,314.8,0,null,2,314.8,null,null,314.8,0,0,"",null,"X"]
[null,"Non-Stock Pans",null,null,null,null,"21215-BK",null,null,null,"Linear Drain Assy. w/ Matte Black Slotted Cover",null,null,null,null,null,null,null,"b",350.8,"EA",{"$f":"+Instructions!$B$3","v":"N"},null,{"$f":"+Instructions!$C$22","v":0},350.8,null,"",350.8,0,350.8,0,null,2,350.8,null,null,350.8,0,0,"",null,"X"]
[null,"Non-Stock Pans",null,null,null,null,"21215-ORB",null,null,null,"Linear Drain Assy. w/ Oil-Rubbed Bronze Slotted Cover",null,null,null,null,null,null,null,"b",350.8,"EA",{"$f":"+Instructions!$B$3","v":"N"},null,{"$f":"+Instructions!$C$22","v":0},350.8,null,"",350.8,0,350.8,0,null,2,350.8,null,null,350.8,0,0,"",null,"X"]
[null,null,null,null,null,null,null,null,null,null,null,null,null,null,null,null,null,null,null,null,null,null,null,null,null,null,null,null,null,null,null,null,null,null,null,null,null,null,null,null,null,"X"]
[null,"Non-Stock Pans",null,null,"59\" x 35-1/2\"",null,21210,null,null,null,"TrueDEK Linear Base (Tub Replacement Base)",null,null,null,null,null,null,null,"a,c",{"$f":"IF(Suggested=\"Yes\",AB126,AH126)","v":658.85},"EA",{"$f":"+Instructions!$B$3","v":"N"},null,{"$f":"+Instructions!$C$22","v":0},{"$f":"ROUND($AB126*(1-X126)+0.004999,2)","v":658.85},null,"",658.85,{"$f":"+X126","v":0},{"$f":"+Y126","v":658.85},{"$f":"(AH126-AD126)/AH126","v":0},null,2,{"$f":"SUM(AK126:AM126)+AF126","v":658.85},null,null,{"$f":"ROUND(AD126/(1-VLOOKUP(AG126,Group,2,FALSE)),2)","v":658.85},{"$f":"IF(VLOOKUP(AG126,Group,5,FALSE)=\"YES\",VLOOKUP(ROUND(ROUND(AK126,1)-AK126,2),Round,2,FALSE)+VLOOKUP(AG126,Group,6,FALSE),0)","v":0},{"$f":"IF(VLOOKUP(AG126,Group,7,FALSE)=\"\",0,ROUND(AK126-0.04999,1)-AK126+AN126)","v":0},{"$f":"IF(VLOOKUP(AG126,Group,7,FALSE)=\"\",\"\",VLOOKUP(AG126,Group,7,FALSE))","v":""},null,"X"]
[null,null,null,null,null,null,null,null,null,null,null,null,null,null,null,null,null,null,null,null,null,null,null,null,null,null,null,null,null,null,null,null,null,null,null,null,null,null,null,null,null,"X"]
[null,"Non-Stock Pans",null,null,null,null,21211,null,null,null,"Linear Drain Assy. w/ Brushed Stainless Steel Solid Cover",null,null,null,null,null,null,null,"d",{"$f":"IF(Suggested=\"Yes\",AB128,AH128)","v":314.8},"EA",{"$f":"+Instructions!$B$3","v":"N"},null,{"$f":"+Instructions!$C$22","v":0},{"$f":"ROUND($AB128*(1-X128)+0.004999,2)","v":314.8},null,"",314.8,{"$f":"+X128","v":0},314.8,{"$f":"(AH128-AD128)/AH128","v":0},null,2,{"$f":"SUM(AK128:AM128)+AF128","v":314.8},null,null,{"$f":"ROUND(AD128/(1-VLOOKUP(AG128,Group,2,FALSE)),2)","v":314.8},{"$f":"IF(VLOOKUP(AG128,Group,5,FALSE)=\"YES\",VLOOKUP(ROUND(ROUND(AK128,1)-AK128,2),Round,2,FALSE)+VLOOKUP(AG128,Group,6,FALSE),0)","v":0},{"$f":"IF(VLOOKUP(AG128,Group,7,FALSE)=\"\",0,ROUND(AK128-0.04999,1)-AK128+AN128)","v":0},{"$f":"IF(VLOOKUP(AG128,Group,7,FALSE)=\"\",\"\",VLOOKUP(AG128,Group,7,FALSE))","v":""},null,"X"]
[null,"Non-Stock Pans",null,null,null,null,"21211-BK",null,null,null,"Linear Drain Assy. w/ Matte Black Solid Cover",null,null,null,null,null,null,null,"d",350.8,"EA",{"$f":"+Instructions!$B$3","v":"N"},null,{"$f":"+Instructions!$C$22","v":0},350.8,null,"",350.8,0,350.8,0,null,2,350.8,null,null,350.8,0,0,"",null,"X"]
[null,"Non-Stock Pans",null,null,null,null,"21211-ORB",null,null,null,"Linear Drain Assy. w/ Oil-Rubbed Bronze Solid Cover",null,null,null,null,null,null,null,"d",350.8,"EA",{"$f":"+Instructions!$B$3","v":"N"},null,{"$f":"+Instructions!$C$22","v":0},350.8,null,"",350.8,0,350.8,0,null,2,350.8,null,null,350.8,0,0,"",null,"X"]
[null,"Non-Stock Pans",null,null,null,null,21228,null,null,null,"Linear Drain Assy. w/ Brushed Stainless Steel Slotted Cover",null,null,null,null,null,null,null,"d",314.8,"EA",{"$f":"+Instructions!$B$3","v":"N"},null,{"$f":"+Instructions!$C$22","v":0},314.8,null,"",314.8,0,314.8,0,null,2,314.8,null,null,314.8,0,0,"",null,"X"]
[null,"Non-Stock Pans",null,null,null,null,"21228-BK",null,null,null,"Linear Drain Assy. w/ Matte Black Slotted Cover",null,null,null,null,null,null,null,"d",350.8,"EA",{"$f":"+Instructions!$B$3","v":"N"},null,{"$f":"+Instructions!$C$22","v":0},350.8,null,"",350.8,0,350.8,0,null,2,350.8,null,null,350.8,0,0,"",null,"X"]
[null,"Non-Stock Pans",null,null,null,null,"21228-ORB",null,null,null,"Linear Drain Assy. w/ Oil-Rubbed Bronze Slotted Cover",null,null,null,null,null,null,null,"d",350.8,"EA",{"$f":"+Instructions!$B$3","v":"N"},null,{"$f":"+Instructions!$C$22","v":0},350.8,null,"",350.8,0,350.8,0,null,2,350.8,null,null,350.8,0,0,"",null,"X"]
[null,null,null,null,null,null,null,null,null,null,null,null,null,null,null,null,null,null,null,null,null,null,null,null,null,null,null,null,null,null,null,null,null,null,null,null,null,null,null,null,null,"X"]
[null,"Non-Stock Pans",null,null,null,null,"DC5500-PVC",null,null,null,"2\" PVC Drain Line Connector",null,null,null,null,null,null,null,null,{"$f":"IF(Suggested=\"Yes\",AB135,AH135)","v":17.95},"EA",{"$f":"+Instructions!$B$3","v":"N"},null,{"$f":"+Instructions!$C$22","v":0},{"$f":"ROUND($AB135*(1-X135)+0.004999,2)","v":17.95},null,"",17.95,{"$f":"+X135","v":0},{"$f":"+Y135","v":17.95},{"$f":"(AH135-AD135)/AH135","v":0},null,2,{"$f":"SUM(AK135:AM135)+AF135","v":17.95},null,null,{"$f":"ROUND(AD135/(1-VLOOKUP(AG135,Group,2,FALSE)),2)","v":17.95},{"$f":"IF(VLOOKUP(AG135,Group,5,FALSE)=\"YES\",VLOOKUP(ROUND(ROUND(AK135,1)-AK135,2),Round,2,FALSE)+VLOOKUP(AG135,Group,6,FALSE),0)","v":0},{"$f":"IF(VLOOKUP(AG135,Group,7,FALSE)=\"\",0,ROUND(AK135-0.04999,1)-AK135+AN135)","v":0},{"$f":"IF(VLOOKUP(AG135,Group,7,FALSE)=\"\",\"\",VLOOKUP(AG135,Group,7,FALSE))","v":""},null,"X"]
[null,null,null,null,null,null,null,null,null,null,null,null,null,null,null,null,null,null,null,null,null,null,null,null,null,null,null,null,null,null,null,null,null,null,null,null,null,null,null,null,null,"X"]
[null,null,null,"Notes:","Each assembly includes DC5500-PVC 2\" PVC Drain line connector.",null,null,null,null,null,null,null,null,null,null,null,null,null,null,null,null,null,null,null,null,null,null,null,null,null,null,null,null,null,null,null,null,null,null,null,null,"X"]
[null,null,null,null,"a) Accommodates up to three 2\" wastes.",null,null,null,null,null,null,null,null,null,null,null,null,null,null,null,null,null,null,null,null,null,null,null,null,null,null,null,null,null,null,null,null,null,null,null,null,"X"]
[null,null,null,null,"b) Only compatible with the #21205, 21206, 21207 & 21208 TrueDEK Linear Shower Bases.  Covers can be flipped over and",null,null,null,null,null,null,null,null,null,null,null,null,null,null,null,null,null,null,null,null,null,null,null,null,null,null,null,null,null,null,null,null,null,null,null,null,"X"]
[null,null,null,null,"filled with tile.  Can adjust elevations of cover & tile spacer to match surrounding tile thickness.",null,null,null,null,null,null,null,null,null,null,null,null,null,null,null,null,null,null,null,null,null,null,null,null,null,null,null,null,null,null,null,null,null,null,null,null,"X"]
[null,null,null,null,"c) Composed from the same structural, lightweight materials as our TrueDEK Classic and TrueDEK Classic8 bases – fiberglass",null,null,null,null,null,null,null,null,null,null,null,null,null,null,null,null,null,null,null,null,null,null,null,null,null,null,null,null,null,null,null,null,null,null,null,null,"X"]
[null,null,null,null,"reinforced plastic (GRP) – this incredibly durable shower base can be trimmed to size on site, if required.",null,null,null,null,null,null,null,null,null,null,null,null,null,null,null,null,null,null,null,null,null,null,null,null,null,null,null,null,null,null,null,null,null,null,null,null,"X"]
[null,null,null,null,"d) Only compatible with the 21210 59\" x 35-1/2\" TrueDEK Linear Base.",null,null,null,null,null,null,null,null,null,null,null,null,null,null,null,null,null,null,null,null,null,null,null,null,null,null,null,null,null,null,null,null,null,null,null,null,"X"]
[]
[null,null,"FastDEK Shower Bases",null,null,null,null,null,null,null,null,null,null,null,null,null,null,null,"Item # Lookup:","AKFD",null,null,null,null,null,null,null,null,null,null,null,null,null,null,null,null,null,null,null,null,null,"X"]
[null,null,null,null,null,null,null,null,null,null,null,null,null,null,null,null,null,null,null,null,null,null,null,null,null,null,null,null,null,null,null,null,null,null,null,null,null,null,null,null,null,"X"]
[null,null,null,"-  Prefinished with an attractive anti-slip texture.  (No Tile)"]
[null,null,null,"-  At a thickness of 1\", each FastDEK is structural and can be installed directly onto code-approved joist systems, on subfloor, and on concrete."]
[null,null,null,"-  It will support 840 lbs. when installed\non 16\" on-center joists, and that load rating can be increased by beefing up the underlying framework."]
[null,null,null,null,null,null,null,null,null,null,null,null,null,null,null,null,null,null,null,null,null,null,null,null,null,null,null,null,null,null,null,null,null,null,null,null,null,null,null,null,null,"X"]
[null,"Non-Stock Pans",null,null," 47-1/4\" x 31-1/2\"",null,11854,null,null,null,"FastDEK Base - Black",null,null,null,null,null,null,null,null,{"$f":"IF(Suggested=\"Yes\",AB151,AH151)","v":574.4},"EA",{"$f":"+Instructions!$B$3","v":"N"},null,{"$f":"+Instructions!$C$22","v":0},{"$f":"ROUND($AB151*(1-X151)+0.004999,2)","v":574.4},null,"",574.4,{"$f":"+X151","v":0},{"$f":"+Y151","v":574.4},{"$f":"(AH151-AD151)/AH151","v":0},null,2,{"$f":"SUM(AK151:AM151)+AF151","v":574.4},null,null,{"$f":"ROUND(AD151/(1-VLOOKUP(AG151,Group,2,FALSE)),2)","v":574.4},{"$f":"IF(VLOOKUP(AG151,Group,5,FALSE)=\"YES\",VLOOKUP(ROUND(ROUND(AK151,1)-AK151,2),Round,2,FALSE)+VLOOKUP(AG151,Group,6,FALSE),0)","v":0},{"$f":"IF(VLOOKUP(AG151,Group,7,FALSE)=\"\",0,ROUND(AK151-0.04999,1)-AK151+AN151)","v":0},{"$f":"IF(VLOOKUP(AG151,Group,7,FALSE)=\"\",\"\",VLOOKUP(AG151,Group,7,FALSE))","v":""},null,"X"]
[null,"Non-Stock Pans",null,null," 47-1/4\" x 31-1/2\"",null,11876,null,null,null,"FastDEK Base - Gray",null,null,null,null,null,null,null,null,574.4,"EA",{"$f":"+Instructions!$B$3","v":"N"},null,{"$f":"+Instructions!$C$22","v":0},574.4,null,"",574.4,0,574.4,0,null,2,574.4,null,null,574.4,0,0,"",null,"X"]
[null,"Non-Stock Pans",null,null," 47-1/4\" x 31-1/2\"",null,11853,null,null,null,"FastDEK Base - White",null,null,null,null,null,null,null,null,574.4,"EA",{"$f":"+Instructions!$B$3","v":"N"},null,{"$f":"+Instructions!$C$22","v":0},574.4,null,"",574.4,0,574.4,0,null,2,574.4,null,null,574.4,0,0,"",null,"X"]
[null,"Non-Stock Pans",null,null," 47-1/4\" x 35-1/2\"",null,11856,null,null,null,"FastDEK Base - Black",null,null,null,null,null,null,null,null,579.65,"EA",{"$f":"+Instructions!$B$3","v":"N"},null,{"$f":"+Instructions!$C$22","v":0},579.65,null,"",579.65,0,579.65,0,null,2,579.65,null,null,579.65,0,0,"",null,"X"]
[null,"Non-Stock Pans",null,null," 47-1/4\" x 35-1/2\"",null,11877,null,null,null,"FastDEK Base - Gray",null,null,null,null,null,null,null,null,579.65,"EA",{"$f":"+Instructions!$B$3","v":"N"},null,{"$f":"+Instructions!$C$22","v":0},579.65,null,"",579.65,0,579.65,0,null,2,579.65,null,null,579.65,0,0,"",null,"X"]
[null,"Non-Stock Pans",null,null," 47-1/4\" x 35-1/2\"",null,11855,null,null,null,"FastDEK Base - White",null,null,null,null,null,null,null,null,579.65,"EA",{"$f":"+Instructions!$B$3","v":"N"},null,{"$f":"+Instructions!$C$22","v":0},579.65,null,"",579.65,0,579.65,0,null,2,579.65,null,null,579.65,0,0,"",null,"X"]
[null,"Non-Stock Pans",null,null,"59\" x 35-1/2\"",null,"12839WH",null,null,null,"FastDEK Base - White",null,null,null,null,null,null,null,null,625.35,"EA",{"$f":"+Instructions!$B$3","v":"N"},null,{"$f":"+Instructions!$C$22","v":0},625.35,null,"new",625.35,0,625.35,0,null,2,625.35,null,null,625.35,0,0,"",null,"X"]
[null,"Non-Stock Pans",null,null,"63\" x 31-1/2\"",null,11858,null,null,null,"FastDEK Base - Black",null,null,null,null,null,null,null,null,627.1,"EA",{"$f":"+Instructions!$B$3","v":"N"},null,{"$f":"+Instructions!$C$22","v":0},627.1,null,"",627.1,0,627.1,0,null,2,627.1,null,null,627.1,0,0,"",null,"X"]
[null,"Non-Stock Pans",null,null,"63\" x 31-1/2\"",null,11880,null,null,null,"FastDEK Base - Gray",null,null,null,null,null,null,null,null,627.1,"EA",{"$f":"+Instructions!$B$3","v":"N"},null,{"$f":"+Instructions!$C$22","v":0},627.1,null,"",627.1,0,627.1,0,null,2,627.1,null,null,627.1,0,0,"",null,"X"]
[null,"Non-Stock Pans",null,null,"63\" x 31-1/2\"",null,11857,null,null,null,"FastDEK Base - White",null,null,null,null,null,null,null,null,627.1,"EA",{"$f":"+Instructions!$B$3","v":"N"},null,{"$f":"+Instructions!$C$22","v":0},627.1,null,"",627.1,0,627.1,0,null,2,627.1,null,null,627.1,0,0,"",null,"X"]
[null,"Non-Stock Pans",null,null,"63\" x 35-1/2\"",null,11860,null,null,null,"FastDEK Base - Black",null,null,null,null,null,null,null,null,634.1,"EA",{"$f":"+Instructions!$B$3","v":"N"},null,{"$f":"+Instructions!$C$22","v":0},{"$f":"ROUND($AB161*(1-X161)+0.004999,2)","v":634.1},null,"",634.1,0,634.1,0,null,2,634.1,null,null,634.1,0,0,"",null,"X"]
[null,"Non-Stock Pans",null,null,"63\" x 35-1/2\"",null,11881,null,null,null,"FastDEK Base - Gray",null,null,null,null,null,null,null,null,634.1,"EA",{"$f":"+Instructions!$B$3","v":"N"},null,{"$f":"+Instructions!$C$22","v":0},634.1,null,"",634.1,0,634.1,0,null,2,634.1,null,null,634.1,0,0,"",null,"X"]
[null,"Non-Stock Pans",null,null,"63\" x 35-1/2\"",null,11859,null,null,null,"FastDEK Base - White",null,null,null,null,null,null,null,null,634.1,"EA",{"$f":"+Instructions!$B$3","v":"N"},null,{"$f":"+Instructions!$C$22","v":0},634.1,null,"",634.1,0,634.1,0,null,2,634.1,null,null,634.1,0,0,"",null,"X"]
[null,"Non-Stock Pans",null,null,"71\" x 31-1/2\"",null,11866,null,null,null,"FastDEK Base - Black",null,null,null,null,null,null,null,null,{"$f":"IF(Suggested=\"Yes\",AB164,AH164)","v":673.7},"EA",{"$f":"+Instructions!$B$3","v":"N"},null,{"$f":"+Instructions!$C$22","v":0},673.7,null,"",673.7,{"$f":"+X164","v":0},{"$f":"+Y164","v":673.7},{"$f":"(AH164-AD164)/AH164","v":0},null,2,{"$f":"SUM(AK164:AM164)+AF164","v":673.7},null,null,{"$f":"ROUND(AD164/(1-VLOOKUP(AG164,Group,2,FALSE)),2)","v":673.7},{"$f":"IF(VLOOKUP(AG164,Group,5,FALSE)=\"YES\",VLOOKUP(ROUND(ROUND(AK164,1)-AK164,2),Round,2,FALSE)+VLOOKUP(AG164,Group,6,FALSE),0)","v":0},{"$f":"IF(VLOOKUP(AG164,Group,7,FALSE)=\"\",0,ROUND(AK164-0.04999,1)-AK164+AN164)","v":0},{"$f":"IF(VLOOKUP(AG164,Group,7,FALSE)=\"\",\"\",VLOOKUP(AG164,Group,7,FALSE))","v":""},null,"X"]
[null,"Non-Stock Pans",null,null,"71\" x 31-1/2\"",null,11884,null,null,null,"FastDEK Base - Gray",null,null,null,null,null,null,null,null,673.7,"EA",{"$f":"+Instructions!$B$3","v":"N"},null,{"$f":"+Instructions!$C$22","v":0},673.7,null,"",673.7,0,673.7,0,null,2,673.7,null,null,673.7,0,0,"",null,"X"]
[null,"Non-Stock Pans",null,null,"71\" x 31-1/2\"",null,11865,null,null,null,"FastDEK Base - White",null,null,null,null,null,null,null,null,673.7,"EA",{"$f":"+Instructions!$B$3","v":"N"},null,{"$f":"+Instructions!$C$22","v":0},673.7,null,"",673.7,0,673.7,0,null,2,673.7,null,null,673.7,0,0,"",null,"X"]
[null,"Non-Stock Pans",null,null,"71\" x 35-1/2\"",null,11868,null,null,null,"FastDEK Base - Black",null,null,null,null,null,null,null,null,680.7,"EA",{"$f":"+Instructions!$B$3","v":"N"},null,{"$f":"+Instructions!$C$22","v":0},680.7,null,"",680.7,0,680.7,0,null,2,680.7,null,null,680.7,0,0,"",null,"X"]
[null,"Non-Stock Pans",null,null,"71\" x 35-1/2\"",null,11885,null,null,null,"FastDEK Base - Gray",null,null,null,null,null,null,null,null,680.7,"EA",{"$f":"+Instructions!$B$3","v":"N"},null,{"$f":"+Instructions!$C$22","v":0},680.7,null,"",680.7,0,680.7,0,null,2,680.7,null,null,680.7,0,0,"",null,"X"]
[null,"Non-Stock Pans",null,null,"71\" x 35-1/2\"",null,11867,null,null,null,"FastDEK Base - White",null,null,null,null,null,null,null,null,680.7,"EA",{"$f":"+Instructions!$B$3","v":"N"},null,{"$f":"+Instructions!$C$22","v":0},680.7,null,"",680.7,0,680.7,0,null,2,680.7,null,null,680.7,0,0,"",null,"X"]
[null,"Non-Stock Pans",null,null,"78-3/4\" x 39-3/8\"",null,11894,null,null,null,"FastDEK Base - White",null,null,null,null,null,null,null,null,977.95,"EA",{"$f":"+Instructions!$B$3","v":"N"},null,{"$f":"+Instructions!$C$22","v":0},977.95,null,"new",977.95,0,977.95,0,null,2,977.95,null,null,977.95,0,0,"",null,"X"]
[null,null,null,null,null,null,null,null,null,null,null,null,null,null,null,null,null,null,null,null,null,null,null,null,null,null,null,null,null,null,null,null,null,null,null,null,null,null,null,null,null,"X"]
[null,null,"continued on next page"]
[null,null,"FastDEK Shower Bases - continued",null,null,null,null,null,null,null,null,null,null,null,null,null,null,null,"Item # Lookup:","AKFD",null,null,null,null,null,null,null,null,null,null,null,null,null,null,null,null,null,null,null,null,null,"X"]
[null,null,null,null,null,null,null,null,null,null,null,null,null,null,null,null,null,null,null,null,null,null,null,null,null,null,null,null,null,null,null,null,null,null,null,null,null,null,null,null,null,"X"]
[null,"Non-Stock Pans",null,null," 47-1/4\" x 4-1/3\"",null,12844,null,null,null,"FastDEK Ramp - White",null,null,null,null,null,null,null,null,{"$f":"IF(Suggested=\"Yes\",AB175,AH175)","v":64.95},"EA",{"$f":"+Instructions!$B$3","v":"N"},null,{"$f":"+Instructions!$C$22","v":0},{"$f":"ROUND($AB175*(1-X175)+0.004999,2)","v":64.95},null,"new",64.95,{"$f":"+X175","v":0},{"$f":"+Y175","v":64.95},{"$f":"(AH175-AD175)/AH175","v":0},null,2,{"$f":"SUM(AK175:AM175)+AF175","v":64.95},null,null,{"$f":"ROUND(AD175/(1-VLOOKUP(AG175,Group,2,FALSE)),2)","v":64.95},{"$f":"IF(VLOOKUP(AG175,Group,5,FALSE)=\"YES\",VLOOKUP(ROUND(ROUND(AK175,1)-AK175,2),Round,2,FALSE)+VLOOKUP(AG175,Group,6,FALSE),0)","v":0},{"$f":"IF(VLOOKUP(AG175,Group,7,FALSE)=\"\",0,ROUND(AK175-0.04999,1)-AK175+AN175)","v":0},{"$f":"IF(VLOOKUP(AG175,Group,7,FALSE)=\"\",\"\",VLOOKUP(AG175,Group,7,FALSE))","v":""},null,"X"]
[null,"Non-Stock Pans",null,null," 4-1/3\" x 4-1/3\"",null,12843,null,null,null,"FastDEK Ramp Corner - White",null,null,null,null,null,null,null,null,6.35,"EA",{"$f":"+Instructions!$B$3","v":"N"},null,{"$f":"+Instructions!$C$22","v":0},6.35,null,"new",6.35,0,6.35,0,null,2,6.35,null,null,6.35,0,0,"",null,"X"]
[null,null,null,null,null,null,null,null,null,null,null,null,null,null,null,null,null,null,null,null,null,null,null,null,null,null,null,null,null,null,null,null,null,null,null,null,null,null,null,null,null,"X"]
[null,"Setting Materials",null,null,null,null,"FB1000-IK",null,null,null,"FastDEK Installation Kit",null,null,null,null,null,null,null,"a",{"$f":"IF(Suggested=\"Yes\",AB178,AH178)","v":108.15},"EA",{"$f":"+Instructions!$B$3","v":"N"},null,{"$f":"+Instructions!$C$22","v":0},{"$f":"ROUND($AB178*(1-X178)+0.004999,2)","v":108.15},null,"",108.15,{"$f":"+X178","v":0},{"$f":"+Y178","v":108.15},{"$f":"(AH178-AD178)/AH178","v":0},null,3,{"$f":"SUM(AK178:AM178)+AF178","v":108.15},null,null,{"$f":"ROUND(AD178/(1-VLOOKUP(AG178,Group,2,FALSE)),2)","v":108.15},{"$f":"IF(VLOOKUP(AG178,Group,5,FALSE)=\"YES\",VLOOKUP(ROUND(ROUND(AK178,1)-AK178,2),Round,2,FALSE)+VLOOKUP(AG178,Group,6,FALSE),0)","v":0},{"$f":"IF(VLOOKUP(AG178,Group,7,FALSE)=\"\",0,ROUND(AK178-0.04999,1)-AK178+AN178)","v":0},{"$f":"IF(VLOOKUP(AG178,Group,7,FALSE)=\"\",\"\",VLOOKUP(AG178,Group,7,FALSE))","v":""},null,"X"]
[null,"Setting Materials",null,null,null,null,"FB2000-IK",null,null,null,"FastDEK Installation Kit",null,null,null,null,null,null,null,"b",{"$f":"IF(Suggested=\"Yes\",AB179,AH179)","v":141.80000000000001},"EA",{"$f":"+Instructions!$B$3","v":"N"},null,{"$f":"+Instructions!$C$22","v":0},{"$f":"ROUND($AB179*(1-X179)+0.004999,2)","v":141.80000000000001},null,"new",141.80000000000001,{"$f":"+X179","v":0},{"$f":"+Y179","v":141.80000000000001},{"$f":"(AH179-AD179)/AH179","v":0},null,3,{"$f":"SUM(AK179:AM179)+AF179","v":141.80000000000001},null,null,{"$f":"ROUND(AD179/(1-VLOOKUP(AG179,Group,2,FALSE)),2)","v":141.80000000000001},{"$f":"IF(VLOOKUP(AG179,Group,5,FALSE)=\"YES\",VLOOKUP(ROUND(ROUND(AK179,1)-AK179,2),Round,2,FALSE)+VLOOKUP(AG179,Group,6,FALSE),0)","v":0},{"$f":"IF(VLOOKUP(AG179,Group,7,FALSE)=\"\",0,ROUND(AK179-0.04999,1)-AK179+AN179)","v":0},{"$f":"IF(VLOOKUP(AG179,Group,7,FALSE)=\"\",\"\",VLOOKUP(AG179,Group,7,FALSE))","v":""},null,"X"]
[null,null,null,null,null,null,null,null,null,null,null,null,null,null,null,null,null,null,null,null,null,null,null,null,null,null,null,null,null,null,null,null,null,null,null,null,null,null,null,null,null,"X"]
[null,null,null,"Notes:","a) FastDEK Installation Kit includes:",null,null,null,null,"6 - 10 oz. tubes of Tank/10 Polyurethane Construction Adhesive",null,null,null,null,null,null,null,null,null,null,null,null,null,null,null,null,null,null,null,null,null,null,null,null,null,null,null,null,null,null,null,"X"]
[null,null,null,null,null,null,null,null,null,"2 - 10 oz. tubes of 100% Silicone Caulk",null,null,null,null,null,null,null,null,null,null,null,null,null,null,null,null,null,null,null,null,null,null,null,null,null,null,null,null,null,null,null,"X"]
[null,null,null,null,null,null,null,null,null,"1 - 20' Roll of Joint Reinforcement Tape w/adhesive strip along one edge",null,null,null,null,null,null,null,null,null,null,null,null,null,null,null,null,null,null,null,null,null,null,null,null,null,null,null,null,null,null,null,"X"]
[null,null,null,null,null,null,null,null,null,"1 - Drain Connector",null,null,null,null,null,null,null,null,null,null,null,null,null,null,null,null,null,null,null,null,null,null,null,null,null,null,null,null,null,null,null,"X"]
[null,null,null,null,"b) FastDEK Installation Kit includes:",null,null,null,null,"6 - 10 oz. tubes of Tank/10 Polyurethane Construction Adhesive",null,null,null,null,null,null,null,null,null,null,null,null,null,null,null,null,null,null,null,null,null,null,null,null,null,null,null,null,null,null,null,"X"]
[null,null,null,null,null,null,null,null,null,"2 - 10 oz. tubes of 100% Silicone Caulk",null,null,null,null,null,null,null,null,null,null,null,null,null,null,null,null,null,null,null,null,null,null,null,null,null,null,null,null,null,null,null,"X"]
[null,null,null,null,null,null,null,null,null,"1 - 20' Roll of Joint Reinforcement Tape w/adhesive strip along one edge",null,null,null,null,null,null,null,null,null,null,null,null,null,null,null,null,null,null,null,null,null,null,null,null,null,null,null,null,null,null,null,"X"]
[null,null,null,null,null,null,null,null,null,"1 - Drain Connector       1 - 1/2 Gal. Tank/10 Waterproofing Compound",null,null,null,null,null,null,null,null,null,null,null,null,null,null,null,null,null,null,null,null,null,null,null,null,null,null,null,null,null,null,null,"X"]
[]
[null,null,"FastDEK Linear Shower Bases",null,null,null,null,null,null,null,null,null,null,null,null,null,null,null,"Item # Lookup:","AKFD",null,null,null,null,null,null,null,null,null,null,null,null,null,null,null,null,null,null,null,null,null,"X"]
[null,null,null,null,null,null,null,null,null,null,null,null,null,null,null,null,null,null,null,null,null,null,null,null,null,null,null,null,null,null,null,null,null,null,null,null,null,null,null,null,null,"X"]
[null,null,null,"-  Stylish, linear drain cover   -  Superior strength with 546lb maximum capacity   -  White, Stone effect, slip-resistant finish"]
[null,null,null,null,null,null,null,null,null,null,null,null,null,null,null,null,null,null,null,null,null,null,null,null,null,null,null,null,null,null,null,null,null,null,null,null,null,null,null,null,null,"X"]
[null,"Non-Stock Pans",null,null," 47-1/4\" x 35-1/2\"",null,"23964-WH",null,null,"FastDEK Linear Shower Base with 21-3/4\" Stainless Steel Drain Cover",null,null,null,null,null,null,null,null,null,{"$f":"IF(Suggested=\"Yes\",AB194,AH194)","v":619.25},"EA",{"$f":"+Instructions!$B$3","v":"N"},null,{"$f":"+Instructions!$C$22","v":0},{"$f":"ROUND($AB194*(1-X194)+0.004999,2)","v":619.25},null,"",619.25,{"$f":"+X194","v":0},619.25,{"$f":"(AH194-AD194)/AH194","v":0},null,2,{"$f":"SUM(AK194:AM194)+AF194","v":619.25},null,null,{"$f":"ROUND(AD194/(1-VLOOKUP(AG194,Group,2,FALSE)),2)","v":619.25},{"$f":"IF(VLOOKUP(AG194,Group,5,FALSE)=\"YES\",VLOOKUP(ROUND(ROUND(AK194,1)-AK194,2),Round,2,FALSE)+VLOOKUP(AG194,Group,6,FALSE),0)","v":0},{"$f":"IF(VLOOKUP(AG194,Group,7,FALSE)=\"\",0,ROUND(AK194-0.04999,1)-AK194+AN194)","v":0},{"$f":"IF(VLOOKUP(AG194,Group,7,FALSE)=\"\",\"\",VLOOKUP(AG194,Group,7,FALSE))","v":""},null,"X"]
[null,"Non-Stock Pans",null,null,"59\" x 35-1/2\"",null,"23977-WH",null,null,"FastDEK Linear Shower Base with 25-1/3\" Stainless Steel Drain Cover",null,null,null,null,null,null,null,null,null,{"$f":"IF(Suggested=\"Yes\",AB195,AH195)","v":669.35},"EA",{"$f":"+Instructions!$B$3","v":"N"},null,{"$f":"+Instructions!$C$22","v":0},{"$f":"ROUND($AB195*(1-X195)+0.004999,2)","v":669.35},null,"",669.35,0,669.35,{"$f":"(AH195-AD195)/AH195","v":0},null,2,{"$f":"SUM(AK195:AM195)+AF195","v":669.35},null,null,{"$f":"ROUND(AD195/(1-VLOOKUP(AG195,Group,2,FALSE)),2)","v":669.35},{"$f":"IF(VLOOKUP(AG195,Group,5,FALSE)=\"YES\",VLOOKUP(ROUND(ROUND(AK195,1)-AK195,2),Round,2,FALSE)+VLOOKUP(AG195,Group,6,FALSE),0)","v":0},{"$f":"IF(VLOOKUP(AG195,Group,7,FALSE)=\"\",0,ROUND(AK195-0.04999,1)-AK195+AN195)","v":0},{"$f":"IF(VLOOKUP(AG195,Group,7,FALSE)=\"\",\"\",VLOOKUP(AG195,Group,7,FALSE))","v":""},null,"X"]
[null,"Non-Stock Pans",null,null,"71\" x 35-1/2\"",null,"23975-WH",null,null,"FastDEK Linear Shower Base with 29-1/2\" Stainless Steel Drain Cover",null,null,null,null,null,null,null,null,null,{"$f":"IF(Suggested=\"Yes\",AB196,AH196)","v":720.3},"EA",{"$f":"+Instructions!$B$3","v":"N"},null,{"$f":"+Instructions!$C$22","v":0},{"$f":"ROUND($AB196*(1-X196)+0.004999,2)","v":720.3},null,"",720.3,0,720.3,{"$f":"(AH196-AD196)/AH196","v":0},null,2,{"$f":"SUM(AK196:AM196)+AF196","v":720.3},null,null,{"$f":"ROUND(AD196/(1-VLOOKUP(AG196,Group,2,FALSE)),2)","v":720.3},{"$f":"IF(VLOOKUP(AG196,Group,5,FALSE)=\"YES\",VLOOKUP(ROUND(ROUND(AK196,1)-AK196,2),Round,2,FALSE)+VLOOKUP(AG196,Group,6,FALSE),0)","v":0},{"$f":"IF(VLOOKUP(AG196,Group,7,FALSE)=\"\",0,ROUND(AK196-0.04999,1)-AK196+AN196)","v":0},{"$f":"IF(VLOOKUP(AG196,Group,7,FALSE)=\"\",\"\",VLOOKUP(AG196,Group,7,FALSE))","v":""},null,"X"]
[null,null,null,null,null,null,null,null,null,null,null,null,null,null,null,null,null,null,null,null,null,null,null,null,null,null,null,null,null,null,null,null,null,null,null,null,null,null,null,null,null,"X"]
[null,"Non-Stock Pans",null,null,null,null,"23957-WH",null,null,"Spare 21-3/4\" Stainless Steel Drain Cover",null,null,null,null,null,null,null,null,null,{"$f":"IF(Suggested=\"Yes\",AB198,AH198)","v":46.95},"EA",{"$f":"+Instructions!$B$3","v":"N"},null,{"$f":"+Instructions!$C$22","v":0},{"$f":"ROUND($AB198*(1-X198)+0.004999,2)","v":46.95},null,"",46.95,{"$f":"+X198","v":0},46.95,{"$f":"(AH198-AD198)/AH198","v":0},null,2,{"$f":"SUM(AK198:AM198)+AF198","v":46.95},null,null,{"$f":"ROUND(AD198/(1-VLOOKUP(AG198,Group,2,FALSE)),2)","v":46.95},{"$f":"IF(VLOOKUP(AG198,Group,5,FALSE)=\"YES\",VLOOKUP(ROUND(ROUND(AK198,1)-AK198,2),Round,2,FALSE)+VLOOKUP(AG198,Group,6,FALSE),0)","v":0},{"$f":"IF(VLOOKUP(AG198,Group,7,FALSE)=\"\",0,ROUND(AK198-0.04999,1)-AK198+AN198)","v":0},{"$f":"IF(VLOOKUP(AG198,Group,7,FALSE)=\"\",\"\",VLOOKUP(AG198,Group,7,FALSE))","v":""},null,"X"]
[null,"Non-Stock Pans",null,null,null,null,"23958-WH",null,null,"Spare 25-1/3\" Stainless Steel Drain Cover",null,null,null,null,null,null,null,null,null,{"$f":"IF(Suggested=\"Yes\",AB199,AH199)","v":52},"EA",{"$f":"+Instructions!$B$3","v":"N"},null,{"$f":"+Instructions!$C$22","v":0},{"$f":"ROUND($AB199*(1-X199)+0.004999,2)","v":52},null,"",52,0,52,{"$f":"(AH199-AD199)/AH199","v":0},null,2,{"$f":"SUM(AK199:AM199)+AF199","v":52},null,null,{"$f":"ROUND(AD199/(1-VLOOKUP(AG199,Group,2,FALSE)),2)","v":52},{"$f":"IF(VLOOKUP(AG199,Group,5,FALSE)=\"YES\",VLOOKUP(ROUND(ROUND(AK199,1)-AK199,2),Round,2,FALSE)+VLOOKUP(AG199,Group,6,FALSE),0)","v":0},{"$f":"IF(VLOOKUP(AG199,Group,7,FALSE)=\"\",0,ROUND(AK199-0.04999,1)-AK199+AN199)","v":0},{"$f":"IF(VLOOKUP(AG199,Group,7,FALSE)=\"\",\"\",VLOOKUP(AG199,Group,7,FALSE))","v":""},null,"X"]
[null,"Non-Stock Pans",null,null,null,null,"23959-WH",null,null,"Spare 29-1/2\" Stainless Steel Drain Cover",null,null,null,null,null,null,null,null,null,{"$f":"IF(Suggested=\"Yes\",AB200,AH200)","v":59.2},"EA",{"$f":"+Instructions!$B$3","v":"N"},null,{"$f":"+Instructions!$C$22","v":0},{"$f":"ROUND($AB200*(1-X200)+0.004999,2)","v":59.2},null,"",59.2,0,59.2,{"$f":"(AH200-AD200)/AH200","v":0},null,2,{"$f":"SUM(AK200:AM200)+AF200","v":59.2},null,null,{"$f":"ROUND(AD200/(1-VLOOKUP(AG200,Group,2,FALSE)),2)","v":59.2},{"$f":"IF(VLOOKUP(AG200,Group,5,FALSE)=\"YES\",VLOOKUP(ROUND(ROUND(AK200,1)-AK200,2),Round,2,FALSE)+VLOOKUP(AG200,Group,6,FALSE),0)","v":0},{"$f":"IF(VLOOKUP(AG200,Group,7,FALSE)=\"\",0,ROUND(AK200-0.04999,1)-AK200+AN200)","v":0},{"$f":"IF(VLOOKUP(AG200,Group,7,FALSE)=\"\",\"\",VLOOKUP(AG200,Group,7,FALSE))","v":""},null,"X"]
[]
[null,null,"FastDEK Standalone Shower Kits",null,null,null,null,null,null,null,null,null,null,null,null,null,null,null,"Item # Lookup:","AKFD",null,null,null,null,null,null,null,null,null,null,null,null,null,null,null,null,null,null,null,null,null,"X"]
[null,null,null,null,null,null,null,null,null,null,null,null,null,null,null,null,null,null,null,null,null,null,null,null,null,null,null,null,null,null,null,null,null,null,null,null,null,null,null,null,null,"X"]
[null,null,null,"-  Standalone shower complete with base, wall panels, glass screen and door"]
[null,null,null,"-  Contemporary yet practical, tempered glass duo door   -  Choice of 2 stylish wall panel colors"]
[null,null,null,null,null,null,null,null,null,null,null,null,null,null,null,null,null,null,null,null,null,null,null,null,null,null,null,null,null,null,null,null,null,null,null,null,null,null,null,null,null,"X"]
[null,"Non-Stock Pans",null,null," 47-1/4\" x 35-1/2\"",null,"1290DDLAWH",null,null,"Duo Door, Left-Hand Drain and Wall Panels in Gloss White",null,null,null,null,null,null,null,null,null,{"$f":"IF(Suggested=\"Yes\",AB207,AH207)","v":4831},"EA",{"$f":"+Instructions!$B$3","v":"N"},null,{"$f":"+Instructions!$C$22","v":0},{"$f":"ROUND($AB207*(1-X207)+0.004999,2)","v":4831},null,"new",4831,{"$f":"+X207","v":0},{"$f":"+Y207","v":4831},{"$f":"(AH207-AD207)/AH207","v":0},null,2,{"$f":"SUM(AK207:AM207)+AF207","v":4831},null,null,{"$f":"ROUND(AD207/(1-VLOOKUP(AG207,Group,2,FALSE)),2)","v":4831},{"$f":"IF(VLOOKUP(AG207,Group,5,FALSE)=\"YES\",VLOOKUP(ROUND(ROUND(AK207,1)-AK207,2),Round,2,FALSE)+VLOOKUP(AG207,Group,6,FALSE),0)","v":0},{"$f":"IF(VLOOKUP(AG207,Group,7,FALSE)=\"\",0,ROUND(AK207-0.04999,1)-AK207+AN207)","v":0},{"$f":"IF(VLOOKUP(AG207,Group,7,FALSE)=\"\",\"\",VLOOKUP(AG207,Group,7,FALSE))","v":""},null,"X"]
[null,"Non-Stock Pans",null,null," 47-1/4\" x 35-1/2\"",null,"1290DDRAWH",null,null,"Duo Door, Right-Hand Drain and Wall Panels in Gloss White",null,null,null,null,null,null,null,null,null,4831,"EA",{"$f":"+Instructions!$B$3","v":"N"},null,{"$f":"+Instructions!$C$22","v":0},4831,null,"new",4831,0,4831,0,null,2,4831,null,null,4831,0,0,"",null,"X"]
[null,"Non-Stock Pans",null,null," 47-1/4\" x 35-1/2\"",null,"1290DDLABM",null,null,"Duo Door, Left-Hand Drain and Wall Panels in Black Marble",null,null,null,null,null,null,null,null,null,{"$f":"IF(Suggested=\"Yes\",AB209,AH209)","v":4831},"EA",{"$f":"+Instructions!$B$3","v":"N"},null,{"$f":"+Instructions!$C$22","v":0},{"$f":"ROUND($AB209*(1-X209)+0.004999,2)","v":4831},null,"new",4831,{"$f":"+X209","v":0},{"$f":"+Y209","v":4831},{"$f":"(AH209-AD209)/AH209","v":0},null,2,{"$f":"SUM(AK209:AM209)+AF209","v":4831},null,null,{"$f":"ROUND(AD209/(1-VLOOKUP(AG209,Group,2,FALSE)),2)","v":4831},{"$f":"IF(VLOOKUP(AG209,Group,5,FALSE)=\"YES\",VLOOKUP(ROUND(ROUND(AK209,1)-AK209,2),Round,2,FALSE)+VLOOKUP(AG209,Group,6,FALSE),0)","v":0},{"$f":"IF(VLOOKUP(AG209,Group,7,FALSE)=\"\",0,ROUND(AK209-0.04999,1)-AK209+AN209)","v":0},{"$f":"IF(VLOOKUP(AG209,Group,7,FALSE)=\"\",\"\",VLOOKUP(AG209,Group,7,FALSE))","v":""},null,"X"]
[null,"Non-Stock Pans",null,null," 47-1/4\" x 35-1/2\"",null,"1290DDRABM",null,null,"Duo Door, Right-Hand Drain and Wall Panels in Black Marble",null,null,null,null,null,null,null,null,null,{"$f":"IF(Suggested=\"Yes\",AB210,AH210)","v":4831},"EA",{"$f":"+Instructions!$B$3","v":"N"},null,{"$f":"+Instructions!$C$22","v":0},{"$f":"ROUND($AB210*(1-X210)+0.004999,2)","v":4831},null,"new",4831,{"$f":"+X210","v":0},{"$f":"+Y210","v":4831},{"$f":"(AH210-AD210)/AH210","v":0},null,2,{"$f":"SUM(AK210:AM210)+AF210","v":4831},null,null,{"$f":"ROUND(AD210/(1-VLOOKUP(AG210,Group,2,FALSE)),2)","v":4831},{"$f":"IF(VLOOKUP(AG210,Group,5,FALSE)=\"YES\",VLOOKUP(ROUND(ROUND(AK210,1)-AK210,2),Round,2,FALSE)+VLOOKUP(AG210,Group,6,FALSE),0)","v":0},{"$f":"IF(VLOOKUP(AG210,Group,7,FALSE)=\"\",0,ROUND(AK210-0.04999,1)-AK210+AN210)","v":0},{"$f":"IF(VLOOKUP(AG210,Group,7,FALSE)=\"\",\"\",VLOOKUP(AG210,Group,7,FALSE))","v":""},null,"X"]
[null,null,null,null,null,null,null,null,null,null,null,null,null,null,null,null,null,null,null,null,null,null,null,null,null,null,null,null,null,null,null,null,null,null,null,null,null,null,null,null,null,"X"]
[null,null,null,"Notes:","a) FastDEK Standalone Shower Kits are Special Order.  Contact Customer Service for lead times.",null,null,null,null,null,null,null,null,null,null,null,null,null,null,null,null,null,null,null,null,null,null,null,null,null,null,null,null,null,null,null,null,null,null,null,null,"X"]
[null,null,null,null,"b) Kit includes:",null,"1 - 47-1/4\" White FastDEK Shower Base",null,null,null,null,null,"1 - 47-1/4\" wall panel",null,null,null,null,null,null,null,null,null,null,null,null,null,null,null,null,null,null,null,null,null,null,null,null,null,null,null,null,"X"]
[null,null,null,null,null,null,"1 - 31-1/2\" glass duo door",null,null,null,null,null,"2 - 35 1/2\" wall panels",null,null,null,null,null,null,null,null,null,null,null,null,null,null,null,null,null,null,null,null,null,null,null,null,null,null,null,null,"X"]
[null,null,null,null,null,null,"1 - 15-3/4\" glass panel",null,null,null,null,null,"Aluminum frame",null,null,null,null,null,null,null,null,null,null,null,null,null,null,null,null,null,null,null,null,null,null,null,null,null,null,null,null,"X"]
[]
[null,null,"Waterproofing Kits",null,null,null,null,null,null,null,null,null,null,null,null,null,null,null,"Item # Lookup:","AKTF",null,null,null,null,null,null,null,null,null,null,null,null,null,null,null,null,null,null,null,null,null,"X"]
[null,null,null,null,null,null,null,null,null,null,null,null,null,null,null,null,null,null,null,null,null,null,null,null,null,null,null,null,null,null,null,null,null,null,null,null,null,null,null,null,null,"X"]
[null,"Setting Materials",null,null,"KIT",null,"WP1000-PRE",null,null,"Premium Waterproofing Kit",null,null,null,null,null,null,null,"Stock",null,{"$f":"IF(Suggested=\"Yes\",AB219,AH219)","v":449.45},"EA",{"$f":"+Instructions!$B$3","v":"N"},null,{"$f":"+Instructions!$C$22","v":0},{"$f":"ROUND($AB219*(1-X219)+0.004999,2)","v":449.45},null,"",449.45,{"$f":"+X219","v":0},{"$f":"+Y219","v":449.45},{"$f":"(AH219-AD219)/AH219","v":0},null,3,{"$f":"SUM(AK219:AM219)+AF219","v":449.45},null,null,{"$f":"ROUND(AD219/(1-VLOOKUP(AG219,Group,2,FALSE)),2)","v":449.45},{"$f":"IF(VLOOKUP(AG219,Group,5,FALSE)=\"YES\",VLOOKUP(ROUND(ROUND(AK219,1)-AK219,2),Round,2,FALSE)+VLOOKUP(AG219,Group,6,FALSE),0)","v":0},{"$f":"IF(VLOOKUP(AG219,Group,7,FALSE)=\"\",0,ROUND(AK219-0.04999,1)-AK219+AN219)","v":0},{"$f":"IF(VLOOKUP(AG219,Group,7,FALSE)=\"\",\"\",VLOOKUP(AG219,Group,7,FALSE))","v":""},null,"X"]
[null,null,null,null,null,null,null,null,null,null,null,null,null,null,null,null,null,null,null,null,null,null,null,null,null,null,null,null,null,null,null,null,null,null,null,null,null,null,null,null,null,"X"]
[null,null,null,"Note:","Premium Waterproofing Kit includes:",null,null,null,null,null,null,null,null,null,null,null,null,null,"a",null,null,null,null,null,null,null,null,null,null,null,null,null,null,null,null,null,null,null,null,null,null,"X"]
[null,null,null,null,null,null,null,null,null,null,null,null,null,null,null,null,null,null,null,null,null,null,null,null,null,null,null,null,null,null,null,null,null,null,null,null,null,null,null,null,null,"X"]
[null,null,null,null,"    1 - 2 Gal. Tank/10 Waterproofing Compound",null,null,null,null,null,null,"1 - Torx Bit Driver",null,null,null,null,null,null,null,null,null,null,null,null,null,null,null,null,null,null,null,null,null,null,null,null,null,null,null,null,null,"X"]
[null,null,null,null,"    3 - 25' Rolls Joint Reinforcement Tape",null,null,null,null,null,null,"6 - 10 oz. tubes of Tank/10 Polyurethane Construction Adhesive",null,null,null,null,null,null,null,null,null,null,null,null,null,null,null,null,null,null,null,null,null,null,null,null,null,null,null,null,null,"X"]
[null,null,null,null,"    4 - Internal Corners",null,null,null,null,null,null,"1 - 10 oz. tube of Painter's Acrylic Latex Caulk",null,null,null,null,null,null,null,null,null,null,null,null,null,null,null,null,null,null,null,null,null,null,null,null,null,null,null,null,null,"X"]
[null,null,null,null,"    2 - External Corners",null,null,null,null,null,null,"2 - Pairs of Nitrile Gloves",null,null,null,null,null,null,null,null,null,null,null,null,null,null,null,null,null,null,null,null,null,null,null,null,null,null,null,null,null,"X"]
[null,null,null,null,"    1 - Supply Gasket (Pipe Inlet)",null,null,null,null,null,null,"1 - Paint Roller Handle",null,null,null,null,null,null,null,null,null,null,null,null,null,null,null,null,null,null,null,null,null,null,null,null,null,null,null,null,null,"X"]
[null,null," ",null,"    1 - Mixer Valve Gasket",null,null,null,null,null,null,"2 - Paint Roller Covers",null,null,null,null,null,null,null,null,null,null,null,null,null,null,null,null,null,null,null,null,null,null,null,null,null,null,null,null,null,"X"]
[null,null,null,null,"    32 - #9 x 2-1/2\" Screws",null,null,null,null,null,null,"1 - Paint Brush",null,null,null,null,null,null,null,null,null,null,null,null,null,null,null,null,null,null,null,null,null,null,null,null,null,null,null,null,null,"X"]
[null,null,null,null,null,null,null,null,null,null,null,null,null,null,null,null,null,null,null,null,null,null,null,null,null,null,null,null,null,null,null,null,null,null,null,null,null,null,null,null,null,"X"]
[null,"Setting Materials",null,null,"KIT",null,"WP1090-PRO",null,null,"Pro Waterproofing Kit",null,null,null,null,null,null,null,"Stock",null,{"$f":"IF(Suggested=\"Yes\",AB231,AH231)","v":249.85},"EA",{"$f":"+Instructions!$B$3","v":"N"},null,{"$f":"+Instructions!$C$22","v":0},{"$f":"ROUND($AB231*(1-X231)+0.004999,2)","v":249.85},null,"",249.85,{"$f":"+X231","v":0},{"$f":"+Y231","v":249.85},{"$f":"(AH231-AD231)/AH231","v":0},null,3,{"$f":"SUM(AK231:AM231)+AF231","v":249.85},null,null,{"$f":"ROUND(AD231/(1-VLOOKUP(AG231,Group,2,FALSE)),2)","v":249.85},{"$f":"IF(VLOOKUP(AG231,Group,5,FALSE)=\"YES\",VLOOKUP(ROUND(ROUND(AK231,1)-AK231,2),Round,2,FALSE)+VLOOKUP(AG231,Group,6,FALSE),0)","v":0},{"$f":"IF(VLOOKUP(AG231,Group,7,FALSE)=\"\",0,ROUND(AK231-0.04999,1)-AK231+AN231)","v":0},{"$f":"IF(VLOOKUP(AG231,Group,7,FALSE)=\"\",\"\",VLOOKUP(AG231,Group,7,FALSE))","v":""},null,"X"]
[null,null,null,null,null,null,null,null,null,null,null,null,null,null,null,null,null,null,null,null,null,null,null,null,null,null,null,null,null,null,null,null,null,null,null,null,null,null,null,null,null,"X"]
[null,null,null,"Note:","Pro Waterproofing Kit includes:",null,null,null,null,null,null,null,null,null,null,null,null,null,"a",null,null,null,null,null,null,null,null,null,null,null,null,null,null,null,null,null,null,null,null,null,null,"X"]
[null,null,null,null,null,null,null,null,null,null,null,null,null,null,null,null,null,null,null,null,null,null,null,null,null,null,null,null,null,null,null,null,null,null,null,null,null,null,null,null,null,"X"]
[null,null,null,null,"    1 - 1/2 Gal. Tank/10 Waterproofing Compound",null,null,null,null,null,null,"6 - 10 oz. tubes of Tank/10 Polyurethane Construction Adhesive",null,null,null,null,null,null,null,null,null,null,null,null,null,null,null,null,null,null,null,null,null,null,null,null,null,null,null,null,null,"X"]
[null,null,null,null,"    1 - 25' Roll Joint Reinforcement Tape",null,null,null,null,null,null,"1 - 10 oz. tube of Painter's Acrylic Latex Caulk",null,null,null,null,null,null,null,null,null,null,null,null,null,null,null,null,null,null,null,null,null,null,null,null,null,null,null,null,null,"X"]
[null,null,null,null,"    2 - Internal Corners",null,null,null,null,null,null,"2 - Pairs of Nitrile Gloves",null,null,null,null,null,null,null,null,null,null,null,null,null,null,null,null,null,null,null,null,null,null,null,null,null,null,null,null,null,"X"]
[null,null,null,null,"    2 - External Corners",null,null,null,null,null,null,"1 - Paint Roller Handle",null,null,null,null,null,null,null,null,null,null,null,null,null,null,null,null,null,null,null,null,null,null,null,null,null,null,null,null,null,"X"]
[null,null,null,null,"    32 - #9 x 2-1/2\" Screws",null,null,null,null,null,null,"2 - Paint Roller Covers",null,null,null,null,null,null,null,null,null,null,null,null,null,null,null,null,null,null,null,null,null,null,null,null,null,null,null,null,null,"X"]
[null,null,null,null,"    1 - Torx Bit Driver",null,null,null,null,null,null,"1 - Paint Brush"]
[]
[null,null,"Waterproofing Supplies",null,null,null,null,null,null,null,null,null,null,null,null,null,null,null,"Item # Lookup:","AKTF",null,null,null,null,null,null,null,null,null,null,null,null,null,null,null,null,null,null,null,null,null,"X"]
[null,null,null,null,null,null,null,null,null,null,null,null,null,null,null,null,null,null,null,null,null,null,null,null,null,null,null,null,null,null,null,null,null,null,null,null,null,null,null,null,null,"X"]
[null,"Setting Materials",null,null,"1/2 Gallon",null,"WP2000-TNK",null,null,"Tank/10 Waterproofing Compound",null,null,null,null,null,null,null,null,null,{"$f":"IF(Suggested=\"Yes\",AB244,AH244)","v":76.45},"EA",{"$f":"+Instructions!$B$3","v":"N"},null,{"$f":"+Instructions!$C$22","v":0},{"$f":"ROUND($AB244*(1-X244)+0.004999,2)","v":76.45},null,"",76.45,{"$f":"+X244","v":0},{"$f":"+Y244","v":76.45},{"$f":"(AH244-AD244)/AH244","v":0},null,3,{"$f":"SUM(AK244:AM244)+AF244","v":76.45},null,null,{"$f":"ROUND(AD244/(1-VLOOKUP(AG244,Group,2,FALSE)),2)","v":76.45},{"$f":"IF(VLOOKUP(AG244,Group,5,FALSE)=\"YES\",VLOOKUP(ROUND(ROUND(AK244,1)-AK244,2),Round,2,FALSE)+VLOOKUP(AG244,Group,6,FALSE),0)","v":0},{"$f":"IF(VLOOKUP(AG244,Group,7,FALSE)=\"\",0,ROUND(AK244-0.04999,1)-AK244+AN244)","v":0},{"$f":"IF(VLOOKUP(AG244,Group,7,FALSE)=\"\",\"\",VLOOKUP(AG244,Group,7,FALSE))","v":""},null,"X"]
[null,"Setting Materials",null,null,"1 Gallon",null,"WP2001-TNK",null,null,"Tank/10 Waterproofing Compound",null,null,null,null,null,null,null,"Stock","a",{"$f":"IF(Suggested=\"Yes\",AB245,AH245)","v":122.3},"EA",{"$f":"+Instructions!$B$3","v":"N"},null,{"$f":"+Instructions!$C$22","v":0},{"$f":"ROUND($AB245*(1-X245)+0.004999,2)","v":122.3},null,"",122.3,{"$f":"+X245","v":0},122.3,{"$f":"(AH245-AD245)/AH245","v":0},null,3,{"$f":"SUM(AK245:AM245)+AF245","v":122.3},null,null,{"$f":"ROUND(AD245/(1-VLOOKUP(AG245,Group,2,FALSE)),2)","v":122.3},{"$f":"IF(VLOOKUP(AG245,Group,5,FALSE)=\"YES\",VLOOKUP(ROUND(ROUND(AK245,1)-AK245,2),Round,2,FALSE)+VLOOKUP(AG245,Group,6,FALSE),0)","v":0},{"$f":"IF(VLOOKUP(AG245,Group,7,FALSE)=\"\",0,ROUND(AK245-0.04999,1)-AK245+AN245)","v":0},{"$f":"IF(VLOOKUP(AG245,Group,7,FALSE)=\"\",\"\",VLOOKUP(AG245,Group,7,FALSE))","v":""},null,"X"]
[null,"Setting Materials",null,null,"2 Gallon",null,"WP2002-TNK",null,null,"Tank/10 Waterproofing Compound",null,null,null,null,null,null,null,null,"a",{"$f":"IF(Suggested=\"Yes\",AB246,AH246)","v":185.75},"EA",{"$f":"+Instructions!$B$3","v":"N"},null,{"$f":"+Instructions!$C$22","v":0},{"$f":"ROUND($AB246*(1-X246)+0.004999,2)","v":185.75},null,"",185.75,0,185.75,{"$f":"(AH246-AD246)/AH246","v":0},null,3,{"$f":"SUM(AK246:AM246)+AF246","v":185.75},null,null,{"$f":"ROUND(AD246/(1-VLOOKUP(AG246,Group,2,FALSE)),2)","v":185.75},{"$f":"IF(VLOOKUP(AG246,Group,5,FALSE)=\"YES\",VLOOKUP(ROUND(ROUND(AK246,1)-AK246,2),Round,2,FALSE)+VLOOKUP(AG246,Group,6,FALSE),0)","v":0},{"$f":"IF(VLOOKUP(AG246,Group,7,FALSE)=\"\",0,ROUND(AK246-0.04999,1)-AK246+AN246)","v":0},{"$f":"IF(VLOOKUP(AG246,Group,7,FALSE)=\"\",\"\",VLOOKUP(AG246,Group,7,FALSE))","v":""},null,"X"]
[null,"Setting Materials",null,null,"5 Gallon",null,"WP2005-TNK",null,null,"Tank/10 Waterproofing Compound",null,null,null,null,null,null,null,null,"a",{"$f":"IF(Suggested=\"Yes\",AB247,AH247)","v":438.9},"EA",{"$f":"+Instructions!$B$3","v":"N"},null,{"$f":"+Instructions!$C$22","v":0},{"$f":"ROUND($AB247*(1-X247)+0.004999,2)","v":438.9},null,"",438.9,0,438.9,{"$f":"(AH247-AD247)/AH247","v":0},null,3,{"$f":"SUM(AK247:AM247)+AF247","v":438.9},null,null,{"$f":"ROUND(AD247/(1-VLOOKUP(AG247,Group,2,FALSE)),2)","v":438.9},{"$f":"IF(VLOOKUP(AG247,Group,5,FALSE)=\"YES\",VLOOKUP(ROUND(ROUND(AK247,1)-AK247,2),Round,2,FALSE)+VLOOKUP(AG247,Group,6,FALSE),0)","v":0},{"$f":"IF(VLOOKUP(AG247,Group,7,FALSE)=\"\",0,ROUND(AK247-0.04999,1)-AK247+AN247)","v":0},{"$f":"IF(VLOOKUP(AG247,Group,7,FALSE)=\"\",\"\",VLOOKUP(AG247,Group,7,FALSE))","v":""},null,"X"]
[null,null,null,null,null,null,null,null,null,null,null,null,null,null,null,null,null,null,null,null,null,null,null,null,null,null,null,null,null,null,null,null,null,null,null,null,null,null,null,null,null,"X"]
[null,"Setting Materials",null,null,"5\" x 25'",null,"WP3425-JRT",null,null,"Joint Reinforcement Tape",null,null,null,null,null,null,null,"Stock",null,{"$f":"IF(Suggested=\"Yes\",AB249,AH249)","v":54.35},"EA",{"$f":"+Instructions!$B$3","v":"N"},null,{"$f":"+Instructions!$C$22","v":0},{"$f":"ROUND($AB249*(1-X249)+0.004999,2)","v":54.35},null,"",54.35,{"$f":"+X249","v":0},54.35,{"$f":"(AH249-AD249)/AH249","v":0},null,3,{"$f":"SUM(AK249:AM249)+AF249","v":54.35},null,null,{"$f":"ROUND(AD249/(1-VLOOKUP(AG249,Group,2,FALSE)),2)","v":54.35},{"$f":"IF(VLOOKUP(AG249,Group,5,FALSE)=\"YES\",VLOOKUP(ROUND(ROUND(AK249,1)-AK249,2),Round,2,FALSE)+VLOOKUP(AG249,Group,6,FALSE),0)","v":0},{"$f":"IF(VLOOKUP(AG249,Group,7,FALSE)=\"\",0,ROUND(AK249-0.04999,1)-AK249+AN249)","v":0},{"$f":"IF(VLOOKUP(AG249,Group,7,FALSE)=\"\",\"\",VLOOKUP(AG249,Group,7,FALSE))","v":""},null,"X"]
[null,"Setting Materials",null,null,"5\" x 50'",null,"WP3450-JRT",null,null,"Joint Reinforcement Tape",null,null,null,null,null,null,null,null,null,98.6,"EA",{"$f":"+Instructions!$B$3","v":"N"},null,{"$f":"+Instructions!$C$22","v":0},98.6,null,"",98.6,0,98.6,0,null,3,98.6,null,null,98.6,0,0,"",null,"X"]
[null,"Setting Materials",null,null,null,null,"WP3101-INT",null,null,"Internal Corner",null,null,null,null,null,null,null,"Stock",null,11.15,"EA",{"$f":"+Instructions!$B$3","v":"N"},null,{"$f":"+Instructions!$C$22","v":0},11.15,null,"",11.15,0,11.15,0,null,3,11.15,null,null,11.15,0,0,"",null,"X"]
[null,"Setting Materials",null,null,null,null,"WP3112-INT",null,null,"Internal Corner",null,null,null,null,null,null,"12 Pieces/SET",null,null,97.7,"EA",{"$f":"+Instructions!$B$3","v":"N"},null,{"$f":"+Instructions!$C$22","v":0},97.7,null,"",97.7,0,97.7,0,null,3,97.7,null,null,97.7,0,0,"",null,"X"]
[null,"Setting Materials",null,null,null,null,"WP3201-EXT",null,null,"External Corner",null,null,null,null,null,null,null,"Stock",null,11.15,"EA",{"$f":"+Instructions!$B$3","v":"N"},null,{"$f":"+Instructions!$C$22","v":0},11.15,null,"",11.15,0,11.15,0,null,3,11.15,null,null,11.15,0,0,"",null,"X"]
[null,"Setting Materials",null,null,null,null,"WP3212-EXT",null,null,"External Corner",null,null,null,null,null,null,"12 Pieces/SET",null,null,97.7,"EA",{"$f":"+Instructions!$B$3","v":"N"},null,{"$f":"+Instructions!$C$22","v":0},97.7,null,"",97.7,0,97.7,0,null,3,97.7,null,null,97.7,0,0,"",null,"X"]
[null,null,null,null,null,null,null,null,null,null,null,null,null,null,null,null,null,null,null,null,null,null,null,null,null,null,null,null,null,null,null,null,null,null,null,null,null,null,null,null,null,"X"]
[null,"Setting Materials",null,null,null,null,"WP3401-DRN",null,null,"Drain Gasket",null,null,null,null,null,null,null,null,null,{"$f":"IF(Suggested=\"Yes\",AB256,AH256)","v":25.55},"EA",{"$f":"+Instructions!$B$3","v":"N"},null,{"$f":"+Instructions!$C$22","v":0},{"$f":"ROUND($AB256*(1-X256)+0.004999,2)","v":25.55},null,"",25.55,{"$f":"+X256","v":0},25.55,{"$f":"(AH256-AD256)/AH256","v":0},null,3,{"$f":"SUM(AK256:AM256)+AF256","v":25.55},null,null,{"$f":"ROUND(AD256/(1-VLOOKUP(AG256,Group,2,FALSE)),2)","v":25.55},{"$f":"IF(VLOOKUP(AG256,Group,5,FALSE)=\"YES\",VLOOKUP(ROUND(ROUND(AK256,1)-AK256,2),Round,2,FALSE)+VLOOKUP(AG256,Group,6,FALSE),0)","v":0},{"$f":"IF(VLOOKUP(AG256,Group,7,FALSE)=\"\",0,ROUND(AK256-0.04999,1)-AK256+AN256)","v":0},{"$f":"IF(VLOOKUP(AG256,Group,7,FALSE)=\"\",\"\",VLOOKUP(AG256,Group,7,FALSE))","v":""},null,"X"]
[null,"Setting Materials",null,null,null,null,"WP5000-MXV",null,null,"Mixer Valve Gasket",null,null,null,null,null,null,null,null,null,{"$f":"IF(Suggested=\"Yes\",AB257,AH257)","v":21.25},"EA",{"$f":"+Instructions!$B$3","v":"N"},null,{"$f":"+Instructions!$C$22","v":0},{"$f":"ROUND($AB257*(1-X257)+0.004999,2)","v":21.25},null,"",21.25,0,21.25,{"$f":"(AH257-AD257)/AH257","v":0},null,3,{"$f":"SUM(AK257:AM257)+AF257","v":21.25},null,null,{"$f":"ROUND(AD257/(1-VLOOKUP(AG257,Group,2,FALSE)),2)","v":21.25},{"$f":"IF(VLOOKUP(AG257,Group,5,FALSE)=\"YES\",VLOOKUP(ROUND(ROUND(AK257,1)-AK257,2),Round,2,FALSE)+VLOOKUP(AG257,Group,6,FALSE),0)","v":0},{"$f":"IF(VLOOKUP(AG257,Group,7,FALSE)=\"\",0,ROUND(AK257-0.04999,1)-AK257+AN257)","v":0},{"$f":"IF(VLOOKUP(AG257,Group,7,FALSE)=\"\",\"\",VLOOKUP(AG257,Group,7,FALSE))","v":""},null,"X"]
[null,null,null,null,null,null,null,null,null,null,null,null,null,null,null,null,null,null,null,null,null,null,null,null,null,null,null,null,null,null,null,null,null,null,null,null,null,null,null,null,null,"X"]
[null,null,"continued on next page"]
[null,null,"Waterproofing Supplies - continued",null,null,null,null,null,null,null,null,null,null,null,null,null,null,null,"Item # Lookup:","AKTF",null,null,null,null,null,null,null,null,null,null,null,null,null,null,null,null,null,null,null,null,null,"X"]
[null,null,null,null,null,null,null,null,null,null,null,null,null,null,null,null,null,null,null,null,null,null,null,null,null,null,null,null,null,null,null,null,null,null,null,null,null,null,null,null,null,"X"]
[null,"Setting Materials",null,null,null,null,"WP3301-SUP",null,null,"Supply Gasket (Pipe Inlet)",null,null,null,null,null,null,null,null,null,{"$f":"IF(Suggested=\"Yes\",AB262,AH262)","v":12.6},"EA",{"$f":"+Instructions!$B$3","v":"N"},null,{"$f":"+Instructions!$C$22","v":0},{"$f":"ROUND($AB262*(1-X262)+0.004999,2)","v":12.6},null,"",12.6,0,12.6,{"$f":"(AH262-AD262)/AH262","v":0},null,3,{"$f":"SUM(AK262:AM262)+AF262","v":12.6},null,null,{"$f":"ROUND(AD262/(1-VLOOKUP(AG262,Group,2,FALSE)),2)","v":12.6},{"$f":"IF(VLOOKUP(AG262,Group,5,FALSE)=\"YES\",VLOOKUP(ROUND(ROUND(AK262,1)-AK262,2),Round,2,FALSE)+VLOOKUP(AG262,Group,6,FALSE),0)","v":0},{"$f":"IF(VLOOKUP(AG262,Group,7,FALSE)=\"\",0,ROUND(AK262-0.04999,1)-AK262+AN262)","v":0},{"$f":"IF(VLOOKUP(AG262,Group,7,FALSE)=\"\",\"\",VLOOKUP(AG262,Group,7,FALSE))","v":""},null,"X"]
[null,"Setting Materials",null,null,null,null,"WP3312-SUP",null,null,"Supply Gasket (Pipe Inlet)",null,null,null,null,null,null,"12 Pieces/SET",null,null,{"$f":"IF(Suggested=\"Yes\",AB263,AH263)","v":113.55},"EA",{"$f":"+Instructions!$B$3","v":"N"},null,{"$f":"+Instructions!$C$22","v":0},{"$f":"ROUND($AB263*(1-X263)+0.004999,2)","v":113.55},null,"",113.55,0,113.55,{"$f":"(AH263-AD263)/AH263","v":0},null,3,{"$f":"SUM(AK263:AM263)+AF263","v":113.55},null,null,{"$f":"ROUND(AD263/(1-VLOOKUP(AG263,Group,2,FALSE)),2)","v":113.55},{"$f":"IF(VLOOKUP(AG263,Group,5,FALSE)=\"YES\",VLOOKUP(ROUND(ROUND(AK263,1)-AK263,2),Round,2,FALSE)+VLOOKUP(AG263,Group,6,FALSE),0)","v":0},{"$f":"IF(VLOOKUP(AG263,Group,7,FALSE)=\"\",0,ROUND(AK263-0.04999,1)-AK263+AN263)","v":0},{"$f":"IF(VLOOKUP(AG263,Group,7,FALSE)=\"\",\"\",VLOOKUP(AG263,Group,7,FALSE))","v":""},null,"X"]
[null,null,null,null,null,null,null,null,null,null,null,null,null,null,null,null,null,null,null,null,null,null,null,null,null,null,null,null,null,null,null,null,null,null,null,null,null,null,null,null,null,"X"]
[null,"Setting Materials",null,null,"10 oz. Tube",null,"WP2101-TNK",null,null,"Tank/10 Polyurethane Construction Adhesive",null,null,null,null,null,null,null,null,null,{"$f":"IF(Suggested=\"Yes\",AB265,AH265)","v":11.85},"EA",{"$f":"+Instructions!$B$3","v":"N"},null,{"$f":"+Instructions!$C$22","v":0},{"$f":"ROUND($AB265*(1-X265)+0.004999,2)","v":11.85},null,"",11.85,{"$f":"+X265","v":0},11.85,{"$f":"(AH265-AD265)/AH265","v":0},null,3,{"$f":"SUM(AK265:AM265)+AF265","v":11.85},null,null,{"$f":"ROUND(AD265/(1-VLOOKUP(AG265,Group,2,FALSE)),2)","v":11.85},{"$f":"IF(VLOOKUP(AG265,Group,5,FALSE)=\"YES\",VLOOKUP(ROUND(ROUND(AK265,1)-AK265,2),Round,2,FALSE)+VLOOKUP(AG265,Group,6,FALSE),0)","v":0},{"$f":"IF(VLOOKUP(AG265,Group,7,FALSE)=\"\",0,ROUND(AK265-0.04999,1)-AK265+AN265)","v":0},{"$f":"IF(VLOOKUP(AG265,Group,7,FALSE)=\"\",\"\",VLOOKUP(AG265,Group,7,FALSE))","v":""},null,"X"]
[null,"Setting Materials",null,null,"10 oz. Tube",null,"WP2112-TNK",null,null,"Tank/10 Polyurethane Construction Adhesive",null,null,null,null,null,null,"(Carton of 12 Tubes)",null,null,{"$f":"IF(Suggested=\"Yes\",AB266,AH266)","v":102},"CTN",{"$f":"+Instructions!$B$3","v":"N"},null,{"$f":"+Instructions!$C$22","v":0},{"$f":"ROUND($AB266*(1-X266)+0.004999,2)","v":102},null,"",102,0,102,{"$f":"(AH266-AD266)/AH266","v":0},null,3,{"$f":"SUM(AK266:AM266)+AF266","v":102},null,null,{"$f":"ROUND(AD266/(1-VLOOKUP(AG266,Group,2,FALSE)),2)","v":102},{"$f":"IF(VLOOKUP(AG266,Group,5,FALSE)=\"YES\",VLOOKUP(ROUND(ROUND(AK266,1)-AK266,2),Round,2,FALSE)+VLOOKUP(AG266,Group,6,FALSE),0)","v":0},{"$f":"IF(VLOOKUP(AG266,Group,7,FALSE)=\"\",0,ROUND(AK266-0.04999,1)-AK266+AN266)","v":0},{"$f":"IF(VLOOKUP(AG266,Group,7,FALSE)=\"\",\"\",VLOOKUP(AG266,Group,7,FALSE))","v":""},null,"X"]
[null,"Setting Materials",null,null,"10 oz. Tube",null,"WP4010-PAC",null,null,"Painter's Acrylic Latex Caulk",null,null,null,null,null,null,"(Carton of 6 Tubes)",null,null,{"$f":"IF(Suggested=\"Yes\",AB267,AH267)","v":36.1},"CTN",{"$f":"+Instructions!$B$3","v":"N"},null,{"$f":"+Instructions!$C$22","v":0},{"$f":"ROUND($AB267*(1-X267)+0.004999,2)","v":36.1},null,"",36.1,0,36.1,{"$f":"(AH267-AD267)/AH267","v":0},null,3,{"$f":"SUM(AK267:AM267)+AF267","v":36.1},null,null,{"$f":"ROUND(AD267/(1-VLOOKUP(AG267,Group,2,FALSE)),2)","v":36.1},{"$f":"IF(VLOOKUP(AG267,Group,5,FALSE)=\"YES\",VLOOKUP(ROUND(ROUND(AK267,1)-AK267,2),Round,2,FALSE)+VLOOKUP(AG267,Group,6,FALSE),0)","v":0},{"$f":"IF(VLOOKUP(AG267,Group,7,FALSE)=\"\",0,ROUND(AK267-0.04999,1)-AK267+AN267)","v":0},{"$f":"IF(VLOOKUP(AG267,Group,7,FALSE)=\"\",\"\",VLOOKUP(AG267,Group,7,FALSE))","v":""},null,"X"]
[null,"Setting Materials",null,null,"10 oz. Tube",null,"WP2201-TNK",null,null,"Tank/Wall Adhesive",null,null,null,null,null,null,null,null,null,{"$f":"IF(Suggested=\"Yes\",AB268,AH268)","v":14.05},"EA",{"$f":"+Instructions!$B$3","v":"N"},null,{"$f":"+Instructions!$C$22","v":0},{"$f":"ROUND($AB268*(1-X268)+0.004999,2)","v":14.05},null,"YES",14.05,{"$f":"+X268","v":0},{"$f":"+Y268","v":14.05},{"$f":"(AH268-AD268)/AH268","v":0},null,3,{"$f":"SUM(AK268:AM268)+AF268","v":14.05},null,null,{"$f":"ROUND(AD268/(1-VLOOKUP(AG268,Group,2,FALSE)),2)","v":14.05},{"$f":"IF(VLOOKUP(AG268,Group,5,FALSE)=\"YES\",VLOOKUP(ROUND(ROUND(AK268,1)-AK268,2),Round,2,FALSE)+VLOOKUP(AG268,Group,6,FALSE),0)","v":0},{"$f":"IF(VLOOKUP(AG268,Group,7,FALSE)=\"\",0,ROUND(AK268-0.04999,1)-AK268+AN268)","v":0},{"$f":"IF(VLOOKUP(AG268,Group,7,FALSE)=\"\",\"\",VLOOKUP(AG268,Group,7,FALSE))","v":""},null,"X"]
[null,"Setting Materials",null,null,"10 oz. Tube",null,"WP2301-TNK",null,null,"Tank/Silicone Sealant",null,null,null,null,null,null,null,null,null,{"$f":"IF(Suggested=\"Yes\",AB269,AH269)","v":10},"EA",{"$f":"+Instructions!$B$3","v":"N"},null,{"$f":"+Instructions!$C$22","v":0},{"$f":"ROUND($AB269*(1-X269)+0.004999,2)","v":10},null,"YES",10,{"$f":"+X269","v":0},{"$f":"+Y269","v":10},{"$f":"(AH269-AD269)/AH269","v":0},null,3,{"$f":"SUM(AK269:AM269)+AF269","v":10},null,null,{"$f":"ROUND(AD269/(1-VLOOKUP(AG269,Group,2,FALSE)),2)","v":10},{"$f":"IF(VLOOKUP(AG269,Group,5,FALSE)=\"YES\",VLOOKUP(ROUND(ROUND(AK269,1)-AK269,2),Round,2,FALSE)+VLOOKUP(AG269,Group,6,FALSE),0)","v":0},{"$f":"IF(VLOOKUP(AG269,Group,7,FALSE)=\"\",0,ROUND(AK269-0.04999,1)-AK269+AN269)","v":0},{"$f":"IF(VLOOKUP(AG269,Group,7,FALSE)=\"\",\"\",VLOOKUP(AG269,Group,7,FALSE))","v":""},null,"X"]
[null,null,null,null,null,null,null,null,null,null,null,null,null,null,null,null,null,null,null,null,null,null,null,null,null,null,null,null,null,null,null,null,null,null,null,null,null,null,null,null,null,"X"]
[null,null,null,"Note:","a) Coverage per gallon equals approximately 60 SF and will allow for two coats.",null,null,null,null,null,null,null,null,null,null,null,null,null,null,null,null,null,null,null,null,null,null,null,null,null,null,null,null,null,null,null,null,null,null,null,null,"X"]
[null,null,null,null,null,null,null,null,null,null,null,null,null,null,null,null,null,null,null,null,null,null,null,null,null,null,null,null,null,null,null,null,null,null,null,null,null,null,null,null,null,"X"]
[null,null,"FastNICHE Shower Niches",null,null,null,null,null,null,null,null,null,null,null,null,null,null,null,"Item # Lookup:","AKFN",null,null,null,null,null,null,null,null,null,null,null,null,null,null,null,null,null,null,null,null,null,"X"]
[null,null,null,null,null,null,null,null,null,null,null,null,null,null,null,null,null,null,null,null,null,null,null,null,null,null,null,null,null,null,null,null,null,null,null,null,null,null,null,null,null,"X"]
[null,"Accessories",null,null,"27\" x 16\"",null,"27802-WH",null,null,null,"FastNICHE Double - White",null,null,null,null,null,null,null,null,{"$f":"IF(Suggested=\"Yes\",AB275,AH275)","v":165.25},"EA",{"$f":"+Instructions!$B$3","v":"N"},null,{"$f":"+Instructions!$C$22","v":0},{"$f":"ROUND($AB275*(1-X275)+0.004999,2)","v":165.25},null,"",165.25,{"$f":"+X275","v":0},165.25,{"$f":"(AH275-AD275)/AH275","v":0},null,4,{"$f":"SUM(AK275:AM275)+AF275","v":165.25},null,null,{"$f":"ROUND(AD275/(1-VLOOKUP(AG275,Group,2,FALSE)),2)","v":165.25},{"$f":"IF(VLOOKUP(AG275,Group,5,FALSE)=\"YES\",VLOOKUP(ROUND(ROUND(AK275,1)-AK275,2),Round,2,FALSE)+VLOOKUP(AG275,Group,6,FALSE),0)","v":0},{"$f":"IF(VLOOKUP(AG275,Group,7,FALSE)=\"\",0,ROUND(AK275-0.04999,1)-AK275+AN275)","v":0},{"$f":"IF(VLOOKUP(AG275,Group,7,FALSE)=\"\",\"\",VLOOKUP(AG275,Group,7,FALSE))","v":""},null,"X"]
[null,"Accessories",null,null,"39\" x 16\"",null,"27801-WH",null,null,null,"FastNICHE Triple - White",null,null,null,null,null,null,null,null,{"$f":"IF(Suggested=\"Yes\",AB276,AH276)","v":190.4},"EA",{"$f":"+Instructions!$B$3","v":"N"},null,{"$f":"+Instructions!$C$22","v":0},{"$f":"ROUND($AB276*(1-X276)+0.004999,2)","v":190.4},null,"",190.4,0,190.4,{"$f":"(AH276-AD276)/AH276","v":0},null,4,{"$f":"SUM(AK276:AM276)+AF276","v":190.4},null,null,{"$f":"ROUND(AD276/(1-VLOOKUP(AG276,Group,2,FALSE)),2)","v":190.4},{"$f":"IF(VLOOKUP(AG276,Group,5,FALSE)=\"YES\",VLOOKUP(ROUND(ROUND(AK276,1)-AK276,2),Round,2,FALSE)+VLOOKUP(AG276,Group,6,FALSE),0)","v":0},{"$f":"IF(VLOOKUP(AG276,Group,7,FALSE)=\"\",0,ROUND(AK276-0.04999,1)-AK276+AN276)","v":0},{"$f":"IF(VLOOKUP(AG276,Group,7,FALSE)=\"\",\"\",VLOOKUP(AG276,Group,7,FALSE))","v":""},null,"X"]
[null,"Accessories",null,null,"96\" x 14\"",null,"27800-BK",null,null,null,"FastNICHE Full - Black",null,null,null,null,null,null,null,null,{"$f":"IF(Suggested=\"Yes\",AB277,AH277)","v":547.29999999999995},"EA",{"$f":"+Instructions!$B$3","v":"N"},null,{"$f":"+Instructions!$C$22","v":0},{"$f":"ROUND($AB277*(1-X277)+0.004999,2)","v":547.29999999999995},null,"",547.29999999999995,0,547.29999999999995,{"$f":"(AH277-AD277)/AH277","v":0},null,4,{"$f":"SUM(AK277:AM277)+AF277","v":547.29999999999995},null,null,{"$f":"ROUND(AD277/(1-VLOOKUP(AG277,Group,2,FALSE)),2)","v":547.29999999999995},{"$f":"IF(VLOOKUP(AG277,Group,5,FALSE)=\"YES\",VLOOKUP(ROUND(ROUND(AK277,1)-AK277,2),Round,2,FALSE)+VLOOKUP(AG277,Group,6,FALSE),0)","v":0},{"$f":"IF(VLOOKUP(AG277,Group,7,FALSE)=\"\",0,ROUND(AK277-0.04999,1)-AK277+AN277)","v":0},{"$f":"IF(VLOOKUP(AG277,Group,7,FALSE)=\"\",\"\",VLOOKUP(AG277,Group,7,FALSE))","v":""},null,"X"]
[null,"Accessories",null,null,"96\" x 14\"",null,"27800-WH",null,null,null,"FastNICHE Full - White",null,null,null,null,null,null,null,null,{"$f":"IF(Suggested=\"Yes\",AB278,AH278)","v":547.29999999999995},"EA",{"$f":"+Instructions!$B$3","v":"N"},null,{"$f":"+Instructions!$C$22","v":0},{"$f":"ROUND($AB278*(1-X278)+0.004999,2)","v":547.29999999999995},null,"",547.29999999999995,0,547.29999999999995,{"$f":"(AH278-AD278)/AH278","v":0},null,4,{"$f":"SUM(AK278:AM278)+AF278","v":547.29999999999995},null,null,{"$f":"ROUND(AD278/(1-VLOOKUP(AG278,Group,2,FALSE)),2)","v":547.29999999999995},{"$f":"IF(VLOOKUP(AG278,Group,5,FALSE)=\"YES\",VLOOKUP(ROUND(ROUND(AK278,1)-AK278,2),Round,2,FALSE)+VLOOKUP(AG278,Group,6,FALSE),0)","v":0},{"$f":"IF(VLOOKUP(AG278,Group,7,FALSE)=\"\",0,ROUND(AK278-0.04999,1)-AK278+AN278)","v":0},{"$f":"IF(VLOOKUP(AG278,Group,7,FALSE)=\"\",\"\",VLOOKUP(AG278,Group,7,FALSE))","v":""},null,"X"]
[null,null,null,null,null,null,null,null,null,null,null,null,null,null,null,null,null,null,null,null,null,null,null,null,null,null,null,null,null,null,null,null,null,null,null,null,null,null,null,null,null,"X"]
[null,null,null,"Notes:","Quick and easy to install, FastNICHE shower niches are constructed from sheet-molded compound plastic (SMC) for strength and durability."]
[null,null,null,null,"All sizes are available in a glossy white finish with the FastNICHE Full also offered in matte black.  These shower niches are supplied in one",null,null,null,null,null,null,null,null,null,null,null,null,null,null,null,null,null,null,null,null,null,null,null,null,null,null,null,null,null,null,null,null,null,null,null,null,"X"]
[null,null,null,null,"structural piece that is between 3-1/2\"-3-3/4\" deep and can be simply recessed into the wall.  Once installed, FastNICHE shower niches do not",null,null,null,null,null,null,null,null,null,null,null,null,null,null,null,null,null,null,null,null,null,null,null,null,null,null,null,null,null,null,null,null,null,null,null,null,"X"]
[null,null,null,null,"require any additional finishing, meaning you don’t need to factor in the extra time or cost of covering the niche in tile or with wall panels.",null,null,null,null,null,null,null,null,null,null,null,null,null,null,null,null,null,null,null,null,null,null,null,null,null,null,null,null,null,null,null,null,null,null,null,null,"X"]
[]
[null,null,"Glass Shower Screens",null,null,null,null,null,null,null,null,null,null,null,null,null,null,null,"Item # Lookup:","AKGS",null,null,null,null,null,null,null,null,null,null,null,null,null,null,null,null,null,null,null,null,null,"X"]
[null,null,null,null,null,null,null,null,null,null,null,null,null,null,null,null,null,null,null,null,null,null,null,null,null,null,null,null,null,null,null,null,null,null,null,null,null,null,null,null,null,"X"]
[null,"Accessories",null,null,"27-1/2\" x 76-3/4\"",null,"LB00215",null,"(old #LB00105)",null,"Glass Screen - Narrow Wall Mounted",null,null,null,null,null,null,null,"a",{"$f":"IF(Suggested=\"Yes\",AB287,AH287)","v":647.20000000000005},"EA",{"$f":"+Instructions!$B$3","v":"N"},null,{"$f":"+Instructions!$C$22","v":0},{"$f":"ROUND($AB287*(1-X287)+0.004999,2)","v":647.20000000000005},null,"",647.20000000000005,{"$f":"+X287","v":0},647.20000000000005,{"$f":"(AH287-AD287)/AH287","v":0},null,4,{"$f":"SUM(AK287:AM287)+AF287","v":647.20000000000005},null,null,{"$f":"ROUND(AD287/(1-VLOOKUP(AG287,Group,2,FALSE)),2)","v":647.20000000000005},{"$f":"IF(VLOOKUP(AG287,Group,5,FALSE)=\"YES\",VLOOKUP(ROUND(ROUND(AK287,1)-AK287,2),Round,2,FALSE)+VLOOKUP(AG287,Group,6,FALSE),0)","v":0},{"$f":"IF(VLOOKUP(AG287,Group,7,FALSE)=\"\",0,ROUND(AK287-0.04999,1)-AK287+AN287)","v":0},{"$f":"IF(VLOOKUP(AG287,Group,7,FALSE)=\"\",\"\",VLOOKUP(AG287,Group,7,FALSE))","v":""},null,"X"]
[null,"Accessories",null,null,"31-1/2\" x 76-3/4\"",null,"LB00216",null,"(old #LB00106)",null,"Glass Screen - Medium Wall Mounted",null,null,null,null,null,null,null,"a",675.9,"EA",{"$f":"+Instructions!$B$3","v":"N"},null,{"$f":"+Instructions!$C$22","v":0},675.9,null,"",675.9,0,675.9,0,null,4,675.9,null,null,675.9,0,0,"",null,"X"]
[null,"Accessories",null,null,"35-1/2\" x 76-3/4\"",null,"LB00217",null,"(old #LB00107)",null,"Glass Screen - Wide Wall Mounted",null,null,null,null,null,null,null,"a",753.4,"EA",{"$f":"+Instructions!$B$3","v":"N"},null,{"$f":"+Instructions!$C$22","v":0},753.4,null,"",753.4,0,753.4,0,null,4,753.4,null,null,753.4,0,0,"",null,"X"]
[null,"Accessories",null,null,"39-3/8\" x 76-3/4\"",null,"LB00218",null,"(old #LB00108)",null,"Glass Screen - Extra-Wide Wall Mounted",null,null,null,null,null,null,null,"a",789.65,"EA",{"$f":"+Instructions!$B$3","v":"N"},null,{"$f":"+Instructions!$C$22","v":0},789.65,null,"",789.65,0,789.65,0,null,4,789.65,null,null,789.65,0,0,"",null,"X"]
[null,null,null,null,null,null,null,null,null,null,null,null,null,null,null,null,null,null,null,null,null,null,null,null,null,null,null,null,null,null,null,null,null,null,null,null,null,null,null,null,null,"X"]
[null,"Accessories",null,null,"31-1/2\" x 76-3/4\"",null,"LB00216BK",null,null,null,"Glass Screen - Medium Wall Mounted",null,null,null,null," ",null,null,"b",{"$f":"IF(Suggested=\"Yes\",AB292,AH292)","v":764.25},"EA",{"$f":"+Instructions!$B$3","v":"N"},null,{"$f":"+Instructions!$C$22","v":0},{"$f":"ROUND($AB292*(1-X292)+0.004999,2)","v":764.25},null,"",764.25,{"$f":"+X292","v":0},{"$f":"+Y292","v":764.25},{"$f":"(AH292-AD292)/AH292","v":0},null,4,{"$f":"SUM(AK292:AM292)+AF292","v":764.25},null,null,{"$f":"ROUND(AD292/(1-VLOOKUP(AG292,Group,2,FALSE)),2)","v":764.25},{"$f":"IF(VLOOKUP(AG292,Group,5,FALSE)=\"YES\",VLOOKUP(ROUND(ROUND(AK292,1)-AK292,2),Round,2,FALSE)+VLOOKUP(AG292,Group,6,FALSE),0)","v":0},{"$f":"IF(VLOOKUP(AG292,Group,7,FALSE)=\"\",0,ROUND(AK292-0.04999,1)-AK292+AN292)","v":0},{"$f":"IF(VLOOKUP(AG292,Group,7,FALSE)=\"\",\"\",VLOOKUP(AG292,Group,7,FALSE))","v":""},null,"X"]
[null,"Accessories",null,null,"35-1/2\" x 76-3/4\"",null,"LB00217BK",null,null,null,"Glass Screen - Wide Wall Mounted",null,null,null,null,null,null,null,"b",{"$f":"IF(Suggested=\"Yes\",AB293,AH293)","v":800.5},"EA",{"$f":"+Instructions!$B$3","v":"N"},null,{"$f":"+Instructions!$C$22","v":0},{"$f":"ROUND($AB293*(1-X293)+0.004999,2)","v":800.5},null,"",800.5,{"$f":"+X293","v":0},{"$f":"+Y293","v":800.5},{"$f":"(AH293-AD293)/AH293","v":0},null,4,{"$f":"SUM(AK293:AM293)+AF293","v":800.5},null,null,{"$f":"ROUND(AD293/(1-VLOOKUP(AG293,Group,2,FALSE)),2)","v":800.5},{"$f":"IF(VLOOKUP(AG293,Group,5,FALSE)=\"YES\",VLOOKUP(ROUND(ROUND(AK293,1)-AK293,2),Round,2,FALSE)+VLOOKUP(AG293,Group,6,FALSE),0)","v":0},{"$f":"IF(VLOOKUP(AG293,Group,7,FALSE)=\"\",0,ROUND(AK293-0.04999,1)-AK293+AN293)","v":0},{"$f":"IF(VLOOKUP(AG293,Group,7,FALSE)=\"\",\"\",VLOOKUP(AG293,Group,7,FALSE))","v":""},null,"X"]
[null,"Accessories",null,null,"39-1/2\" x 76-3/4\"",null,"LB00218BK",null,null,null,"Glass Screen - Extra-Wide Wall Mounted",null,null,null,null,null,null,null,"b",962.25,"EA",{"$f":"+Instructions!$B$3","v":"N"},null,{"$f":"+Instructions!$C$22","v":0},962.25,null,"YES",962.25,0,962.25,0,null,4,962.25,null,null,962.25,0,0,"",null,"X"]
[null,null,null,null,null,null,null,null,null,null,null,null,null,null,null,null,null,null,null,null,null,null,null,null,null,null,null,null,null,null,null,null,null,null,null,null,null,null,null,null,null,"X"]
[null,"Accessories",null,null,"27-1/2\" long",null,"LB00123",null,null,null,"Tie Bar - Short",null,null,null,null,null,null,null,null,{"$f":"IF(Suggested=\"Yes\",AB296,AH296)","v":73.3},"EA",{"$f":"+Instructions!$B$3","v":"N"},null,{"$f":"+Instructions!$C$22","v":0},{"$f":"ROUND($AB296*(1-X296)+0.004999,2)","v":73.3},null,"",73.3,{"$f":"+X296","v":0},73.3,{"$f":"(AH296-AD296)/AH296","v":0},null,4,{"$f":"SUM(AK296:AM296)+AF296","v":73.3},null,null,{"$f":"ROUND(AD296/(1-VLOOKUP(AG296,Group,2,FALSE)),2)","v":73.3},{"$f":"IF(VLOOKUP(AG296,Group,5,FALSE)=\"YES\",VLOOKUP(ROUND(ROUND(AK296,1)-AK296,2),Round,2,FALSE)+VLOOKUP(AG296,Group,6,FALSE),0)","v":0},{"$f":"IF(VLOOKUP(AG296,Group,7,FALSE)=\"\",0,ROUND(AK296-0.04999,1)-AK296+AN296)","v":0},{"$f":"IF(VLOOKUP(AG296,Group,7,FALSE)=\"\",\"\",VLOOKUP(AG296,Group,7,FALSE))","v":""},null,"X"]
[null,"Accessories",null,null,"31-1/2\" long",null,"LB00124",null,null,null,"Tie Bar - Medium",null,null,null,null,null,null,null,null,{"$f":"IF(Suggested=\"Yes\",AB297,AH297)","v":100.05},"EA",{"$f":"+Instructions!$B$3","v":"N"},null,{"$f":"+Instructions!$C$22","v":0},{"$f":"ROUND($AB297*(1-X297)+0.004999,2)","v":100.05},null,"",100.05,0,100.05,{"$f":"(AH297-AD297)/AH297","v":0},null,4,{"$f":"SUM(AK297:AM297)+AF297","v":100.05},null,null,{"$f":"ROUND(AD297/(1-VLOOKUP(AG297,Group,2,FALSE)),2)","v":100.05},{"$f":"IF(VLOOKUP(AG297,Group,5,FALSE)=\"YES\",VLOOKUP(ROUND(ROUND(AK297,1)-AK297,2),Round,2,FALSE)+VLOOKUP(AG297,Group,6,FALSE),0)","v":0},{"$f":"IF(VLOOKUP(AG297,Group,7,FALSE)=\"\",0,ROUND(AK297-0.04999,1)-AK297+AN297)","v":0},{"$f":"IF(VLOOKUP(AG297,Group,7,FALSE)=\"\",\"\",VLOOKUP(AG297,Group,7,FALSE))","v":""},null,"X"]
[null,"Accessories",null,null,"35-1/2\" long",null,"LB00125",null,null,null,"Tie Bar - Long",null,null,null,null,null,null,null,null,{"$f":"IF(Suggested=\"Yes\",AB298,AH298)","v":113.8},"EA",{"$f":"+Instructions!$B$3","v":"N"},null,{"$f":"+Instructions!$C$22","v":0},{"$f":"ROUND($AB298*(1-X298)+0.004999,2)","v":113.8},null,"",113.8,0,113.8,{"$f":"(AH298-AD298)/AH298","v":0},null,4,{"$f":"SUM(AK298:AM298)+AF298","v":113.8},null,null,{"$f":"ROUND(AD298/(1-VLOOKUP(AG298,Group,2,FALSE)),2)","v":113.8},{"$f":"IF(VLOOKUP(AG298,Group,5,FALSE)=\"YES\",VLOOKUP(ROUND(ROUND(AK298,1)-AK298,2),Round,2,FALSE)+VLOOKUP(AG298,Group,6,FALSE),0)","v":0},{"$f":"IF(VLOOKUP(AG298,Group,7,FALSE)=\"\",0,ROUND(AK298-0.04999,1)-AK298+AN298)","v":0},{"$f":"IF(VLOOKUP(AG298,Group,7,FALSE)=\"\",\"\",VLOOKUP(AG298,Group,7,FALSE))","v":""},null,"X"]
[null,null,null,null,null,null,null,null,null,null,null,null,null,null,null,null,null,null,null,null,null,null,null,null,null,null,null,null,null,null,null,null,null,null,null,null,null,null,null,null,null,"X"]
[null,null,null,"Notes:","All wall-mounted screens include an end post, wall channel, leveling hardware, and one wall brace.  Made of 1/4\"-thick tempered glass"]
[null,null,null,null,"bordered by polished chrome or matte black finish.  Screens may be formed to make different configurations.  A gap from glass to floor"]
[null,null,null,null,"makes easy cleaning, though clear plastic seals are included if you prefer a complete enclosure."]
[null,null,null,null,"a) Has Polished Chrome finished frame/border.",null,null,null,null,null,"b) Has Matte Black finished frame/border."]
[]
[null,null,"Glass Shower Screens & Deflector Panels",null,null,null,null,null,null,null,null,null,null,null,null,null,null,null,"Item # Lookup:","AKGS",null,null,null,null,null,null,null,null,null,null,null,null,null,null,null,null,null,null,null,null,null,"X"]
[null,null,null,null,null,null,null,null,null,null,null,null,null,null,null,null,null,null,null,null,null,null,null,null,null,null,null,null,null,null,null,null,null,null,null,null,null,null,null,null,null,"X"]
[null,null,null,null,null,null,null,null,null,"Panel Width",null,"Screen Width",null,"Height"]
[null,null,null,null,null,null,null,null,null,null,null,null,null,null,null,null,null,null,null,null,null,null,null,null,null,null,null,null,null,null,null,null,null,null,null,null,null,null,null,null,null,"X"]
[null,"Accessories",null,null,null,null,27019,null,null,"13-3/4\"",null,"23-2/3\"",null,"74-3/4\"",null,null,null,null,"a",{"$f":"IF(Suggested=\"Yes\",AB309,AH309)","v":824.75},"EA",{"$f":"+Instructions!$B$3","v":"N"},null,{"$f":"+Instructions!$C$22","v":0},{"$f":"ROUND($AB309*(1-X309)+0.004999,2)","v":824.75},null,"YES",824.75,{"$f":"+X309","v":0},824.75,{"$f":"(AH309-AD309)/AH309","v":0},null,4,{"$f":"SUM(AK309:AM309)+AF309","v":824.75},null,null,{"$f":"ROUND(AD309/(1-VLOOKUP(AG309,Group,2,FALSE)),2)","v":824.75},{"$f":"IF(VLOOKUP(AG309,Group,5,FALSE)=\"YES\",VLOOKUP(ROUND(ROUND(AK309,1)-AK309,2),Round,2,FALSE)+VLOOKUP(AG309,Group,6,FALSE),0)","v":0},{"$f":"IF(VLOOKUP(AG309,Group,7,FALSE)=\"\",0,ROUND(AK309-0.04999,1)-AK309+AN309)","v":0},{"$f":"IF(VLOOKUP(AG309,Group,7,FALSE)=\"\",\"\",VLOOKUP(AG309,Group,7,FALSE))","v":""},null,"X"]
[null,"Accessories",null,null,null,null,27020,null,null,"13-3/4\"",null,"27-1/2\"",null,"74-3/4\"",null,null,null,null,"a",764.1,"EA",{"$f":"+Instructions!$B$3","v":"N"},null,{"$f":"+Instructions!$C$22","v":0},764.1,null,"YES",764.1,0,764.1,0,null,4,764.1,null,null,764.1,0,0,"",null,"X"]
[null,"Accessories",null,null,null,null,27021,null,null,"13-3/4\"",null,"31-1/2\"",null,"74-3/4\"",null,null,null,null,"a",885.4,"EA",{"$f":"+Instructions!$B$3","v":"N"},null,{"$f":"+Instructions!$C$22","v":0},885.4,null,"",885.4,0,885.4,0,null,4,885.4,null,null,885.4,0,0,"",null,"X"]
[null,"Accessories",null,null,null,null,27022,null,null,"13-3/4\"",null,"35-1/2\"",null,"74-3/4\"",null,null,null,null,"a",933.25,"EA",{"$f":"+Instructions!$B$3","v":"N"},null,{"$f":"+Instructions!$C$22","v":0},933.25,null,"",933.25,0,933.25,0,null,4,933.25,null,null,933.25,0,0,"",null,"X"]
[null,"Accessories",null,null,null,null,27028,null,null,"13-3/4\"",null,"39-1/3\"",null,"74-3/4\"",null,null,null,null,"a",981.1,"EA",{"$f":"+Instructions!$B$3","v":"N"},null,{"$f":"+Instructions!$C$22","v":0},981.1,null,"",981.1,0,981.1,0,null,4,981.1,null,null,981.1,0,0,"",null,"X"]
[null,"Accessories",null,null,null,null,"27018BK",null,null,"15-3/4\"",null,"31-1/2\"",null,"74-3/4\"",null,null,null,null,"b",959.8,"EA",{"$f":"+Instructions!$B$3","v":"N"},null,{"$f":"+Instructions!$C$22","v":0},959.8,null,"",959.8,0,959.8,0,null,4,959.8,null,null,959.8,0,0,"",null,"X"]
[null,"Accessories",null,null,null,null,"27031BK",null,null,"15-3/4\"",null,"35-1/2\"",null,"74-3/4\"",null,null,null,null,"b",1005.7,"EA",{"$f":"+Instructions!$B$3","v":"N"},null,{"$f":"+Instructions!$C$22","v":0},1005.7,null,"",1005.7,0,1005.7,0,null,4,1005.7,null,null,1005.7,0,0,"",null,"X"]
[null,"Accessories",null,null,null,null,"27017BK",null,null,"15-3/4\"",null,"39-1/3\"",null,"74-3/4\"",null,null,null,null,"b",1104.3,"EA",{"$f":"+Instructions!$B$3","v":"N"},null,{"$f":"+Instructions!$C$22","v":0},1104.3,null,"",1104.3,0,1104.3,0,null,4,1104.3,null,null,1104.3,0,0,"",null,"X"]
[null,null,null,null,null,null,null,null,null,null,null,null,null,null,null,null,null,null,null,null,null,null,null,null,null,null,null,null,null,null,null,null,null,null,null,null,null,null,null,null,null,"X"]
[null,null,null,"Notes:","All wall-mounted screens include an end post, wall channel, leveling hardware, and one wall brace."]
[null,null,null,null,"a) Has Polished Chrome finished frame/border.",null,null,null,null,null,"b) Has Matte Black finished frame/border."]
[]
[null,null,"Bendy Rails",null,null,null,null,null,null,null,null,null," ",null,null,null,null,null,"Item # Lookup:","AKBR",null,null,null,null,null,null,null,null,null,null,null,null,null,null,null,null,null,null,null,null,null,"X"]
[null,null,null,null,null,null,null,null,null,null,null,null,null,null,null,null,null,null,null,null,null,null,null,null,null,null,null,null,null,null,null,null,null,null,null,null,null,null,null,null,null,"X"]
[null,"Accessories",null,null,"78\" long",null,24033,null,null,null,"Bendy Rail - Short/White",null,null,null,null,null,null,null,null,{"$f":"IF(Suggested=\"Yes\",AB323,AH323)","v":108.2},"EA",{"$f":"+Instructions!$B$3","v":"N"},null,{"$f":"+Instructions!$C$22","v":0},{"$f":"ROUND($AB323*(1-X323)+0.004999,2)","v":108.2},null,"",108.2,{"$f":"+X323","v":0},108.2,{"$f":"(AH323-AD323)/AH323","v":0},null,4,{"$f":"SUM(AK323:AM323)+AF323","v":108.2},null,null,{"$f":"ROUND(AD323/(1-VLOOKUP(AG323,Group,2,FALSE)),2)","v":108.2},{"$f":"IF(VLOOKUP(AG323,Group,5,FALSE)=\"YES\",VLOOKUP(ROUND(ROUND(AK323,1)-AK323,2),Round,2,FALSE)+VLOOKUP(AG323,Group,6,FALSE),0)","v":0},{"$f":"IF(VLOOKUP(AG323,Group,7,FALSE)=\"\",0,ROUND(AK323-0.04999,1)-AK323+AN323)","v":0},{"$f":"IF(VLOOKUP(AG323,Group,7,FALSE)=\"\",\"\",VLOOKUP(AG323,Group,7,FALSE))","v":""},null,"X"]
[null,"Accessories",null,null,"98\" long",null,24034,null,null,null,"Bendy Rail - Medium/White",null,null,null,null,null,null,null,null,{"$f":"IF(Suggested=\"Yes\",AB324,AH324)","v":125.35},"EA",{"$f":"+Instructions!$B$3","v":"N"},null,{"$f":"+Instructions!$C$22","v":0},{"$f":"ROUND($AB324*(1-X324)+0.004999,2)","v":125.35},null,"",125.35,0,125.35,{"$f":"(AH324-AD324)/AH324","v":0},null,4,{"$f":"SUM(AK324:AM324)+AF324","v":125.35},null,null,{"$f":"ROUND(AD324/(1-VLOOKUP(AG324,Group,2,FALSE)),2)","v":125.35},{"$f":"IF(VLOOKUP(AG324,Group,5,FALSE)=\"YES\",VLOOKUP(ROUND(ROUND(AK324,1)-AK324,2),Round,2,FALSE)+VLOOKUP(AG324,Group,6,FALSE),0)","v":0},{"$f":"IF(VLOOKUP(AG324,Group,7,FALSE)=\"\",0,ROUND(AK324-0.04999,1)-AK324+AN324)","v":0},{"$f":"IF(VLOOKUP(AG324,Group,7,FALSE)=\"\",\"\",VLOOKUP(AG324,Group,7,FALSE))","v":""},null,"X"]
[null,"Accessories",null,null,"118\" long",null,24044,null,null,null,"Bendy Rail - Long/White",null,null,null,null,null,null,null,null,{"$f":"IF(Suggested=\"Yes\",AB325,AH325)","v":142.55000000000001},"EA",{"$f":"+Instructions!$B$3","v":"N"},null,{"$f":"+Instructions!$C$22","v":0},{"$f":"ROUND($AB325*(1-X325)+0.004999,2)","v":142.55000000000001},null,"",142.55000000000001,0,142.55000000000001,{"$f":"(AH325-AD325)/AH325","v":0},null,4,{"$f":"SUM(AK325:AM325)+AF325","v":142.55000000000001},null,null,{"$f":"ROUND(AD325/(1-VLOOKUP(AG325,Group,2,FALSE)),2)","v":142.55000000000001},{"$f":"IF(VLOOKUP(AG325,Group,5,FALSE)=\"YES\",VLOOKUP(ROUND(ROUND(AK325,1)-AK325,2),Round,2,FALSE)+VLOOKUP(AG325,Group,6,FALSE),0)","v":0},{"$f":"IF(VLOOKUP(AG325,Group,7,FALSE)=\"\",0,ROUND(AK325-0.04999,1)-AK325+AN325)","v":0},{"$f":"IF(VLOOKUP(AG325,Group,7,FALSE)=\"\",\"\",VLOOKUP(AG325,Group,7,FALSE))","v":""},null,"X"]
[null,null,null,null,null,null,null,null,null,null,null,null,null,null,null,null,null,null,null,null,null,null,null,null,null,null,null,null,null,null,null,null,null,null,null,null,null,null,null,null,null,"X"]
[null,null,"Breathable Shower Curtains",null,null,null,null,null,null,null,null,null," ",null,null,null,null,null,"Item # Lookup:","AKCN",null,null,null,null,null,null,null,null,null,null,null,null,null,null,null,null,null,null,null,null,null,"X"]
[null,null,null,null,null,null,null,null,null,null,null,null,null,null,null,null,null,null,null,null,null,null,null,null,null,null,null,null,null,null,null,null,null,null,null,null,null,null,null,null,null,"X"]
[null,"Accessories",null,null,"70-3/4\" x 74-3/4\"",null,24077,null,null,null,"Breathable Curtain - White",null,null,null,null,null,null,null,null,{"$f":"IF(Suggested=\"Yes\",AB329,AH329)","v":61.15},"EA",{"$f":"+Instructions!$B$3","v":"N"},null,{"$f":"+Instructions!$C$22","v":0},{"$f":"ROUND($AB329*(1-X329)+0.004999,2)","v":61.15},null,"",61.15,{"$f":"+X329","v":0},61.15,{"$f":"(AH329-AD329)/AH329","v":0},null,4,{"$f":"SUM(AK329:AM329)+AF329","v":61.15},null,null,{"$f":"ROUND(AD329/(1-VLOOKUP(AG329,Group,2,FALSE)),2)","v":61.15},{"$f":"IF(VLOOKUP(AG329,Group,5,FALSE)=\"YES\",VLOOKUP(ROUND(ROUND(AK329,1)-AK329,2),Round,2,FALSE)+VLOOKUP(AG329,Group,6,FALSE),0)","v":0},{"$f":"IF(VLOOKUP(AG329,Group,7,FALSE)=\"\",0,ROUND(AK329-0.04999,1)-AK329+AN329)","v":0},{"$f":"IF(VLOOKUP(AG329,Group,7,FALSE)=\"\",\"\",VLOOKUP(AG329,Group,7,FALSE))","v":""},null,"X"]
[null,"Accessories",null,null,"70-3/4\" x 78-3/4\"",null,24078,null,null,null,"Breathable Curtain - White",null,null,null,null,null,null,null,null,{"$f":"IF(Suggested=\"Yes\",AB330,AH330)","v":66.8},"EA",{"$f":"+Instructions!$B$3","v":"N"},null,{"$f":"+Instructions!$C$22","v":0},{"$f":"ROUND($AB330*(1-X330)+0.004999,2)","v":66.8},null,"",66.8,0,66.8,{"$f":"(AH330-AD330)/AH330","v":0},null,4,{"$f":"SUM(AK330:AM330)+AF330","v":66.8},null,null,{"$f":"ROUND(AD330/(1-VLOOKUP(AG330,Group,2,FALSE)),2)","v":66.8},{"$f":"IF(VLOOKUP(AG330,Group,5,FALSE)=\"YES\",VLOOKUP(ROUND(ROUND(AK330,1)-AK330,2),Round,2,FALSE)+VLOOKUP(AG330,Group,6,FALSE),0)","v":0},{"$f":"IF(VLOOKUP(AG330,Group,7,FALSE)=\"\",0,ROUND(AK330-0.04999,1)-AK330+AN330)","v":0},{"$f":"IF(VLOOKUP(AG330,Group,7,FALSE)=\"\",\"\",VLOOKUP(AG330,Group,7,FALSE))","v":""},null,"X"]
[null,"Accessories",null,null,"70-3/4\" x 82-1/2\"",null,24079,null,null,null,"Breathable Curtain - White",null,null,null,null,null,null,null,null,{"$f":"IF(Suggested=\"Yes\",AB331,AH331)","v":66.8},"EA",{"$f":"+Instructions!$B$3","v":"N"},null,{"$f":"+Instructions!$C$22","v":0},{"$f":"ROUND($AB331*(1-X331)+0.004999,2)","v":66.8},null,"",66.8,0,66.8,{"$f":"(AH331-AD331)/AH331","v":0},null,4,{"$f":"SUM(AK331:AM331)+AF331","v":66.8},null,null,{"$f":"ROUND(AD331/(1-VLOOKUP(AG331,Group,2,FALSE)),2)","v":66.8},{"$f":"IF(VLOOKUP(AG331,Group,5,FALSE)=\"YES\",VLOOKUP(ROUND(ROUND(AK331,1)-AK331,2),Round,2,FALSE)+VLOOKUP(AG331,Group,6,FALSE),0)","v":0},{"$f":"IF(VLOOKUP(AG331,Group,7,FALSE)=\"\",0,ROUND(AK331-0.04999,1)-AK331+AN331)","v":0},{"$f":"IF(VLOOKUP(AG331,Group,7,FALSE)=\"\",\"\",VLOOKUP(AG331,Group,7,FALSE))","v":""},null,"X"]
[null,null,null,null,null,null,null,null,null,null,null,null,null,null,null,null,null,null,null,null,null,null,null,null,null,null,null,null,null,null,null,null,null,null,null,null,null,null,null,null,null,"X"]
[null,"Accessories",null,null,null,null,24092,null,null,null,"Hook & Glide Connectors - White",null,null,null,null,null,"11 Pieces/PACK",null,null,{"$f":"IF(Suggested=\"Yes\",AB333,AH333)","v":11.55},"EA",{"$f":"+Instructions!$B$3","v":"N"},null,{"$f":"+Instructions!$C$22","v":0},{"$f":"ROUND($AB333*(1-X333)+0.004999,2)","v":11.55},null,"",11.55,{"$f":"+X333","v":0},{"$f":"+Y333","v":11.55},{"$f":"(AH333-AD333)/AH333","v":0},null,4,{"$f":"SUM(AK333:AM333)+AF333","v":11.55},null,null,{"$f":"ROUND(AD333/(1-VLOOKUP(AG333,Group,2,FALSE)),2)","v":11.55},{"$f":"IF(VLOOKUP(AG333,Group,5,FALSE)=\"YES\",VLOOKUP(ROUND(ROUND(AK333,1)-AK333,2),Round,2,FALSE)+VLOOKUP(AG333,Group,6,FALSE),0)","v":0},{"$f":"IF(VLOOKUP(AG333,Group,7,FALSE)=\"\",0,ROUND(AK333-0.04999,1)-AK333+AN333)","v":0},{"$f":"IF(VLOOKUP(AG333,Group,7,FALSE)=\"\",\"\",VLOOKUP(AG333,Group,7,FALSE))","v":""},null,"X"]
[]
[null,null,"Caregiver Doors",null,null,null,null,null," ",null,null,null,null,null,null,null,null,null,null,null,null,null,null,null,null,null,null,null,null,null,null,null,null,null,null,null,null,null,null,null,null,"X"]
[null,null,null,null,null,null,null,null,null,null,null,null,null,null,null,null,null,null,null,null,null,null,null,null,null,null,null,null,null,null,null,null,null,null,null,null,null,null,null,null,null,"X"]
[null,null,null,"Fits Alcoves that are:",null,null,null,null,null,null,null,null,null,null,null,null,null,null,"Item # Lookup:","AKCD",null,null,null,null,null,null,null,null,null,null,null,null,null,null,null,null,null,null,null,null,null,"X"]
[null,"Accessories",null,null,"46-1/4\" to 47-3/4\" wide",null,91110,null,null,null,"Caregiver Door - White w/Gray Trim",null,null,null,null,null,null,null,"a",{"$f":"IF(Suggested=\"Yes\",AB338,AH338)","v":1244.25},"EA",{"$f":"+Instructions!$B$3","v":"N"},null,{"$f":"+Instructions!$C$22","v":0},{"$f":"ROUND($AB338*(1-X338)+0.004999,2)","v":1244.25},null,"",1244.25,{"$f":"+X338","v":0},1244.25,{"$f":"(AH338-AD338)/AH338","v":0},null,4,{"$f":"SUM(AK338:AM338)+AF338","v":1244.25},null,null,{"$f":"ROUND(AD338/(1-VLOOKUP(AG338,Group,2,FALSE)),2)","v":1244.25},{"$f":"IF(VLOOKUP(AG338,Group,5,FALSE)=\"YES\",VLOOKUP(ROUND(ROUND(AK338,1)-AK338,2),Round,2,FALSE)+VLOOKUP(AG338,Group,6,FALSE),0)","v":0},{"$f":"IF(VLOOKUP(AG338,Group,7,FALSE)=\"\",0,ROUND(AK338-0.04999,1)-AK338+AN338)","v":0},{"$f":"IF(VLOOKUP(AG338,Group,7,FALSE)=\"\",\"\",VLOOKUP(AG338,Group,7,FALSE))","v":""},null,"X"]
[null,"Accessories",null,null,"50-1/4\" to 51-3/4\" wide",null,91111,null,null,null,"Caregiver Door - White w/Gray Trim",null,null,null,null,null,null,null,"a",{"$f":"IF(Suggested=\"Yes\",AB339,AH339)","v":1244.25},"EA",{"$f":"+Instructions!$B$3","v":"N"},null,{"$f":"+Instructions!$C$22","v":0},{"$f":"ROUND($AB339*(1-X339)+0.004999,2)","v":1244.25},null,"",1244.25,0,1244.25,{"$f":"(AH339-AD339)/AH339","v":0},null,4,{"$f":"SUM(AK339:AM339)+AF339","v":1244.25},null,null,{"$f":"ROUND(AD339/(1-VLOOKUP(AG339,Group,2,FALSE)),2)","v":1244.25},{"$f":"IF(VLOOKUP(AG339,Group,5,FALSE)=\"YES\",VLOOKUP(ROUND(ROUND(AK339,1)-AK339,2),Round,2,FALSE)+VLOOKUP(AG339,Group,6,FALSE),0)","v":0},{"$f":"IF(VLOOKUP(AG339,Group,7,FALSE)=\"\",0,ROUND(AK339-0.04999,1)-AK339+AN339)","v":0},{"$f":"IF(VLOOKUP(AG339,Group,7,FALSE)=\"\",\"\",VLOOKUP(AG339,Group,7,FALSE))","v":""},null,"X"]
[null,"Accessories",null,null,"54-3/4\" to 56-1/4\" wide",null,91113,null,null,null,"Caregiver Door - White w/Gray Trim",null,null,null,null,null,null,null,"a",{"$f":"IF(Suggested=\"Yes\",AB340,AH340)","v":1245.25},"EA",{"$f":"+Instructions!$B$3","v":"N"},null,{"$f":"+Instructions!$C$22","v":0},{"$f":"ROUND($AB340*(1-X340)+0.004999,2)","v":1245.25},null,"",1245.25,0,1245.25,{"$f":"(AH340-AD340)/AH340","v":0},null,4,{"$f":"SUM(AK340:AM340)+AF340","v":1245.25},null,null,{"$f":"ROUND(AD340/(1-VLOOKUP(AG340,Group,2,FALSE)),2)","v":1245.25},{"$f":"IF(VLOOKUP(AG340,Group,5,FALSE)=\"YES\",VLOOKUP(ROUND(ROUND(AK340,1)-AK340,2),Round,2,FALSE)+VLOOKUP(AG340,Group,6,FALSE),0)","v":0},{"$f":"IF(VLOOKUP(AG340,Group,7,FALSE)=\"\",0,ROUND(AK340-0.04999,1)-AK340+AN340)","v":0},{"$f":"IF(VLOOKUP(AG340,Group,7,FALSE)=\"\",\"\",VLOOKUP(AG340,Group,7,FALSE))","v":""},null,"X"]
[null,"Accessories",null,null,"58-1/4\" to 59-3/4\" wide",null,91114,null,null,null,"Caregiver Door - White w/Gray Trim",null,null,null,null,null,null,null,"a",{"$f":"IF(Suggested=\"Yes\",AB341,AH341)","v":1246.2},"EA",{"$f":"+Instructions!$B$3","v":"N"},null,{"$f":"+Instructions!$C$22","v":0},{"$f":"ROUND($AB341*(1-X341)+0.004999,2)","v":1246.2},null,"",1246.2,0,1246.2,{"$f":"(AH341-AD341)/AH341","v":0},null,4,{"$f":"SUM(AK341:AM341)+AF341","v":1246.2},null,null,{"$f":"ROUND(AD341/(1-VLOOKUP(AG341,Group,2,FALSE)),2)","v":1246.2},{"$f":"IF(VLOOKUP(AG341,Group,5,FALSE)=\"YES\",VLOOKUP(ROUND(ROUND(AK341,1)-AK341,2),Round,2,FALSE)+VLOOKUP(AG341,Group,6,FALSE),0)","v":0},{"$f":"IF(VLOOKUP(AG341,Group,7,FALSE)=\"\",0,ROUND(AK341-0.04999,1)-AK341+AN341)","v":0},{"$f":"IF(VLOOKUP(AG341,Group,7,FALSE)=\"\",\"\",VLOOKUP(AG341,Group,7,FALSE))","v":""},null,"X"]
[null,"Accessories",null,null,"56-3/4\" to 58-1/4\" wide",null,91115,null,null,null,"Caregiver Door - White w/Gray Trim",null,null,null,null,null,null,null,"a,b",{"$f":"IF(Suggested=\"Yes\",AB342,AH342)","v":1247.2},"EA",{"$f":"+Instructions!$B$3","v":"N"},null,{"$f":"+Instructions!$C$22","v":0},{"$f":"ROUND($AB342*(1-X342)+0.004999,2)","v":1247.2},null,"",1247.2,0,1247.2,{"$f":"(AH342-AD342)/AH342","v":0},null,4,{"$f":"SUM(AK342:AM342)+AF342","v":1247.2},null,null,{"$f":"ROUND(AD342/(1-VLOOKUP(AG342,Group,2,FALSE)),2)","v":1247.2},{"$f":"IF(VLOOKUP(AG342,Group,5,FALSE)=\"YES\",VLOOKUP(ROUND(ROUND(AK342,1)-AK342,2),Round,2,FALSE)+VLOOKUP(AG342,Group,6,FALSE),0)","v":0},{"$f":"IF(VLOOKUP(AG342,Group,7,FALSE)=\"\",0,ROUND(AK342-0.04999,1)-AK342+AN342)","v":0},{"$f":"IF(VLOOKUP(AG342,Group,7,FALSE)=\"\",\"\",VLOOKUP(AG342,Group,7,FALSE))","v":""},null,"X"]
[null,null,null,null,null,null,null,null,null,null,null,null,null,null,null,null,null,null,null,null,null,null,null,null,null,null,null,null,null,null,null,null,null,null,null,null,null,null,null,null,null,"X"]
[null,"Accessories",null,null," ",null,24130,null,null,null,"Extra-wide Compensator - White w/Gray Trim",null,null,null,null,null,null,null,null,{"$f":"IF(Suggested=\"Yes\",AB344,AH344)","v":88.85},"EA",{"$f":"+Instructions!$B$3","v":"N"},null,{"$f":"+Instructions!$C$22","v":0},{"$f":"ROUND($AB344*(1-X344)+0.004999,2)","v":88.85},null,"",88.85,{"$f":"+X344","v":0},{"$f":"+Y344","v":88.85},{"$f":"(AH344-AD344)/AH344","v":0},null,4,{"$f":"SUM(AK344:AM344)+AF344","v":88.85},null,null,{"$f":"ROUND(AD344/(1-VLOOKUP(AG344,Group,2,FALSE)),2)","v":88.85},{"$f":"IF(VLOOKUP(AG344,Group,5,FALSE)=\"YES\",VLOOKUP(ROUND(ROUND(AK344,1)-AK344,2),Round,2,FALSE)+VLOOKUP(AG344,Group,6,FALSE),0)","v":0},{"$f":"IF(VLOOKUP(AG344,Group,7,FALSE)=\"\",0,ROUND(AK344-0.04999,1)-AK344+AN344)","v":0},{"$f":"IF(VLOOKUP(AG344,Group,7,FALSE)=\"\",\"\",VLOOKUP(AG344,Group,7,FALSE))","v":""},null,"X"]
[null,null,null,null,null,null,null,null,null,null,null,null,null,null,null,null,null,null,null,null,null,null,null,null,null,null,null,null,null,null,null,null,null,null,null,null,null,null,null,null,null,"X"]
[null,"Accessories",null,null,null,null,"24105-WH",null,null,null,"Replacement Door Latch - Hinged/White",null,null,null,null,null,null,null,null,{"$f":"IF(Suggested=\"Yes\",AB346,AH346)","v":44.95},"EA",{"$f":"+Instructions!$B$3","v":"N"},null,{"$f":"+Instructions!$C$22","v":0},{"$f":"ROUND($AB346*(1-X346)+0.004999,2)","v":44.95},null,"",44.95,{"$f":"+X346","v":0},{"$f":"+Y346","v":44.95},{"$f":"(AH346-AD346)/AH346","v":0},null,4,{"$f":"SUM(AK346:AM346)+AF346","v":44.95},null,null,{"$f":"ROUND(AD346/(1-VLOOKUP(AG346,Group,2,FALSE)),2)","v":44.95},{"$f":"IF(VLOOKUP(AG346,Group,5,FALSE)=\"YES\",VLOOKUP(ROUND(ROUND(AK346,1)-AK346,2),Round,2,FALSE)+VLOOKUP(AG346,Group,6,FALSE),0)","v":0},{"$f":"IF(VLOOKUP(AG346,Group,7,FALSE)=\"\",0,ROUND(AK346-0.04999,1)-AK346+AN346)","v":0},{"$f":"IF(VLOOKUP(AG346,Group,7,FALSE)=\"\",\"\",VLOOKUP(AG346,Group,7,FALSE))","v":""},null,"X"]
[null,"Accessories",null,null,null,null,"24106-WH",null,null,null,"Replacement Door Handle - Fixed/White",null,null,null,null," ",null,null,null,{"$f":"IF(Suggested=\"Yes\",AB347,AH347)","v":44.95},"EA",{"$f":"+Instructions!$B$3","v":"N"},null,{"$f":"+Instructions!$C$22","v":0},{"$f":"ROUND($AB347*(1-X347)+0.004999,2)","v":44.95},null,"",44.95,{"$f":"+X347","v":0},{"$f":"+Y347","v":44.95},{"$f":"(AH347-AD347)/AH347","v":0},null,4,{"$f":"SUM(AK347:AM347)+AF347","v":44.95},null,null,{"$f":"ROUND(AD347/(1-VLOOKUP(AG347,Group,2,FALSE)),2)","v":44.95},{"$f":"IF(VLOOKUP(AG347,Group,5,FALSE)=\"YES\",VLOOKUP(ROUND(ROUND(AK347,1)-AK347,2),Round,2,FALSE)+VLOOKUP(AG347,Group,6,FALSE),0)","v":0},{"$f":"IF(VLOOKUP(AG347,Group,7,FALSE)=\"\",0,ROUND(AK347-0.04999,1)-AK347+AN347)","v":0},{"$f":"IF(VLOOKUP(AG347,Group,7,FALSE)=\"\",\"\",VLOOKUP(AG347,Group,7,FALSE))","v":""},null,"X"]
[null,null,null,null,null,null,null,null,null,null,null,null,null,null,null,null,null,null,null,null,null,null,null,null,null,null,null,null,null,null,null,null,null,null,null,null,null,null,null,null,null,"X"]
[null,null,"continued on next page"]
[null,null,"Caregiver Doors - continued",null,null,null,null,null,null,null,null,null,null,null,null,null,null,null,"Item # Lookup:","AKCD",null,null,null,null,null,null,null,null,null,null,null,null,null,null,null,null,null,null,null,null,null,"X"]
[null,null,null,null,null,null,null,null,null,null,null,null,null,null,null,null,null,null,null,null,null,null,null,null,null,null,null,null,null,null,null,null,null,null,null,null,null,null,null,null,null,"X"]
[null,null,null,"Notes:","All doors are 29-3/4\" high with 180° door hinges.",null,null,null,null,null,"a) Wall Compensators, Curtain Rail, Curtains & Hook & Glide Connectors included."]
[null,null,null,null,"b) Cannot accommodate the 24130 Extra-wide Compensator."]
[null,null,null,null,null,null,null,null,null,null,null,null,null,null,null,null,null,null,null,null,null,null,null,null,null,null,null,null,null,null,null,null,null,null,null,null,null,null,null,null,null,"X"]
[null,null,"Economy Shower Seats (2000 Series)",null,null,null,null,null,null,null,null,null,null,null,null,null,null,null,"Item # Lookup:","AKES",null,null,null,null,null,null,null,null,null,null,null,null,null,null,null,null,null,null,null,null,null,"X"]
[null,null,null,null,null,null,null,null,null,null,null,null,null,null,null,null,null,null,null,null,null,null,null,null,null,null,null,null,null,null,null,null,null,null,null,null,null,null,null,null,null,"X"]
[null,"Accessories",null,null,"15\" wide seat",null,"02200P",null,null,null,"Compact Seat without Back & Arms - Blue Pad",null,null,null,null,null,null,null,null,{"$f":"IF(Suggested=\"Yes\",AB357,AH357)","v":202.9},"EA",{"$f":"+Instructions!$B$3","v":"N"},null,{"$f":"+Instructions!$C$22","v":0},{"$f":"ROUND($AB357*(1-X357)+0.004999,2)","v":202.9},null,"",202.9,{"$f":"+X357","v":0},{"$f":"+Y357","v":202.9},{"$f":"(AH357-AD357)/AH357","v":0},null,4,{"$f":"SUM(AK357:AM357)+AF357","v":202.9},null,null,{"$f":"ROUND(AD357/(1-VLOOKUP(AG357,Group,2,FALSE)),2)","v":202.9},{"$f":"IF(VLOOKUP(AG357,Group,5,FALSE)=\"YES\",VLOOKUP(ROUND(ROUND(AK357,1)-AK357,2),Round,2,FALSE)+VLOOKUP(AG357,Group,6,FALSE),0)","v":0},{"$f":"IF(VLOOKUP(AG357,Group,7,FALSE)=\"\",0,ROUND(AK357-0.04999,1)-AK357+AN357)","v":0},{"$f":"IF(VLOOKUP(AG357,Group,7,FALSE)=\"\",\"\",VLOOKUP(AG357,Group,7,FALSE))","v":""},null,"X"]
[null,"Accessories",null,null,"15\" wide seat",null,"02000P",null,null,null,"Compact Seat without Back & Arms - Gray Pad",null,null,null,null,null,null,null,null,202.9,"EA",{"$f":"+Instructions!$B$3","v":"N"},null,{"$f":"+Instructions!$C$22","v":0},202.9,null,"",202.9,0,202.9,0,null,4,202.9,null,null,202.9,0,0,"",null,"X"]
[null,"Accessories",null,null,"18-1/8\" wide seat",null,"02210P",null,null,null,"Standard Seat without Back & Arms - Blue Pad",null,null,null,null,null,null,null,null,260.3,"EA",{"$f":"+Instructions!$B$3","v":"N"},null,{"$f":"+Instructions!$C$22","v":0},260.3,null,"",260.3,0,260.3,0,null,4,260.3,null,null,260.3,0,0,"",null,"X"]
[null,"Accessories",null,null,"18-1/8\" wide seat",null,"02010P",null,null,null,"Standard Seat without Back & Arms - Gray Pad",null,null,null,null,null,null,null,null,260.3,"EA",{"$f":"+Instructions!$B$3","v":"N"},null,{"$f":"+Instructions!$C$22","v":0},260.3,null,"",260.3,0,260.3,0,null,4,260.3,null,null,260.3,0,0,"",null,"X"]
[null,"Accessories",null,null,"18-1/8\" wide seat",null,"02230P",null,null,null,"Standard Seat with Back & Arms - Blue Pad",null,null,null,null,null,null,null,null,403.8,"EA",{"$f":"+Instructions!$B$3","v":"N"},null,{"$f":"+Instructions!$C$22","v":0},403.8,null,"",403.8,0,403.8,0,null,4,403.8,null,null,403.8,0,0,"",null,"X"]
[null,"Accessories",null,null,"18-1/8\" wide seat",null,"02130P",null,null,null,"Standard Seat with Back & Arms - Gray Pad",null,null,null,null,null,null,null,null,403.8,"EA",{"$f":"+Instructions!$B$3","v":"N"},null,{"$f":"+Instructions!$C$22","v":0},403.8,null,"",403.8,0,403.8,0,null,4,403.8,null,null,403.8,0,0,"",null,"X"]
[null,null,null,null,null,null,null,null,null,null,null,null,null,null,null,null,null,null,null,null,null,null,null,null,null,null,null,null,null,null,null,null,null,null,null,null,null,null,null,null,null,"X"]
[null,null,"Deluxe Shower Seats with Back & Arms (4000 Series)",null,null,null,null,null,null,null,null,null,null,null,null,null,null,null,"Item # Lookup:","AKDS",null,null,null,null,null,null,null,null,null,null,null,null,null,null,null,null,null,null,null,null,null,"X"]
[null,null,null,null,null,null,null,null,null,null,null,null,null,null,null,null,null,null,null,null,null,null,null,null,null,null,null,null,null,null,null,null,null,null,null,null,null,null,null,null,null,"X"]
[null,"Accessories",null,null,"19\" wide seat",null,"04130P",null,null,null,"Standard Seat - Blue Pad",null,null,null,null,null,null,null,null,{"$f":"IF(Suggested=\"Yes\",AB366,AH366)","v":590.9},"EA",{"$f":"+Instructions!$B$3","v":"N"},null,{"$f":"+Instructions!$C$22","v":0},{"$f":"ROUND($AB366*(1-X366)+0.004999,2)","v":590.9},null,"",590.9,{"$f":"+X366","v":0},{"$f":"+Y366","v":590.9},{"$f":"(AH366-AD366)/AH366","v":0},null,4,{"$f":"SUM(AK366:AM366)+AF366","v":590.9},null,null,{"$f":"ROUND(AD366/(1-VLOOKUP(AG366,Group,2,FALSE)),2)","v":590.9},{"$f":"IF(VLOOKUP(AG366,Group,5,FALSE)=\"YES\",VLOOKUP(ROUND(ROUND(AK366,1)-AK366,2),Round,2,FALSE)+VLOOKUP(AG366,Group,6,FALSE),0)","v":0},{"$f":"IF(VLOOKUP(AG366,Group,7,FALSE)=\"\",0,ROUND(AK366-0.04999,1)-AK366+AN366)","v":0},{"$f":"IF(VLOOKUP(AG366,Group,7,FALSE)=\"\",\"\",VLOOKUP(AG366,Group,7,FALSE))","v":""},null,"X"]
[null,"Accessories",null,null,"19\" wide seat",null,"04230P",null,null,null,"Standard Seat - Gray Pad",null,null,null,null,null,null,null,null,590.9,"EA",{"$f":"+Instructions!$B$3","v":"N"},null,{"$f":"+Instructions!$C$22","v":0},590.9,null,"",590.9,0,590.9,0,null,4,590.9,null,null,590.9,0,0,"",null,"X"]
[null,"Accessories",null,null,"23-3/4\" wide seat",null,"04140P",null,null,null,"Wide Seat - Blue Pad",null,null,null,null,null,null,null,null,701.75,"EA",{"$f":"+Instructions!$B$3","v":"N"},null,{"$f":"+Instructions!$C$22","v":0},701.75,null,"",701.75,0,701.75,0,null,4,701.75,null,null,701.75,0,0,"",null,"X"]
[null,"Accessories",null,null,"23-3/4\" wide seat",null,"04240P",null,null,null,"Wide Seat - Gray Pad",null,null,null,null,null,null,null,null,701.75,"EA",{"$f":"+Instructions!$B$3","v":"N"},null,{"$f":"+Instructions!$C$22","v":0},701.75,null,"",701.75,0,701.75,0,null,4,701.75,null,null,701.75,0,0,"",null,"X"]
[null,"Accessories",null,null,"19\" wide seat",null,"04160P",null,null,null,"Standard U-Shaped Seat - Blue Pad",null,null,null,null,null,null,null,null,671.1,"EA",{"$f":"+Instructions!$B$3","v":"N"},null,{"$f":"+Instructions!$C$22","v":0},671.1,null,"",671.1,0,671.1,0,null,4,671.1,null,null,671.1,0,0,"",null,"X"]
[null,"Accessories",null,null,"19\" wide seat",null,"04260P",null,null,null,"Standard U-Shaped Seat - Gray Pad",null,null,null,null,null,null,null,null,671.1,"EA",{"$f":"+Instructions!$B$3","v":"N"},null,{"$f":"+Instructions!$C$22","v":0},671.1,null,"",671.1,0,671.1,0,null,4,671.1,null,null,671.1,0,0,"",null,"X"]
[null,"Accessories",null,null,"23-3/4\" wide seat",null,"04150P",null,null,null,"Wide U-Shaped Seat - Blue Pad",null,null,null,null,null,null,null,null,757.2,"EA",{"$f":"+Instructions!$B$3","v":"N"},null,{"$f":"+Instructions!$C$22","v":0},757.2,null,"",757.2,0,757.2,0,null,4,757.2,null,null,757.2,0,0,"",null,"X"]
[null,"Accessories",null,null,"23-3/4\" wide seat",null,"04250P",null,null,null,"Wide U-Shaped Seat - Gray Pad",null,null,null,null,null,null,null,null,757.2,"EA",{"$f":"+Instructions!$B$3","v":"N"},null,{"$f":"+Instructions!$C$22","v":0},757.2,null,"",757.2,0,757.2,0,null,4,757.2,null,null,757.2,0,0,"",null,"X"]
[]
[null,null,"Deluxe Shower Seats without Back & Arms (4000 Series)",null,null,null,null,null,null,null,null,null,null,null,null,null,null,null,"Item # Lookup:","AKDS",null,null,null,null,null,null,null,null,null,null,null,null,null,null,null,null,null,null,null,null,null,"X"]
[null,null,null,null,null,null,null,null,null,null,null,null,null,null,null,null,null,null,null,null,null,null,null,null,null,null,null,null,null,null,null,null,null,null,null,null,null,null,null,null,null,"X"]
[null,"Accessories",null,null,"18-1/8\" wide seat",null,"04070P",null,null,null,"Standard Seat - Blue Pad",null,null,null,null,null,null,null,null,{"$f":"IF(Suggested=\"Yes\",AB377,AH377)","v":308.85000000000002},"EA",{"$f":"+Instructions!$B$3","v":"N"},null,{"$f":"+Instructions!$C$22","v":0},{"$f":"ROUND($AB377*(1-X377)+0.004999,2)","v":308.85000000000002},null,"",308.85000000000002,{"$f":"+X377","v":0},{"$f":"+Y377","v":308.85000000000002},{"$f":"(AH377-AD377)/AH377","v":0},null,4,{"$f":"SUM(AK377:AM377)+AF377","v":308.85000000000002},null,null,{"$f":"ROUND(AD377/(1-VLOOKUP(AG377,Group,2,FALSE)),2)","v":308.85000000000002},{"$f":"IF(VLOOKUP(AG377,Group,5,FALSE)=\"YES\",VLOOKUP(ROUND(ROUND(AK377,1)-AK377,2),Round,2,FALSE)+VLOOKUP(AG377,Group,6,FALSE),0)","v":0},{"$f":"IF(VLOOKUP(AG377,Group,7,FALSE)=\"\",0,ROUND(AK377-0.04999,1)-AK377+AN377)","v":0},{"$f":"IF(VLOOKUP(AG377,Group,7,FALSE)=\"\",\"\",VLOOKUP(AG377,Group,7,FALSE))","v":""},null,"X"]
[null,"Accessories",null,null,"18-1/8\" wide seat",null,"04270P",null,null,null,"Standard Seat - Gray Pad",null,null,null,null,null,null,null,null,308.85000000000002,"EA",{"$f":"+Instructions!$B$3","v":"N"},null,{"$f":"+Instructions!$C$22","v":0},308.85000000000002,null,"",308.85000000000002,0,308.85000000000002,0,null,4,308.85000000000002,null,null,308.85000000000002,0,0,"",null,"X"]
[null,"Accessories",null,null,"18-1/8\" wide seat",null,"04100P",null,null,null,"Standard U-Shaped Seat - Blue Pad",null,null,null,null,null,null,null,null,367.25,"EA",{"$f":"+Instructions!$B$3","v":"N"},null,{"$f":"+Instructions!$C$22","v":0},367.25,null,"",367.25,0,367.25,0,null,4,367.25,null,null,367.25,0,0,"",null,"X"]
[null,"Accessories",null,null,"18-1/8\" wide seat",null,"04200P",null,null,null,"Standard U-Shaped Seat - Gray Pad",null,null,null,null,null,null,null,null,367.25,"EA",{"$f":"+Instructions!$B$3","v":"N"},null,{"$f":"+Instructions!$C$22","v":0},367.25,null,"",367.25,0,367.25,0,null,4,367.25,null,null,367.25,0,0,"",null,"X"]
[null,"Accessories",null,null,"23\" wide seat",null,"04120P",null,null,null,"Wide U-Shaped Seat - Blue Pad",null,null,null,null,null,null,null,null,418.7,"EA",{"$f":"+Instructions!$B$3","v":"N"},null,{"$f":"+Instructions!$C$22","v":0},418.7,null,"",418.7,0,418.7,0,null,4,418.7,null,null,418.7,0,0,"",null,"X"]
[null,"Accessories",null,null,"23\" wide seat",null,"04220P",null,null,null,"Wide U-Shaped Seat - Gray Pad",null,null,null,null,null,null,null,null,418.7,"EA",{"$f":"+Instructions!$B$3","v":"N"},null,{"$f":"+Instructions!$C$22","v":0},418.7,null,"",418.7,0,418.7,0,null,4,418.7,null,null,418.7,0,0,"",null,"X"]
[null,"Accessories",null,null,"18-7/8\" wide seat",null,4030,null,null,null,"Wood Slatted Seat",null,null,null,null,null,null,null,null,470.2,"EA",{"$f":"+Instructions!$B$3","v":"N"},null,{"$f":"+Instructions!$C$22","v":0},470.2,null,"",470.2,0,470.2,0,null,4,470.2,null,null,470.2,0,0,"",null,"X"]
[null,null,null,null,null,null,null,null,null,null,null,null,null,null,null,null,null,null,null,null,null,null,null,null,null,null,null,null,null,null,null,null,null,null,null,null,null,null,null,null,null,"X"]
[null,null,"Deluxe Extra-Wide Shower Seats without Back & Arms (4000 Series)",null,null,null,null,null,null,null,null,null,null,null,null,null,null,null,"Item # Lookup:","AKDS",null,null,null,null,null,null,null,null,null,null,null,null,null,null,null,null,null,null,null,null,null,"X"]
[null,null,null,null,null,null,null,null,null,null,null,null,null,null,null,null,null,null,null,null,null,null,null,null,null,null,null,null,null,null,null,null,null,null,null,null,null,null,null,null,null,"X"]
[null,"Accessories",null,null,"26\" wide seat",null,"04580P",null,null,null,"Extra-Wide Seat - Blue Pad",null,null,null,null,null,null,null,null,{"$f":"IF(Suggested=\"Yes\",AB387,AH387)","v":552.35},"EA",{"$f":"+Instructions!$B$3","v":"N"},null,{"$f":"+Instructions!$C$22","v":0},{"$f":"ROUND($AB387*(1-X387)+0.004999,2)","v":552.35},null,"",552.35,{"$f":"+X387","v":0},{"$f":"+Y387","v":552.35},{"$f":"(AH387-AD387)/AH387","v":0},null,4,{"$f":"SUM(AK387:AM387)+AF387","v":552.35},null,null,{"$f":"ROUND(AD387/(1-VLOOKUP(AG387,Group,2,FALSE)),2)","v":552.35},{"$f":"IF(VLOOKUP(AG387,Group,5,FALSE)=\"YES\",VLOOKUP(ROUND(ROUND(AK387,1)-AK387,2),Round,2,FALSE)+VLOOKUP(AG387,Group,6,FALSE),0)","v":0},{"$f":"IF(VLOOKUP(AG387,Group,7,FALSE)=\"\",0,ROUND(AK387-0.04999,1)-AK387+AN387)","v":0},{"$f":"IF(VLOOKUP(AG387,Group,7,FALSE)=\"\",\"\",VLOOKUP(AG387,Group,7,FALSE))","v":""},null,"X"]
[null,"Accessories",null,null,"26\" wide seat",null,"04570P",null,null,null,"Extra-Wide Seat - Gray Pad",null,null,null,null,null,null,null,null,{"$f":"IF(Suggested=\"Yes\",AB388,AH388)","v":552.35},"EA",{"$f":"+Instructions!$B$3","v":"N"},null,{"$f":"+Instructions!$C$22","v":0},{"$f":"ROUND($AB388*(1-X388)+0.004999,2)","v":552.35},null,"",552.35,{"$f":"+X388","v":0},{"$f":"+Y388","v":552.35},{"$f":"(AH388-AD388)/AH388","v":0},null,4,{"$f":"SUM(AK388:AM388)+AF388","v":552.35},null,null,{"$f":"ROUND(AD388/(1-VLOOKUP(AG388,Group,2,FALSE)),2)","v":552.35},{"$f":"IF(VLOOKUP(AG388,Group,5,FALSE)=\"YES\",VLOOKUP(ROUND(ROUND(AK388,1)-AK388,2),Round,2,FALSE)+VLOOKUP(AG388,Group,6,FALSE),0)","v":0},{"$f":"IF(VLOOKUP(AG388,Group,7,FALSE)=\"\",0,ROUND(AK388-0.04999,1)-AK388+AN388)","v":0},{"$f":"IF(VLOOKUP(AG388,Group,7,FALSE)=\"\",\"\",VLOOKUP(AG388,Group,7,FALSE))","v":""},null,"X"]
[null,null,null,null,null,null,null,null,null,null,null,null,null,null,null,null,null,null,null,null,null,null,null,null,null,null,null,null,null,null,null,null,null,null,null,null,null,null,null,null,null,"X"]
[null,null,"Velena Series Seats",null,null,null,null,null,null,null,null,null,null,null,null,null,null,null,"Item # Lookup:","AKVE",null,null,null,null,null,null,null,null,null,null,null,null,null,null,null,null,null,null,null,null,null,"X"]
[null,null,null,null,null,null,null,null,null,null,null,null,null,null,null,null,null,null,null,null,null,null,null,null,null,null,null,null,null,null,null,null,null,null,null,null,null,null,null,null,null,"X"]
[null,"Accessories",null,null,"18-1/4\" Wide",null,"02801-BK",null,null,null,"Velena Seat - Black Pad",null,null,null,null,null,null,null,null,{"$f":"IF(Suggested=\"Yes\",AB392,AH392)","v":302.95},"EA",{"$f":"+Instructions!$B$3","v":"N"},null,{"$f":"+Instructions!$C$22","v":0},{"$f":"ROUND($AB392*(1-X392)+0.004999,2)","v":302.95},null,"",302.95,{"$f":"+X392","v":0},302.95,{"$f":"(AH392-AD392)/AH392","v":0},null,4,{"$f":"SUM(AK392:AM392)+AF392","v":302.95},null,null,{"$f":"ROUND(AD392/(1-VLOOKUP(AG392,Group,2,FALSE)),2)","v":302.95},{"$f":"IF(VLOOKUP(AG392,Group,5,FALSE)=\"YES\",VLOOKUP(ROUND(ROUND(AK392,1)-AK392,2),Round,2,FALSE)+VLOOKUP(AG392,Group,6,FALSE),0)","v":0},{"$f":"IF(VLOOKUP(AG392,Group,7,FALSE)=\"\",0,ROUND(AK392-0.04999,1)-AK392+AN392)","v":0},{"$f":"IF(VLOOKUP(AG392,Group,7,FALSE)=\"\",\"\",VLOOKUP(AG392,Group,7,FALSE))","v":""},null,"X"]
[null,"Accessories",null,null,"18-1/4\" Wide",null,"02801-WH",null,null,null,"Velena Seat - White Pad",null,null,null,null,null,null,null,null,{"$f":"IF(Suggested=\"Yes\",AB393,AH393)","v":302.95},"EA",{"$f":"+Instructions!$B$3","v":"N"},null,{"$f":"+Instructions!$C$22","v":0},{"$f":"ROUND($AB393*(1-X393)+0.004999,2)","v":302.95},null,"",302.95,0,302.95,{"$f":"(AH393-AD393)/AH393","v":0},null,4,{"$f":"SUM(AK393:AM393)+AF393","v":302.95},null,null,{"$f":"ROUND(AD393/(1-VLOOKUP(AG393,Group,2,FALSE)),2)","v":302.95},{"$f":"IF(VLOOKUP(AG393,Group,5,FALSE)=\"YES\",VLOOKUP(ROUND(ROUND(AK393,1)-AK393,2),Round,2,FALSE)+VLOOKUP(AG393,Group,6,FALSE),0)","v":0},{"$f":"IF(VLOOKUP(AG393,Group,7,FALSE)=\"\",0,ROUND(AK393-0.04999,1)-AK393+AN393)","v":0},{"$f":"IF(VLOOKUP(AG393,Group,7,FALSE)=\"\",\"\",VLOOKUP(AG393,Group,7,FALSE))","v":""},null,"X"]
[null,"Accessories",null,null,"18-1/4\" Wide",null,"02810-BK",null,null,null,"Velena Seat w/Adjustable Leg - Black Pad",null,null,null,null,null,null,null,null,{"$f":"IF(Suggested=\"Yes\",AB394,AH394)","v":338.55},"EA",{"$f":"+Instructions!$B$3","v":"N"},null,{"$f":"+Instructions!$C$22","v":0},{"$f":"ROUND($AB394*(1-X394)+0.004999,2)","v":338.55},null,"",338.55,0,338.55,{"$f":"(AH394-AD394)/AH394","v":0},null,4,{"$f":"SUM(AK394:AM394)+AF394","v":338.55},null,null,{"$f":"ROUND(AD394/(1-VLOOKUP(AG394,Group,2,FALSE)),2)","v":338.55},{"$f":"IF(VLOOKUP(AG394,Group,5,FALSE)=\"YES\",VLOOKUP(ROUND(ROUND(AK394,1)-AK394,2),Round,2,FALSE)+VLOOKUP(AG394,Group,6,FALSE),0)","v":0},{"$f":"IF(VLOOKUP(AG394,Group,7,FALSE)=\"\",0,ROUND(AK394-0.04999,1)-AK394+AN394)","v":0},{"$f":"IF(VLOOKUP(AG394,Group,7,FALSE)=\"\",\"\",VLOOKUP(AG394,Group,7,FALSE))","v":""},null,"X"]
[null,"Accessories",null,null,"18-1/4\" Wide",null,"02810-WH",null,null,null,"Velena Seat w/Adjustable Leg - White Pad",null,null,null,null,null,null,null,null,{"$f":"IF(Suggested=\"Yes\",AB395,AH395)","v":338.55},"EA",{"$f":"+Instructions!$B$3","v":"N"},null,{"$f":"+Instructions!$C$22","v":0},{"$f":"ROUND($AB395*(1-X395)+0.004999,2)","v":338.55},null,"",338.55,0,338.55,{"$f":"(AH395-AD395)/AH395","v":0},null,4,{"$f":"SUM(AK395:AM395)+AF395","v":338.55},null,null,{"$f":"ROUND(AD395/(1-VLOOKUP(AG395,Group,2,FALSE)),2)","v":338.55},{"$f":"IF(VLOOKUP(AG395,Group,5,FALSE)=\"YES\",VLOOKUP(ROUND(ROUND(AK395,1)-AK395,2),Round,2,FALSE)+VLOOKUP(AG395,Group,6,FALSE),0)","v":0},{"$f":"IF(VLOOKUP(AG395,Group,7,FALSE)=\"\",0,ROUND(AK395-0.04999,1)-AK395+AN395)","v":0},{"$f":"IF(VLOOKUP(AG395,Group,7,FALSE)=\"\",\"\",VLOOKUP(AG395,Group,7,FALSE))","v":""},null,"X"]
[null,null,null,null,null,null,null,null,null,null,null,null,null,null,null,null,null,null,null,null,null,null,null,null,null,null,null,null,null,null,null,null,null,null,null,null,null,null,null,null,null,"X"]
[null,null,"Heavy-Duty Grab Bars & Supports",null,null,null,null,null,null,null,null,null,null,null," ",null,null,null,"Item # Lookup:","AKGB",null,null,null,null,null,null,null,null,null,null,null,null,null,null,null,null,null,null,null,null,null,"X"]
[null,null,null,null,null,null,null,null,null,null,null,null,null,null,null,null,null,null,null,null,null,null,null,null,null,null,null,null,null,null,null,null,null,null,null,null,null,null,null,null,null,"X"]
[null,"Accessories",null,null,"12\"",null,"01900-BU",null,null,null,"Straight Heavy-Duty Comfort Grip Grab Bar - Blue",null,null,null,null,null,null,null,null,{"$f":"IF(Suggested=\"Yes\",AB399,AH399)","v":39.299999999999997},"EA",{"$f":"+Instructions!$B$3","v":"N"},null,{"$f":"+Instructions!$C$22","v":0},{"$f":"ROUND($AB399*(1-X399)+0.004999,2)","v":39.299999999999997},null,"",39.299999999999997,{"$f":"+X399","v":0},{"$f":"+Y399","v":39.299999999999997},{"$f":"(AH399-AD399)/AH399","v":0},null,4,{"$f":"SUM(AK399:AM399)+AF399","v":39.299999999999997},null,null,{"$f":"ROUND(AD399/(1-VLOOKUP(AG399,Group,2,FALSE)),2)","v":39.299999999999997},{"$f":"IF(VLOOKUP(AG399,Group,5,FALSE)=\"YES\",VLOOKUP(ROUND(ROUND(AK399,1)-AK399,2),Round,2,FALSE)+VLOOKUP(AG399,Group,6,FALSE),0)","v":0},{"$f":"IF(VLOOKUP(AG399,Group,7,FALSE)=\"\",0,ROUND(AK399-0.04999,1)-AK399+AN399)","v":0},{"$f":"IF(VLOOKUP(AG399,Group,7,FALSE)=\"\",\"\",VLOOKUP(AG399,Group,7,FALSE))","v":""},null,"X"]
[null,"Accessories",null,null,"12\"",null,"01900-GR",null,null,null,"Straight Heavy-Duty Comfort Grip Grab Bar - Gray",null,null,null,null,null,null,null,null,39.299999999999997,"EA",{"$f":"+Instructions!$B$3","v":"N"},null,{"$f":"+Instructions!$C$22","v":0},39.299999999999997,null,"",39.299999999999997,0,39.299999999999997,0,null,4,39.299999999999997,null,null,39.299999999999997,0,0,"",null,"X"]
[null,"Accessories",null,null,"12\"",null,"01900-WH",null,null,null,"Straight Heavy-Duty Comfort Grip Grab Bar - White",null,null,null,null,null,null,null,null,{"$f":"IF(Suggested=\"Yes\",AB401,AH401)","v":39.299999999999997},"EA",{"$f":"+Instructions!$B$3","v":"N"},null,{"$f":"+Instructions!$C$22","v":0},{"$f":"ROUND($AB401*(1-X401)+0.004999,2)","v":39.299999999999997},null,"",39.299999999999997,{"$f":"+X401","v":0},39.299999999999997,{"$f":"(AH401-AD401)/AH401","v":0},null,4,{"$f":"SUM(AK401:AM401)+AF401","v":39.299999999999997},null,null,{"$f":"ROUND(AD401/(1-VLOOKUP(AG401,Group,2,FALSE)),2)","v":39.299999999999997},{"$f":"IF(VLOOKUP(AG401,Group,5,FALSE)=\"YES\",VLOOKUP(ROUND(ROUND(AK401,1)-AK401,2),Round,2,FALSE)+VLOOKUP(AG401,Group,6,FALSE),0)","v":0},{"$f":"IF(VLOOKUP(AG401,Group,7,FALSE)=\"\",0,ROUND(AK401-0.04999,1)-AK401+AN401)","v":0},{"$f":"IF(VLOOKUP(AG401,Group,7,FALSE)=\"\",\"\",VLOOKUP(AG401,Group,7,FALSE))","v":""},null,"X"]
[null,"Accessories",null,null,"16\"",null,"01905-BU",null,null,null,"Straight Heavy-Duty Comfort Grip Grab Bar - Blue",null,null,null,null,null,null,null,null,{"$f":"IF(Suggested=\"Yes\",AB402,AH402)","v":44.95},"EA",{"$f":"+Instructions!$B$3","v":"N"},null,{"$f":"+Instructions!$C$22","v":0},{"$f":"ROUND($AB402*(1-X402)+0.004999,2)","v":44.95},null,"",44.95,0,44.95,{"$f":"(AH402-AD402)/AH402","v":0},null,4,{"$f":"SUM(AK402:AM402)+AF402","v":44.95},null,null,{"$f":"ROUND(AD402/(1-VLOOKUP(AG402,Group,2,FALSE)),2)","v":44.95},{"$f":"IF(VLOOKUP(AG402,Group,5,FALSE)=\"YES\",VLOOKUP(ROUND(ROUND(AK402,1)-AK402,2),Round,2,FALSE)+VLOOKUP(AG402,Group,6,FALSE),0)","v":0},{"$f":"IF(VLOOKUP(AG402,Group,7,FALSE)=\"\",0,ROUND(AK402-0.04999,1)-AK402+AN402)","v":0},{"$f":"IF(VLOOKUP(AG402,Group,7,FALSE)=\"\",\"\",VLOOKUP(AG402,Group,7,FALSE))","v":""},null,"X"]
[null,"Accessories",null,null,"16\"",null,"01905-GR",null,null,null,"Straight Heavy-Duty Comfort Grip Grab Bar - Gray",null,null,null,null,null,null,null,null,{"$f":"IF(Suggested=\"Yes\",AB403,AH403)","v":44.95},"EA",{"$f":"+Instructions!$B$3","v":"N"},null,{"$f":"+Instructions!$C$22","v":0},{"$f":"ROUND($AB403*(1-X403)+0.004999,2)","v":44.95},null,"",44.95,0,44.95,{"$f":"(AH403-AD403)/AH403","v":0},null,4,{"$f":"SUM(AK403:AM403)+AF403","v":44.95},null,null,{"$f":"ROUND(AD403/(1-VLOOKUP(AG403,Group,2,FALSE)),2)","v":44.95},{"$f":"IF(VLOOKUP(AG403,Group,5,FALSE)=\"YES\",VLOOKUP(ROUND(ROUND(AK403,1)-AK403,2),Round,2,FALSE)+VLOOKUP(AG403,Group,6,FALSE),0)","v":0},{"$f":"IF(VLOOKUP(AG403,Group,7,FALSE)=\"\",0,ROUND(AK403-0.04999,1)-AK403+AN403)","v":0},{"$f":"IF(VLOOKUP(AG403,Group,7,FALSE)=\"\",\"\",VLOOKUP(AG403,Group,7,FALSE))","v":""},null,"X"]
[null,"Accessories",null,null,"16\"",null,"01905-WH",null,null,null,"Straight Heavy-Duty Comfort Grip Grab Bar - White",null,null,null,null,null,null,null,null,44.95,"EA",{"$f":"+Instructions!$B$3","v":"N"},null,{"$f":"+Instructions!$C$22","v":0},44.95,null,"",44.95,0,44.95,0,null,4,44.95,null,null,44.95,0,0,"",null,"X"]
[null,"Accessories",null,null,"18\"",null,"01910-BU",null,null,null,"Straight Heavy-Duty Comfort Grip Grab Bar - Blue",null,null,null,null,null,null,null,null,50.6,"EA",{"$f":"+Instructions!$B$3","v":"N"},null,{"$f":"+Instructions!$C$22","v":0},50.6,null,"",50.6,0,50.6,0,null,4,50.6,null,null,50.6,0,0,"",null,"X"]
[null,"Accessories",null,null,"18\"",null,"01910-GR",null,null,null,"Straight Heavy-Duty Comfort Grip Grab Bar - Gray",null,null,null,null,null,null,null,null,50.6,"EA",{"$f":"+Instructions!$B$3","v":"N"},null,{"$f":"+Instructions!$C$22","v":0},{"$f":"ROUND($AB406*(1-X406)+0.004999,2)","v":50.6},null,"",50.6,0,50.6,0,null,4,50.6,null,null,50.6,0,0,"",null,"X"]
[null,"Accessories",null,null,"18\"",null,"01910-WH",null,null,null,"Straight Heavy-Duty Comfort Grip Grab Bar - White",null,null,null,null,null,null,null,null,{"$f":"IF(Suggested=\"Yes\",AB407,AH407)","v":50.6},"EA",{"$f":"+Instructions!$B$3","v":"N"},null,{"$f":"+Instructions!$C$22","v":0},{"$f":"ROUND($AB407*(1-X407)+0.004999,2)","v":50.6},null,"",50.6,{"$f":"+X407","v":0},50.6,{"$f":"(AH407-AD407)/AH407","v":0},null,4,{"$f":"SUM(AK407:AM407)+AF407","v":50.6},null,null,{"$f":"ROUND(AD407/(1-VLOOKUP(AG407,Group,2,FALSE)),2)","v":50.6},{"$f":"IF(VLOOKUP(AG407,Group,5,FALSE)=\"YES\",VLOOKUP(ROUND(ROUND(AK407,1)-AK407,2),Round,2,FALSE)+VLOOKUP(AG407,Group,6,FALSE),0)","v":0},{"$f":"IF(VLOOKUP(AG407,Group,7,FALSE)=\"\",0,ROUND(AK407-0.04999,1)-AK407+AN407)","v":0},{"$f":"IF(VLOOKUP(AG407,Group,7,FALSE)=\"\",\"\",VLOOKUP(AG407,Group,7,FALSE))","v":""},null,"X"]
[null,"Accessories",null,null,"24\"",null,"01920-BU",null,null,null,"Straight Heavy-Duty Comfort Grip Grab Bar - Blue",null,null,null,null,null,null,null,null,{"$f":"IF(Suggested=\"Yes\",AB408,AH408)","v":56.45},"EA",{"$f":"+Instructions!$B$3","v":"N"},null,{"$f":"+Instructions!$C$22","v":0},{"$f":"ROUND($AB408*(1-X408)+0.004999,2)","v":56.45},null,"",56.45,0,56.45,{"$f":"(AH408-AD408)/AH408","v":0},null,4,{"$f":"SUM(AK408:AM408)+AF408","v":56.45},null,null,{"$f":"ROUND(AD408/(1-VLOOKUP(AG408,Group,2,FALSE)),2)","v":56.45},{"$f":"IF(VLOOKUP(AG408,Group,5,FALSE)=\"YES\",VLOOKUP(ROUND(ROUND(AK408,1)-AK408,2),Round,2,FALSE)+VLOOKUP(AG408,Group,6,FALSE),0)","v":0},{"$f":"IF(VLOOKUP(AG408,Group,7,FALSE)=\"\",0,ROUND(AK408-0.04999,1)-AK408+AN408)","v":0},{"$f":"IF(VLOOKUP(AG408,Group,7,FALSE)=\"\",\"\",VLOOKUP(AG408,Group,7,FALSE))","v":""},null,"X"]
[null,"Accessories",null,null,"24\"",null,"01920-GR",null,null,null,"Straight Heavy-Duty Comfort Grip Grab Bar - Gray",null,null,null,null,null,null,null,null,{"$f":"IF(Suggested=\"Yes\",AB409,AH409)","v":56.45},"EA",{"$f":"+Instructions!$B$3","v":"N"},null,{"$f":"+Instructions!$C$22","v":0},{"$f":"ROUND($AB409*(1-X409)+0.004999,2)","v":56.45},null,"",56.45,0,56.45,{"$f":"(AH409-AD409)/AH409","v":0},null,4,{"$f":"SUM(AK409:AM409)+AF409","v":56.45},null,null,{"$f":"ROUND(AD409/(1-VLOOKUP(AG409,Group,2,FALSE)),2)","v":56.45},{"$f":"IF(VLOOKUP(AG409,Group,5,FALSE)=\"YES\",VLOOKUP(ROUND(ROUND(AK409,1)-AK409,2),Round,2,FALSE)+VLOOKUP(AG409,Group,6,FALSE),0)","v":0},{"$f":"IF(VLOOKUP(AG409,Group,7,FALSE)=\"\",0,ROUND(AK409-0.04999,1)-AK409+AN409)","v":0},{"$f":"IF(VLOOKUP(AG409,Group,7,FALSE)=\"\",\"\",VLOOKUP(AG409,Group,7,FALSE))","v":""},null,"X"]
[null,"Accessories",null,null,"24\"",null,"01920-WH",null,null,null,"Straight Heavy-Duty Comfort Grip Grab Bar - White",null,null,null,null,null,null,null,null,56.45,"EA",{"$f":"+Instructions!$B$3","v":"N"},null,{"$f":"+Instructions!$C$22","v":0},56.45,null,"",56.45,0,56.45,0,null,4,56.45,null,null,56.45,0,0,"",null,"X"]
[null,"Accessories",null,null,"32\"",null,"01930-BU",null,null,null,"Straight Heavy-Duty Comfort Grip Grab Bar - Blue",null,null,null,null,null,null,null,null,68.8,"EA",{"$f":"+Instructions!$B$3","v":"N"},null,{"$f":"+Instructions!$C$22","v":0},68.8,null,"",68.8,0,68.8,0,null,4,68.8,null,null,68.8,0,0,"",null,"X"]
[null,"Accessories",null,null,"32\"",null,"01930-GR",null,null,null,"Straight Heavy-Duty Comfort Grip Grab Bar - Gray",null,null,null,null,null,null,null,null,68.8,"EA",{"$f":"+Instructions!$B$3","v":"N"},null,{"$f":"+Instructions!$C$22","v":0},{"$f":"ROUND($AB412*(1-X412)+0.004999,2)","v":68.8},null,"",68.8,0,68.8,0,null,4,68.8,null,null,68.8,0,0,"",null,"X"]
[null,"Accessories",null," ","32\"",null,"01930-WH",null,null,null,"Straight Heavy-Duty Comfort Grip Grab Bar - White",null,null,null,null,null,null,null,null,68.8,"EA",{"$f":"+Instructions!$B$3","v":"N"},null,{"$f":"+Instructions!$C$22","v":0},68.8,null,"",68.8,0,68.8,0,null,4,68.8,null,null,68.8,0,0,"",null,"X"]
[null,"Accessories",null,null,"36\"",null,"01940-BU",null,null,null,"Straight Heavy-Duty Comfort Grip Grab Bar - Blue",null,null,null,null,null,null,null,null,78.5,"EA",{"$f":"+Instructions!$B$3","v":"N"},null,{"$f":"+Instructions!$C$22","v":0},78.5,null,"",78.5,0,78.5,0,null,4,78.5,null,null,78.5,0,0,"",null,"X"]
[null,"Accessories",null,null,"36\"",null,"01940-GR",null,null,null,"Straight Heavy-Duty Comfort Grip Grab Bar - Gray",null,null,null,null,null,null,null,null,{"$f":"IF(Suggested=\"Yes\",AB415,AH415)","v":78.5},"EA",{"$f":"+Instructions!$B$3","v":"N"},null,{"$f":"+Instructions!$C$22","v":0},{"$f":"ROUND($AB415*(1-X415)+0.004999,2)","v":78.5},null,"",78.5,{"$f":"+X415","v":0},{"$f":"+Y415","v":78.5},{"$f":"(AH415-AD415)/AH415","v":0},null,4,{"$f":"SUM(AK415:AM415)+AF415","v":78.5},null,null,{"$f":"ROUND(AD415/(1-VLOOKUP(AG415,Group,2,FALSE)),2)","v":78.5},{"$f":"IF(VLOOKUP(AG415,Group,5,FALSE)=\"YES\",VLOOKUP(ROUND(ROUND(AK415,1)-AK415,2),Round,2,FALSE)+VLOOKUP(AG415,Group,6,FALSE),0)","v":0},{"$f":"IF(VLOOKUP(AG415,Group,7,FALSE)=\"\",0,ROUND(AK415-0.04999,1)-AK415+AN415)","v":0},{"$f":"IF(VLOOKUP(AG415,Group,7,FALSE)=\"\",\"\",VLOOKUP(AG415,Group,7,FALSE))","v":""},null,"X"]
[null,"Accessories",null,null,"36\"",null,"01940-WH",null,null,null,"Straight Heavy-Duty Comfort Grip Grab Bar - White",null,null,null,null,null,null,null,null,78.5,"EA",{"$f":"+Instructions!$B$3","v":"N"},null,{"$f":"+Instructions!$C$22","v":0},78.5,null,"",78.5,0,78.5,0,null,4,78.5,null,null,78.5,0,0,"",null,"X"]
[null,"Accessories",null,null,"42\"",null,"01950-BU",null,null,null,"Straight Heavy-Duty Comfort Grip Grab Bar - Blue",null,null,null,null,null,null,null,null,90.85,"EA",{"$f":"+Instructions!$B$3","v":"N"},null,{"$f":"+Instructions!$C$22","v":0},90.85,null,"",90.85,0,90.85,0,null,4,90.85,null,null,90.85,0,0,"",null,"X"]
[null,"Accessories",null,null,"42\"",null,"01950-GR",null,null,null,"Straight Heavy-Duty Comfort Grip Grab Bar - Gray",null,null,null,null,null,null,null,null,90.85,"EA",{"$f":"+Instructions!$B$3","v":"N"},null,{"$f":"+Instructions!$C$22","v":0},{"$f":"ROUND($AB418*(1-X418)+0.004999,2)","v":90.85},null,"",90.85,0,90.85,0,null,4,90.85,null,null,90.85,0,0,"",null,"X"]
[null,"Accessories",null,null,"42\"",null,"01950-WH",null,null,null,"Straight Heavy-Duty Comfort Grip Grab Bar - White",null,null,null,null,null,null,null,null,90.85,"EA",{"$f":"+Instructions!$B$3","v":"N"},null,{"$f":"+Instructions!$C$22","v":0},90.85,null,"",90.85,0,90.85,0,null,4,90.85,null,null,90.85,0,0,"",null,"X"]
[null,"Accessories",null,null,"18\" + 18\"",null,"01915-BU",null,null,null,"135° Angled Heavy-Duty Comfort Grip Grab Bar - Blue",null,null,null,null,null,null,null,null,{"$f":"IF(Suggested=\"Yes\",AB420,AH420)","v":100.2},"EA",{"$f":"+Instructions!$B$3","v":"N"},null,{"$f":"+Instructions!$C$22","v":0},{"$f":"ROUND($AB420*(1-X420)+0.004999,2)","v":100.2},null,"",100.2,{"$f":"+X420","v":0},{"$f":"+Y420","v":100.2},{"$f":"(AH420-AD420)/AH420","v":0},null,4,{"$f":"SUM(AK420:AM420)+AF420","v":100.2},null,null,{"$f":"ROUND(AD420/(1-VLOOKUP(AG420,Group,2,FALSE)),2)","v":100.2},{"$f":"IF(VLOOKUP(AG420,Group,5,FALSE)=\"YES\",VLOOKUP(ROUND(ROUND(AK420,1)-AK420,2),Round,2,FALSE)+VLOOKUP(AG420,Group,6,FALSE),0)","v":0},{"$f":"IF(VLOOKUP(AG420,Group,7,FALSE)=\"\",0,ROUND(AK420-0.04999,1)-AK420+AN420)","v":0},{"$f":"IF(VLOOKUP(AG420,Group,7,FALSE)=\"\",\"\",VLOOKUP(AG420,Group,7,FALSE))","v":""},null,"X"]
[null,"Accessories",null,null,"18\" + 18\"",null,"01915-WH",null,null,null,"135° Angled Heavy-Duty Comfort Grip Grab Bar - White",null,null,null,null,null,null,null,null,100.2,"EA",{"$f":"+Instructions!$B$3","v":"N"},null,{"$f":"+Instructions!$C$22","v":0},100.2,null,"",100.2,0,100.2,0,null,4,100.2,null,null,100.2,0,0,"",null,"X"]
[null,"Accessories",null,null,"24\" + 24\"",null,"01925-BU",null,null,null,"90° Angled Heavy-Duty Comfort Grip Grab Bar - Blue",null,null,null,null,null,null,null,null,{"$f":"IF(Suggested=\"Yes\",AB422,AH422)","v":144.30000000000001},"EA",{"$f":"+Instructions!$B$3","v":"N"},null,{"$f":"+Instructions!$C$22","v":0},{"$f":"ROUND($AB422*(1-X422)+0.004999,2)","v":144.30000000000001},null,"",144.30000000000001,{"$f":"+X422","v":0},{"$f":"+Y422","v":144.30000000000001},{"$f":"(AH422-AD422)/AH422","v":0},null,4,{"$f":"SUM(AK422:AM422)+AF422","v":144.30000000000001},null,null,{"$f":"ROUND(AD422/(1-VLOOKUP(AG422,Group,2,FALSE)),2)","v":144.30000000000001},{"$f":"IF(VLOOKUP(AG422,Group,5,FALSE)=\"YES\",VLOOKUP(ROUND(ROUND(AK422,1)-AK422,2),Round,2,FALSE)+VLOOKUP(AG422,Group,6,FALSE),0)","v":0},{"$f":"IF(VLOOKUP(AG422,Group,7,FALSE)=\"\",0,ROUND(AK422-0.04999,1)-AK422+AN422)","v":0},{"$f":"IF(VLOOKUP(AG422,Group,7,FALSE)=\"\",\"\",VLOOKUP(AG422,Group,7,FALSE))","v":""},null,"X"]
[null,"Accessories",null,null,"24\" + 24\"",null,"01925-WH",null,null,null,"90° Angled Heavy-Duty Comfort Grip Grab Bar - White",null,null,null,null,null,null,null,null,144.30000000000001,"EA",{"$f":"+Instructions!$B$3","v":"N"},null,{"$f":"+Instructions!$C$22","v":0},144.30000000000001,null,"",144.30000000000001,0,144.30000000000001,0,null,4,144.30000000000001,null,null,144.30000000000001,0,0,"",null,"X"]
[null,null,null,null,null,null,null,null,null,null,null,null,null,null,null,null,null,null,null,null,null,null,null,null,null,null,null,null,null,null,null,null,null,null,null,null,null,null,null,null,null,"X"]
[null,"Accessories",null,null,"70\" length - 34\" height",null,"01941-WH",null,null,null,"Cut-to-length Alcove Grab Bar Kit - White ",null,null,null,null,null,null,null,null,{"$f":"IF(Suggested=\"Yes\",AB425,AH425)","v":389.05},"EA",{"$f":"+Instructions!$B$3","v":"N"},null,{"$f":"+Instructions!$C$22","v":0},{"$f":"ROUND($AB425*(1-X425)+0.004999,2)","v":389.05},null,"",389.05,{"$f":"+X425","v":0},389.05,{"$f":"(AH425-AD425)/AH425","v":0},null,4,{"$f":"SUM(AK425:AM425)+AF425","v":389.05},null,null,{"$f":"ROUND(AD425/(1-VLOOKUP(AG425,Group,2,FALSE)),2)","v":389.05},{"$f":"IF(VLOOKUP(AG425,Group,5,FALSE)=\"YES\",VLOOKUP(ROUND(ROUND(AK425,1)-AK425,2),Round,2,FALSE)+VLOOKUP(AG425,Group,6,FALSE),0)","v":0},{"$f":"IF(VLOOKUP(AG425,Group,7,FALSE)=\"\",0,ROUND(AK425-0.04999,1)-AK425+AN425)","v":0},{"$f":"IF(VLOOKUP(AG425,Group,7,FALSE)=\"\",\"\",VLOOKUP(AG425,Group,7,FALSE))","v":""},null,"X"]
[null,"Accessories",null,null,"70\" length - 34\" height",null,"01942-WH",null,null,null,"Cut-to-length Corner Grab Bar Kit - White",null,null,null,null,null,null,null,null,{"$f":"IF(Suggested=\"Yes\",AB426,AH426)","v":305.89999999999998},"EA",{"$f":"+Instructions!$B$3","v":"N"},null,{"$f":"+Instructions!$C$22","v":0},{"$f":"ROUND($AB426*(1-X426)+0.004999,2)","v":305.89999999999998},null,"",305.89999999999998,0,305.89999999999998,{"$f":"(AH426-AD426)/AH426","v":0},null,4,{"$f":"SUM(AK426:AM426)+AF426","v":305.89999999999998},null,null,{"$f":"ROUND(AD426/(1-VLOOKUP(AG426,Group,2,FALSE)),2)","v":305.89999999999998},{"$f":"IF(VLOOKUP(AG426,Group,5,FALSE)=\"YES\",VLOOKUP(ROUND(ROUND(AK426,1)-AK426,2),Round,2,FALSE)+VLOOKUP(AG426,Group,6,FALSE),0)","v":0},{"$f":"IF(VLOOKUP(AG426,Group,7,FALSE)=\"\",0,ROUND(AK426-0.04999,1)-AK426+AN426)","v":0},{"$f":"IF(VLOOKUP(AG426,Group,7,FALSE)=\"\",\"\",VLOOKUP(AG426,Group,7,FALSE))","v":""},null,"X"]
[null,null,null,null,null,null,null,null,null,null,null,null,null,null,null,null,null,null,null,null,null,null,null,null,null,null,null,null,null,null,null,null,null,null,null,null,null,null,null,null,null,"X"]
[null,null,"continued on next page"]
[null,null,"Heavy-Duty Grab Bars & Supports - continued",null,null,null,null,null,null,null,null,null,null,null,null,null,null,null,"Item # Lookup:","AKGB",null,null,null,null,null,null,null,null,null,null,null,null,null,null,null,null,null,null,null,null,null,"X"]
[null,null,null,null,null,null,null,null,null,null,null,null,null,null,null,null,null,null,null,null,null,null,null,null,null,null,null,null,null,null,null,null,null,null,null,null,null,null,null,null,null,"X"]
[null,"Accessories",null,null,"17-5/8\" length",null,"01943-WH",null,null,null,"Cut-to-length Extension Bar Kit - White",null,null,null,null,null,null,null,null,{"$f":"IF(Suggested=\"Yes\",AB431,AH431)","v":52.6},"EA",{"$f":"+Instructions!$B$3","v":"N"},null,{"$f":"+Instructions!$C$22","v":0},{"$f":"ROUND($AB431*(1-X431)+0.004999,2)","v":52.6},null,"",52.6,0,52.6,{"$f":"(AH431-AD431)/AH431","v":0},null,4,{"$f":"SUM(AK431:AM431)+AF431","v":52.6},null,null,{"$f":"ROUND(AD431/(1-VLOOKUP(AG431,Group,2,FALSE)),2)","v":52.6},{"$f":"IF(VLOOKUP(AG431,Group,5,FALSE)=\"YES\",VLOOKUP(ROUND(ROUND(AK431,1)-AK431,2),Round,2,FALSE)+VLOOKUP(AG431,Group,6,FALSE),0)","v":0},{"$f":"IF(VLOOKUP(AG431,Group,7,FALSE)=\"\",0,ROUND(AK431-0.04999,1)-AK431+AN431)","v":0},{"$f":"IF(VLOOKUP(AG431,Group,7,FALSE)=\"\",\"\",VLOOKUP(AG431,Group,7,FALSE))","v":""},null,"X"]
[null,null,null,null,null,null,null,null,null,null,null,null,null,null,null,null,null,null,null,null,null,null,null,null,null,null,null,null,null,null,null,null,null,null,null,null,null,null,null,null,null,"X"]
[null,"Accessories",null,null,"26-3/4\" to 34-5/8\" height",null,"01830-BU",null,null,null,"Fold-up Support Bar with Adjustable Leg - Blue",null,null,null,null,null,null,null,null,{"$f":"IF(Suggested=\"Yes\",AB433,AH433)","v":304.89999999999998},"EA",{"$f":"+Instructions!$B$3","v":"N"},null,{"$f":"+Instructions!$C$22","v":0},{"$f":"ROUND($AB433*(1-X433)+0.004999,2)","v":304.89999999999998},null,"",304.89999999999998,{"$f":"+X433","v":0},{"$f":"+Y433","v":304.89999999999998},{"$f":"(AH433-AD433)/AH433","v":0},null,4,{"$f":"SUM(AK433:AM433)+AF433","v":304.89999999999998},null,null,{"$f":"ROUND(AD433/(1-VLOOKUP(AG433,Group,2,FALSE)),2)","v":304.89999999999998},{"$f":"IF(VLOOKUP(AG433,Group,5,FALSE)=\"YES\",VLOOKUP(ROUND(ROUND(AK433,1)-AK433,2),Round,2,FALSE)+VLOOKUP(AG433,Group,6,FALSE),0)","v":0},{"$f":"IF(VLOOKUP(AG433,Group,7,FALSE)=\"\",0,ROUND(AK433-0.04999,1)-AK433+AN433)","v":0},{"$f":"IF(VLOOKUP(AG433,Group,7,FALSE)=\"\",\"\",VLOOKUP(AG433,Group,7,FALSE))","v":""},null,"X"]
[null,"Accessories",null,null,"26-3/4\" to 34-5/8\" height",null,"01830-SS",null,null,null,"Fold-up Support Bar with Adjustable Leg - Stainless Steel",null,null,null,null,null,null,null,null,{"$f":"IF(Suggested=\"Yes\",AB434,AH434)","v":305.89999999999998},"EA",{"$f":"+Instructions!$B$3","v":"N"},null,{"$f":"+Instructions!$C$22","v":0},{"$f":"ROUND($AB434*(1-X434)+0.004999,2)","v":305.89999999999998},null,"",305.89999999999998,{"$f":"+X434","v":0},{"$f":"+Y434","v":305.89999999999998},{"$f":"(AH434-AD434)/AH434","v":0},null,4,{"$f":"SUM(AK434:AM434)+AF434","v":305.89999999999998},null,null,{"$f":"ROUND(AD434/(1-VLOOKUP(AG434,Group,2,FALSE)),2)","v":305.89999999999998},{"$f":"IF(VLOOKUP(AG434,Group,5,FALSE)=\"YES\",VLOOKUP(ROUND(ROUND(AK434,1)-AK434,2),Round,2,FALSE)+VLOOKUP(AG434,Group,6,FALSE),0)","v":0},{"$f":"IF(VLOOKUP(AG434,Group,7,FALSE)=\"\",0,ROUND(AK434-0.04999,1)-AK434+AN434)","v":0},{"$f":"IF(VLOOKUP(AG434,Group,7,FALSE)=\"\",\"\",VLOOKUP(AG434,Group,7,FALSE))","v":""},null,"X"]
[null,"Accessories",null,null,"26-3/4\" to 34-5/8\" height",null,"01830-WH",null,null,null,"Fold-up Support Bar with Adjustable Leg - White",null,null,null,null,null,null,null,null,{"$f":"IF(Suggested=\"Yes\",AB435,AH435)","v":304.89999999999998},"EA",{"$f":"+Instructions!$B$3","v":"N"},null,{"$f":"+Instructions!$C$22","v":0},{"$f":"ROUND($AB435*(1-X435)+0.004999,2)","v":304.89999999999998},null,"",304.89999999999998,{"$f":"+X435","v":0},304.89999999999998,{"$f":"(AH435-AD435)/AH435","v":0},null,4,{"$f":"SUM(AK435:AM435)+AF435","v":304.89999999999998},null,null,{"$f":"ROUND(AD435/(1-VLOOKUP(AG435,Group,2,FALSE)),2)","v":304.89999999999998},{"$f":"IF(VLOOKUP(AG435,Group,5,FALSE)=\"YES\",VLOOKUP(ROUND(ROUND(AK435,1)-AK435,2),Round,2,FALSE)+VLOOKUP(AG435,Group,6,FALSE),0)","v":0},{"$f":"IF(VLOOKUP(AG435,Group,7,FALSE)=\"\",0,ROUND(AK435-0.04999,1)-AK435+AN435)","v":0},{"$f":"IF(VLOOKUP(AG435,Group,7,FALSE)=\"\",\"\",VLOOKUP(AG435,Group,7,FALSE))","v":""},null,"X"]
[null,"Accessories",null,null,"26-3/4\" height",null,"01820-WH",null,null,null,"Fold-up Support Bar with Fixed Leg - White",null,null,null,null,null,null,null,null,{"$f":"IF(Suggested=\"Yes\",AB436,AH436)","v":251.45},"EA",{"$f":"+Instructions!$B$3","v":"N"},null,{"$f":"+Instructions!$C$22","v":0},{"$f":"ROUND($AB436*(1-X436)+0.004999,2)","v":251.45},null,"",251.45,{"$f":"+X436","v":0},{"$f":"+Y436","v":251.45},{"$f":"(AH436-AD436)/AH436","v":0},null,4,{"$f":"SUM(AK436:AM436)+AF436","v":251.45},null,null,{"$f":"ROUND(AD436/(1-VLOOKUP(AG436,Group,2,FALSE)),2)","v":251.45},{"$f":"IF(VLOOKUP(AG436,Group,5,FALSE)=\"YES\",VLOOKUP(ROUND(ROUND(AK436,1)-AK436,2),Round,2,FALSE)+VLOOKUP(AG436,Group,6,FALSE),0)","v":0},{"$f":"IF(VLOOKUP(AG436,Group,7,FALSE)=\"\",0,ROUND(AK436-0.04999,1)-AK436+AN436)","v":0},{"$f":"IF(VLOOKUP(AG436,Group,7,FALSE)=\"\",\"\",VLOOKUP(AG436,Group,7,FALSE))","v":""},null,"X"]
[null,"Accessories",null,null,null,null,"01810-WH",null,null,null,"Fold-up Support Bar with No Leg - White",null,null,null,null,null,null,null,null,{"$f":"IF(Suggested=\"Yes\",AB437,AH437)","v":278.2},"EA",{"$f":"+Instructions!$B$3","v":"N"},null,{"$f":"+Instructions!$C$22","v":0},{"$f":"ROUND($AB437*(1-X437)+0.004999,2)","v":278.2},null,"",278.2,0,278.2,{"$f":"(AH437-AD437)/AH437","v":0},null,4,{"$f":"SUM(AK437:AM437)+AF437","v":278.2},null,null,{"$f":"ROUND(AD437/(1-VLOOKUP(AG437,Group,2,FALSE)),2)","v":278.2},{"$f":"IF(VLOOKUP(AG437,Group,5,FALSE)=\"YES\",VLOOKUP(ROUND(ROUND(AK437,1)-AK437,2),Round,2,FALSE)+VLOOKUP(AG437,Group,6,FALSE),0)","v":0},{"$f":"IF(VLOOKUP(AG437,Group,7,FALSE)=\"\",0,ROUND(AK437-0.04999,1)-AK437+AN437)","v":0},{"$f":"IF(VLOOKUP(AG437,Group,7,FALSE)=\"\",\"\",VLOOKUP(AG437,Group,7,FALSE))","v":""},null,"X"]
[null,null,null,null,null,null,null,null,null,null,null,null,null,null,null,null,null,null,null,null,null,null,null,null,null,null,null,null,null,null,null,null,null,null,null,null,null,null,null,null,null,"X"]
[null,"Accessories"," ",null,"9\"",null,"01190-BU",null,null,null,"Padded Back Rest - Blue",null,null,null,null,null,null,null,null,{"$f":"IF(Suggested=\"Yes\",AB439,AH439)","v":69.75},"EA",{"$f":"+Instructions!$B$3","v":"N"},null,{"$f":"+Instructions!$C$22","v":0},{"$f":"ROUND($AB439*(1-X439)+0.004999,2)","v":69.75},null,"",69.75,{"$f":"+X439","v":0},{"$f":"+Y439","v":69.75},{"$f":"(AH439-AD439)/AH439","v":0},null,4,{"$f":"SUM(AK439:AM439)+AF439","v":69.75},null,null,{"$f":"ROUND(AD439/(1-VLOOKUP(AG439,Group,2,FALSE)),2)","v":69.75},{"$f":"IF(VLOOKUP(AG439,Group,5,FALSE)=\"YES\",VLOOKUP(ROUND(ROUND(AK439,1)-AK439,2),Round,2,FALSE)+VLOOKUP(AG439,Group,6,FALSE),0)","v":0},{"$f":"IF(VLOOKUP(AG439,Group,7,FALSE)=\"\",0,ROUND(AK439-0.04999,1)-AK439+AN439)","v":0},{"$f":"IF(VLOOKUP(AG439,Group,7,FALSE)=\"\",\"\",VLOOKUP(AG439,Group,7,FALSE))","v":""},null,"X"]
[null,"Accessories",null,null,"9\"",null,"01190-GR",null,null,null,"Padded Back Rest - Gray",null,null,null,null,null,null,null,null,{"$f":"IF(Suggested=\"Yes\",AB440,AH440)","v":69.75},"EA",{"$f":"+Instructions!$B$3","v":"N"},null,{"$f":"+Instructions!$C$22","v":0},{"$f":"ROUND($AB440*(1-X440)+0.004999,2)","v":69.75},null,"",69.75,{"$f":"+X440","v":0},{"$f":"+Y440","v":69.75},{"$f":"(AH440-AD440)/AH440","v":0},null,4,{"$f":"SUM(AK440:AM440)+AF440","v":69.75},null,null,{"$f":"ROUND(AD440/(1-VLOOKUP(AG440,Group,2,FALSE)),2)","v":69.75},{"$f":"IF(VLOOKUP(AG440,Group,5,FALSE)=\"YES\",VLOOKUP(ROUND(ROUND(AK440,1)-AK440,2),Round,2,FALSE)+VLOOKUP(AG440,Group,6,FALSE),0)","v":0},{"$f":"IF(VLOOKUP(AG440,Group,7,FALSE)=\"\",0,ROUND(AK440-0.04999,1)-AK440+AN440)","v":0},{"$f":"IF(VLOOKUP(AG440,Group,7,FALSE)=\"\",\"\",VLOOKUP(AG440,Group,7,FALSE))","v":""},null,"X"]
[null,null,null,null,null,null,null,null,null,null,null,null,null,null,null,null,null,null,null,null,null,null,null,null,null,null,null,null,null,null,null,null,null,null,null,null,null,null,null,null,null,"X"]
[null,null,"Transition Grab Bars",null,null,null,null,null,null,null,null,null,null,null,null,null,null,null,"Item # Lookup:","AKGB",null,null,null,null,null,null,null,null,null,null,null,null,null,null,null,null,null,null,null,null,null,"X"]
[null,null,null,null,null,null,null,null,null,null,null,null,null,null,null,null,null,null,null,null,null,null,null,null,null,null,null,null,null,null,null,null,null,null,null,null,null,null,null,null,null,"X"]
[null,"Accessories",null,null,"12\"",null,"01200-WH",null,null,null,"Flat End Grab Bar - White",null,null,null,null,null,null,null,null,{"$f":"IF(Suggested=\"Yes\",AB444,AH444)","v":27.75},"EA",{"$f":"+Instructions!$B$3","v":"N"},null,{"$f":"+Instructions!$C$22","v":0},{"$f":"ROUND($AB444*(1-X444)+0.004999,2)","v":27.75},null,"",27.75,{"$f":"+X444","v":0},{"$f":"+Y444","v":27.75},{"$f":"(AH444-AD444)/AH444","v":0},null,4,{"$f":"SUM(AK444:AM444)+AF444","v":27.75},null,null,{"$f":"ROUND(AD444/(1-VLOOKUP(AG444,Group,2,FALSE)),2)","v":27.75},{"$f":"IF(VLOOKUP(AG444,Group,5,FALSE)=\"YES\",VLOOKUP(ROUND(ROUND(AK444,1)-AK444,2),Round,2,FALSE)+VLOOKUP(AG444,Group,6,FALSE),0)","v":0},{"$f":"IF(VLOOKUP(AG444,Group,7,FALSE)=\"\",0,ROUND(AK444-0.04999,1)-AK444+AN444)","v":0},{"$f":"IF(VLOOKUP(AG444,Group,7,FALSE)=\"\",\"\",VLOOKUP(AG444,Group,7,FALSE))","v":""},null,"X"]
[null,"Accessories",null,null,"18\"",null,"01210-WH",null,null,null,"Flat End Grab Bar - White",null,null,null,null,null,null,null,null,38.299999999999997,"EA",{"$f":"+Instructions!$B$3","v":"N"},null,{"$f":"+Instructions!$C$22","v":0},38.299999999999997,null,"",38.299999999999997,{"$f":"+X445","v":0},{"$f":"+Y445","v":38.299999999999997},0,null,4,38.299999999999997,null,null,38.299999999999997,0,0,"",null,"X"]
[null,"Accessories",null,null,"18\"",null,"01760-WH",null,null,null,"Cranked Grab Bar - White",null,null,null,null,null,null,null,null,27.75,"EA",{"$f":"+Instructions!$B$3","v":"N"},null,{"$f":"+Instructions!$C$22","v":0},27.75,null,"",27.75,{"$f":"+X446","v":0},27.75,0,null,4,27.75,null,null,27.75,0,0,"",null,"X"]
[null,"Accessories",null,null,"24\"",null,"01750-WH",null,null,null,"Cranked Grab Bar - White",null,null,null,null,null,null,null,null,39.299999999999997,"EA",{"$f":"+Instructions!$B$3","v":"N"},null,{"$f":"+Instructions!$C$22","v":0},39.299999999999997,null,"",39.299999999999997,0,39.299999999999997,0,null,4,39.299999999999997,null,null,39.299999999999997,0,0,"",null,"X"]
[null,"Accessories",null,null,"28\"",null,"01745-L",null,null,null,"Newell Grab Bar (left handed) - Ivory",null,null,null,null,null,null,null,null,65.849999999999994,"EA",{"$f":"+Instructions!$B$3","v":"N"},null,{"$f":"+Instructions!$C$22","v":0},65.849999999999994,null,"",65.849999999999994,{"$f":"+X448","v":0},{"$f":"+Y448","v":65.849999999999994},0,null,4,65.849999999999994,null,null,65.849999999999994,0,0,"",null,"X"]
[null,"Accessories",null,null,"28\"",null,"01745-R",null,null,null,"Newell Grab Bar (right handed) - Ivory",null,null,null,null,null,null,null,null,65.849999999999994,"EA",{"$f":"+Instructions!$B$3","v":"N"},null,{"$f":"+Instructions!$C$22","v":0},65.849999999999994,null,"",65.849999999999994,0,65.849999999999994,0,null,4,65.849999999999994,null,null,65.849999999999994,0,0,"",null,"X"]
[null,null,null,null,null,null,null,null,null,null,null,null,null,null,null,null,null,null,null,null,null,null,null,null,null,null,null,null,null,null,null,null,null,null,null,null,null,null,null,null,null,"X"]
[null,null,"Rugao Grab Bars",null,null,null,null,null,null,null,null,null,null,null," ",null,null,null,"Item # Lookup:","AKGB",null,null,null,null,null,null,null,null,null,null,null,null,null,null,null,null,null,null,null,null,null,"X"]
[null,null,null,null,null,null,null,null,null,null,null,null,null,null,null,null,null,null,null,null,null,null,null,null,null,null,null,null,null,null,null,null,null,null,null,null,null,null,null,null,null,"X"]
[null,"Accessories",null,null,"12\"",null,"12010-GR",null,null,null,"Grab Bar - Dark Grey",null,null,null,null,null,null,null,null,{"$f":"IF(Suggested=\"Yes\",AB453,AH453)","v":38.450000000000003},"EA",{"$f":"+Instructions!$B$3","v":"N"},null,{"$f":"+Instructions!$C$22","v":0},{"$f":"ROUND($AB453*(1-X453)+0.004999,2)","v":38.450000000000003},null,"",38.450000000000003,{"$f":"+X453","v":0},38.450000000000003,{"$f":"(AH453-AD453)/AH453","v":0},null,4,{"$f":"SUM(AK453:AM453)+AF453","v":38.450000000000003},null,null,{"$f":"ROUND(AD453/(1-VLOOKUP(AG453,Group,2,FALSE)),2)","v":38.450000000000003},{"$f":"IF(VLOOKUP(AG453,Group,5,FALSE)=\"YES\",VLOOKUP(ROUND(ROUND(AK453,1)-AK453,2),Round,2,FALSE)+VLOOKUP(AG453,Group,6,FALSE),0)","v":0},{"$f":"IF(VLOOKUP(AG453,Group,7,FALSE)=\"\",0,ROUND(AK453-0.04999,1)-AK453+AN453)","v":0},{"$f":"IF(VLOOKUP(AG453,Group,7,FALSE)=\"\",\"\",VLOOKUP(AG453,Group,7,FALSE))","v":""},null,"X"]
[null,"Accessories",null,null,"12\"",null,"12010-WH",null,null,null,"Grab Bar - White",null,null,null,null,null,null,null,null,38.450000000000003,"EA",{"$f":"+Instructions!$B$3","v":"N"},null,{"$f":"+Instructions!$C$22","v":0},38.450000000000003,null,"",38.450000000000003,0,38.450000000000003,0,null,4,38.450000000000003,null,null,38.450000000000003,0,0,"",null,"X"]
[null,"Accessories",null,null,"18\"",null,"12011-GR",null,null,null,"Grab Bar - Dark Grey",null,null,null,null,null,null,null,null,43.5,"EA",{"$f":"+Instructions!$B$3","v":"N"},null,{"$f":"+Instructions!$C$22","v":0},43.5,null,"",43.5,0,43.5,0,null,4,43.5,null,null,43.5,0,0,"",null,"X"]
[null,"Accessories",null,null,"18\"",null,"12011-WH",null,null,null,"Grab Bar - White",null,null,null,null,null,null,null,null,43.5,"EA",{"$f":"+Instructions!$B$3","v":"N"},null,{"$f":"+Instructions!$C$22","v":0},43.5,null,"",43.5,0,43.5,0,null,4,43.5,null,null,43.5,0,0,"",null,"X"]
[null,"Accessories",null,null,"24\"",null,"12012-GR",null,null," ","Grab Bar - Dark Grey",null,null,null,null,null,null,null,null,48.55,"EA",{"$f":"+Instructions!$B$3","v":"N"},null,{"$f":"+Instructions!$C$22","v":0},48.55,null,"",48.55,0,48.55,0,null,4,48.55,null,null,48.55,0,0,"",null,"X"]
[null,"Accessories",null,null,"24\"",null,"12012-WH",null,null,null,"Grab Bar - White",null,null,null,null,null,null,null,null,48.55,"EA",{"$f":"+Instructions!$B$3","v":"N"},null,{"$f":"+Instructions!$C$22","v":0},48.55,null,"",48.55,0,48.55,0,null,4,48.55,null,null,48.55,0,0,"",null,"X"]
[null,null,null,null,null,null,null,null,null,null,null,null,null,null,null,null,null,null,null,null,null,null,null,null,null,null,null,null,null,null,null,null,null,null,null,null,null,null,null,null,null,"X"]
[null,null,"Velena Wall Panels",null,null,null,null,null,null,null,null,null,null,null,null,null,null,null,"Item # Lookup:","AKVE",null,null,null,null,null,null,null,null,null,null,null,null,null,null,null,null,null,null,null,null,null,"X"]
[null,null,null,null,null,null,null,null,null,null,null,null,null,null,null,null,null,null,null,null,null,null,null,null,null,null,null,null,null,null,null,null,null,null,null,null,null,null,null,null,null,"X"]
[null,"Accessories",null,null,"48\" x 36\" x 96\"",null,"27815WH",null,null,"Subway Tile Pattern Wall Panels Kit - White",null,null,null,null,null,null,null,null,"a",{"$f":"IF(Suggested=\"Yes\",AB462,AH462)","v":1371.45},"EA",{"$f":"+Instructions!$B$3","v":"N"},null,{"$f":"+Instructions!$C$22","v":0},{"$f":"ROUND($AB462*(1-X462)+0.004999,2)","v":1371.45},null,"new",1371.45,{"$f":"+X462","v":0},{"$f":"+Y462","v":1371.45},{"$f":"(AH462-AD462)/AH462","v":0},null,4,{"$f":"SUM(AK462:AM462)+AF462","v":1371.45},null,null,{"$f":"ROUND(AD462/(1-VLOOKUP(AG462,Group,2,FALSE)),2)","v":1371.45},{"$f":"IF(VLOOKUP(AG462,Group,5,FALSE)=\"YES\",VLOOKUP(ROUND(ROUND(AK462,1)-AK462,2),Round,2,FALSE)+VLOOKUP(AG462,Group,6,FALSE),0)","v":0},{"$f":"IF(VLOOKUP(AG462,Group,7,FALSE)=\"\",0,ROUND(AK462-0.04999,1)-AK462+AN462)","v":0},{"$f":"IF(VLOOKUP(AG462,Group,7,FALSE)=\"\",\"\",VLOOKUP(AG462,Group,7,FALSE))","v":""},null,"X"]
[null,"Accessories",null,null,"60\" x 36\" x 96\"",null,"27816WH",null,null,"Subway Tile Pattern Wall Panels Kit - White",null,null,null,null,null,null,null,null,"a",1472.15,"EA",{"$f":"+Instructions!$B$3","v":"N"},null,{"$f":"+Instructions!$C$22","v":0},1472.15,null,"new",1472.15,0,1472.15,0,null,4,1472.15,null,null,1472.15,0,0,"",null,"X"]
[null,null,null,null,null,null,null,null,null,null,null,null,null,null,null,null,null,null,null,null,null,null,null,null,null,null,null,null,null,null,null,null,null,null,null,null,null,null,null,null,null,"X"]
[null,"Accessories",null,null,"48\" x 36\" x 96\"",null,"27818WH",null,null,"Large Tile Pattern Wall Panels Kit - White",null,null,null,null,null,null,null,null,"a",1371.45,"EA",{"$f":"+Instructions!$B$3","v":"N"},null,{"$f":"+Instructions!$C$22","v":0},1371.45,null,"new",1371.45,0,1371.45,0,null,4,1371.45,null,null,1371.45,0,0,"",null,"X"]
[null,"Accessories",null,null,"60\" x 36\" x 96\"",null,"27819WH",null,null,"Large Tile Pattern Wall Panels Kit - White",null,null,null,null,null,null,null,null,"a",1472.15,"EA",{"$f":"+Instructions!$B$3","v":"N"},null,{"$f":"+Instructions!$C$22","v":0},1472.15,null,"new",1472.15,0,1472.15,0,null,4,1472.15,null,null,1472.15,0,0,"",null,"X"]
[null,"Accessories",null,null,"48\" x 36\" x 96\"",null,"27818GR",null,null,"Large Tile Pattern Wall Panels Kit - Gray",null,null,null,null,null,null,null,null,"a",{"$f":"IF(Suggested=\"Yes\",AB467,AH467)","v":1371.45},"EA",{"$f":"+Instructions!$B$3","v":"N"},null,{"$f":"+Instructions!$C$22","v":0},{"$f":"ROUND($AB467*(1-X467)+0.004999,2)","v":1371.45},null,"new",1371.45,{"$f":"+X467","v":0},{"$f":"+Y467","v":1371.45},{"$f":"(AH467-AD467)/AH467","v":0},null,4,{"$f":"SUM(AK467:AM467)+AF467","v":1371.45},null,null,{"$f":"ROUND(AD467/(1-VLOOKUP(AG467,Group,2,FALSE)),2)","v":1371.45},{"$f":"IF(VLOOKUP(AG467,Group,5,FALSE)=\"YES\",VLOOKUP(ROUND(ROUND(AK467,1)-AK467,2),Round,2,FALSE)+VLOOKUP(AG467,Group,6,FALSE),0)","v":0},{"$f":"IF(VLOOKUP(AG467,Group,7,FALSE)=\"\",0,ROUND(AK467-0.04999,1)-AK467+AN467)","v":0},{"$f":"IF(VLOOKUP(AG467,Group,7,FALSE)=\"\",\"\",VLOOKUP(AG467,Group,7,FALSE))","v":""},null,"X"]
[null,"Accessories",null,null,"60\" x 36\" x 96\"",null,"27819GR",null,null,"Large Tile Pattern Wall Panels Kit - Gray",null,null,null,null,null,null,null,null,"a",1472.15,"EA",{"$f":"+Instructions!$B$3","v":"N"},null,{"$f":"+Instructions!$C$22","v":0},1472.15,null,"new",1472.15,0,1472.15,0,null,4,1472.15,null,null,1472.15,0,0,"",null,"X"]
[null,null,null,null,null,null,null,null,null,null,null,null,null,null,null,null,null,null,null,null,null,null,null,null,null,null,null,null,null,null,null,null,null,null,null,null,null,null,null,null,null,"X"]
[null,"Accessories",null,null,"48\" x 36\" x 96\"",null,"27821WH",null,null,"Hexagon Tile Pattern Wall Panels Kit - White",null,null,null,null,null,null,null,null,"a",{"$f":"IF(Suggested=\"Yes\",AB470,AH470)","v":1371.45},"EA",{"$f":"+Instructions!$B$3","v":"N"},null,{"$f":"+Instructions!$C$22","v":0},{"$f":"ROUND($AB470*(1-X470)+0.004999,2)","v":1371.45},null,"new",1371.45,{"$f":"+X470","v":0},{"$f":"+Y470","v":1371.45},{"$f":"(AH470-AD470)/AH470","v":0},null,4,{"$f":"SUM(AK470:AM470)+AF470","v":1371.45},null,null,{"$f":"ROUND(AD470/(1-VLOOKUP(AG470,Group,2,FALSE)),2)","v":1371.45},{"$f":"IF(VLOOKUP(AG470,Group,5,FALSE)=\"YES\",VLOOKUP(ROUND(ROUND(AK470,1)-AK470,2),Round,2,FALSE)+VLOOKUP(AG470,Group,6,FALSE),0)","v":0},{"$f":"IF(VLOOKUP(AG470,Group,7,FALSE)=\"\",0,ROUND(AK470-0.04999,1)-AK470+AN470)","v":0},{"$f":"IF(VLOOKUP(AG470,Group,7,FALSE)=\"\",\"\",VLOOKUP(AG470,Group,7,FALSE))","v":""},null,"X"]
[null,"Accessories",null,null,"60\" x 36\" x 96\"",null,"27822WH",null,null,"Hexagon Tile Pattern Wall Panels Kit - White",null,null,null,null,null,null,null,null,"a",1472.15,"EA",{"$f":"+Instructions!$B$3","v":"N"},null,{"$f":"+Instructions!$C$22","v":0},1472.15,null,"new",1472.15,0,1472.15,0,null,4,1472.15,null,null,1472.15,0,0,"",null,"X"]
[null,"Accessories",null,null,"48\" x 36\" x 96\"",null,"27821GR",null,null,"Hexagon Tile Pattern Wall Panels Kit - Gray",null,null,null,null,null,null," ",null,"a",1371.45,"EA",{"$f":"+Instructions!$B$3","v":"N"},null,{"$f":"+Instructions!$C$22","v":0},1371.45,null,"new",1371.45,0,1371.45,0,null,4,1371.45,null,null,1371.45,0,0,"",null,"X"]
[null,"Accessories",null,null,"60\" x 36\" x 96\"",null,"27822GR",null,null,"Hexagon Tile Pattern Wall Panels Kit - Gray",null,null,null,null,null,null,null,null,"a",{"$f":"IF(Suggested=\"Yes\",AB473,AH473)","v":1472.15},"EA",{"$f":"+Instructions!$B$3","v":"N"},null,{"$f":"+Instructions!$C$22","v":0},{"$f":"ROUND($AB473*(1-X473)+0.004999,2)","v":1472.15},null,"new",1472.15,{"$f":"+X473","v":0},{"$f":"+Y473","v":1472.15},{"$f":"(AH473-AD473)/AH473","v":0},null,4,{"$f":"SUM(AK473:AM473)+AF473","v":1472.15},null,null,{"$f":"ROUND(AD473/(1-VLOOKUP(AG473,Group,2,FALSE)),2)","v":1472.15},{"$f":"IF(VLOOKUP(AG473,Group,5,FALSE)=\"YES\",VLOOKUP(ROUND(ROUND(AK473,1)-AK473,2),Round,2,FALSE)+VLOOKUP(AG473,Group,6,FALSE),0)","v":0},{"$f":"IF(VLOOKUP(AG473,Group,7,FALSE)=\"\",0,ROUND(AK473-0.04999,1)-AK473+AN473)","v":0},{"$f":"IF(VLOOKUP(AG473,Group,7,FALSE)=\"\",\"\",VLOOKUP(AG473,Group,7,FALSE))","v":""},null,"X"]
[null,null,null,null,null,null,null,null,null,null,null,null,null,null,null,null,null,null,null,null,null,null,null,null,null,null,null,null,null,null,null,null,null,null,null,null,null,null,null,null,null,"X"]
[null,null,null,"Notes:","Wall panels are constructed from durable sheet-molded compound plastic (SMC), the same rigid material as the TrueDEK Classic"]
[null,null,null,null,"Shower Bases.  They offer high mechanical strength and an extremely durable watertight finish, with the panels joined using",null,null,null,null,null,null,null,null,null,null,null,null,null,null,null,null,null,null,null,null,null,null,null,null,null,null,null,null,null,null,null,null,null,null,null,null,"X"]
[null,null,null,null,"aluminum trims and sealed with silicone caulk.",null,null,null,null,null,null,null,null,null,null,null,null,null,null,null,null,null,null,null,null,null,null,null,null,null,null,null,null,null,null,null,null,null,null,null,null,"X"]
[null,null,null,null,"a) Each Kit contains:  1 - Velena Wall Panel 48\" x 96\" OR 60\" x 96\", 2 - Velena Wall Panels 36\" x 96\", 2 - Velena Wall Panels 96\" Internal",null,null,null,null,null,null,null,null,null,null,null,null,null,null,null,null,null,null,null,null,null,null,null,null,null,null,null,null,null,null,null,null,null,null,null,null,"X"]
[null,null,null,null,"Corner, 2 - Velena Wall Panels 96\" End Cap, 8 - 10oz. Tubes Tank/10 Polyurethane Construction Adhesive & 2 - 10oz. tubes silicone caulk.",null,null,null,null,null,null,null,null,null,null,null,null,null,null,null,null,null,null,null,null,null,null,null,null,null,null,null,null,null,null,null,null,null,null,null,null,"X"]
[null,null,null,null,null,null,null,null,null,null,null,null,null,null,null,null,null,null,null,null,null,null,null,null,null,null,null,null,null,null,null,null,null,null,null,null,null,null,null,null,null,"X"]
[null,null,null,"Velena Wall Panels (A La Carte)",null,null,null,null,null,null,null,null,null,null,null,null,null,null,"Item # Lookup:","AKVE",null,null,null,null,null,null,null,null,null,null,null,null,null,null,null,null,null,null,null,null,null,"X"]
[null,null,null,null,null,null,null,null,null,null,null,null,null,null,null,null,null,null,null,null,null,null,null,null,null,null,null,null,null,null,null,null,null,null,null,null,null,null,null,null,null,"X"]
[null,"Accessories",null,null,"36\" x 96\"",null,"27803WH",null,null,"Subway Tile Pattern Wall Panel - White",null,null,null,null,null,null,null,null,null,{"$f":"IF(Suggested=\"Yes\",AB483,AH483)","v":456},"EA",{"$f":"+Instructions!$B$3","v":"N"},null,{"$f":"+Instructions!$C$22","v":0},{"$f":"ROUND($AB483*(1-X483)+0.004999,2)","v":456},null,"new",456,{"$f":"+X483","v":0},{"$f":"+Y483","v":456},{"$f":"(AH483-AD483)/AH483","v":0},null,4,{"$f":"SUM(AK483:AM483)+AF483","v":456},null,null,{"$f":"ROUND(AD483/(1-VLOOKUP(AG483,Group,2,FALSE)),2)","v":456},{"$f":"IF(VLOOKUP(AG483,Group,5,FALSE)=\"YES\",VLOOKUP(ROUND(ROUND(AK483,1)-AK483,2),Round,2,FALSE)+VLOOKUP(AG483,Group,6,FALSE),0)","v":0},{"$f":"IF(VLOOKUP(AG483,Group,7,FALSE)=\"\",0,ROUND(AK483-0.04999,1)-AK483+AN483)","v":0},{"$f":"IF(VLOOKUP(AG483,Group,7,FALSE)=\"\",\"\",VLOOKUP(AG483,Group,7,FALSE))","v":""},null,"X"]
[null,"Accessories",null,null,"48\" x 96\"",null,"27804WH",null,null,"Subway Tile Pattern Wall Panel - White",null,null,null,null,null,null,null,null,null,504.05,"EA",{"$f":"+Instructions!$B$3","v":"N"},null,{"$f":"+Instructions!$C$22","v":0},504.05,null,"new",504.05,0,504.05,0,null,4,504.05,null,null,504.05,0,0,"",null,"X"]
[null,"Accessories",null,null,"60\" x 96\"",null,"27805WH",null,null,"Subway Tile Pattern Wall Panel - White",null,null,null,null,null,null,null,null,null,576.4,"EA",{"$f":"+Instructions!$B$3","v":"N"},null,{"$f":"+Instructions!$C$22","v":0},576.4,null,"new",576.4,0,576.4,0,null,4,576.4,null,null,576.4,0,0,"",null,"X"]
[null,null,null,null,null,null,null,null,null,null,null,null,null,null,null,null,null,null,null,null,null,null,null,null,null,null,null,null,null,null,null,null,null,null,null,null,null,null,null,null,null,"X"]
[null,"Accessories",null,null,"36\" x 96\"",null,"27806WH",null,null,"Large Tile Pattern Wall Panel - White",null,null,null,null,null,null,null,null,null,456,"EA",{"$f":"+Instructions!$B$3","v":"N"},null,{"$f":"+Instructions!$C$22","v":0},456,null,"new",456,0,456,0,null,4,456,null,null,456,0,0,"",null,"X"]
[null,"Accessories",null,null,"36\" x 96\"",null,"27806GR",null,null,"Large Tile Pattern Wall Panel - Gray",null,null,null,null,null,null,null,null,null,456,"EA",{"$f":"+Instructions!$B$3","v":"N"},null,{"$f":"+Instructions!$C$22","v":0},456,null,"new",456,0,456,0,null,4,456,null,null,456,0,0,"",null,"X"]
[null,"Accessories",null,null,"48\" x 96\"",null,"27807WH",null,null,"Large Tile Pattern Wall Panel - White",null,null,null,null,null,null,null,null,null,504.05,"EA",{"$f":"+Instructions!$B$3","v":"N"},null,{"$f":"+Instructions!$C$22","v":0},504.05,null,"new",504.05,0,504.05,0,null,4,504.05,null,null,504.05,0,0,"",null,"X"]
[null,"Accessories",null,null,"48\" x 96\"",null,"27807GR",null,null,"Large Tile Pattern Wall Panel - Gray",null,null,null,null,null,null,null,null,null,504.05,"EA",{"$f":"+Instructions!$B$3","v":"N"},null,{"$f":"+Instructions!$C$22","v":0},504.05,null,"new",504.05,0,504.05,0,null,4,504.05,null,null,504.05,0,0,"",null,"X"]
[null,"Accessories",null,null,"60\" x 96\"",null,"27808WH",null,null,"Large Tile Pattern Wall Panel - White",null,null,null,null,null,null,null,null,null,{"$f":"IF(Suggested=\"Yes\",AB491,AH491)","v":576.4},"EA",{"$f":"+Instructions!$B$3","v":"N"},null,{"$f":"+Instructions!$C$22","v":0},{"$f":"ROUND($AB491*(1-X491)+0.004999,2)","v":576.4},null,"new",576.4,{"$f":"+X491","v":0},{"$f":"+Y491","v":576.4},{"$f":"(AH491-AD491)/AH491","v":0},null,4,{"$f":"SUM(AK491:AM491)+AF491","v":576.4},null,null,{"$f":"ROUND(AD491/(1-VLOOKUP(AG491,Group,2,FALSE)),2)","v":576.4},{"$f":"IF(VLOOKUP(AG491,Group,5,FALSE)=\"YES\",VLOOKUP(ROUND(ROUND(AK491,1)-AK491,2),Round,2,FALSE)+VLOOKUP(AG491,Group,6,FALSE),0)","v":0},{"$f":"IF(VLOOKUP(AG491,Group,7,FALSE)=\"\",0,ROUND(AK491-0.04999,1)-AK491+AN491)","v":0},{"$f":"IF(VLOOKUP(AG491,Group,7,FALSE)=\"\",\"\",VLOOKUP(AG491,Group,7,FALSE))","v":""},null,"X"]
[null,"Accessories",null,null,"60\" x 96\"",null,"27808GR",null,null,"Large Tile Pattern Wall Panel - Gray",null,null,null,null,null,null,null,null,null,576.4,"EA",{"$f":"+Instructions!$B$3","v":"N"},null,{"$f":"+Instructions!$C$22","v":0},576.4,null,"new",576.4,0,576.4,0,null,4,576.4,null,null,576.4,0,0,"",null,"X"]
[null,null,null,null,null,null,null,null,null,null,null,null,null,null,null,null,null,null,null,null,null,null,null,null,null,null,null,null,null,null,null,null,null,null,null,null,null,null,null,null,null,"X"]
[null,"Accessories",null,null,"36\" x 96\"",null,"27809WH",null,null,"Hexagon Tile Pattern Wall Panel - White",null,null,null,null,null,null,null,null,null,456,"EA",{"$f":"+Instructions!$B$3","v":"N"},null,{"$f":"+Instructions!$C$22","v":0},456,null,"new",456,0,456,0,null,4,456,null,null,456,0,0,"",null,"X"]
[null,"Accessories",null,null,"36\" x 96\"",null,"27809GR",null,null,"Hexagon Tile Pattern Wall Panel - Gray",null,null,null,null,null,null,null,null,null,456,"EA",{"$f":"+Instructions!$B$3","v":"N"},null,{"$f":"+Instructions!$C$22","v":0},456,null,"new",456,0,456,0,null,4,456,null,null,456,0,0,"",null,"X"]
[null,"Accessories",null,null,"48\" x 96\"",null,"27810WH",null,null,"Hexagon Tile Pattern Wall Panel - White",null,null,null,null,null,null,null,null,null,{"$f":"IF(Suggested=\"Yes\",AB496,AH496)","v":504.05},"EA",{"$f":"+Instructions!$B$3","v":"N"},null,{"$f":"+Instructions!$C$22","v":0},{"$f":"ROUND($AB496*(1-X496)+0.004999,2)","v":504.05},null,"new",504.05,{"$f":"+X496","v":0},{"$f":"+Y496","v":504.05},{"$f":"(AH496-AD496)/AH496","v":0},null,4,{"$f":"SUM(AK496:AM496)+AF496","v":504.05},null,null,{"$f":"ROUND(AD496/(1-VLOOKUP(AG496,Group,2,FALSE)),2)","v":504.05},{"$f":"IF(VLOOKUP(AG496,Group,5,FALSE)=\"YES\",VLOOKUP(ROUND(ROUND(AK496,1)-AK496,2),Round,2,FALSE)+VLOOKUP(AG496,Group,6,FALSE),0)","v":0},{"$f":"IF(VLOOKUP(AG496,Group,7,FALSE)=\"\",0,ROUND(AK496-0.04999,1)-AK496+AN496)","v":0},{"$f":"IF(VLOOKUP(AG496,Group,7,FALSE)=\"\",\"\",VLOOKUP(AG496,Group,7,FALSE))","v":""},null,"X"]
[null,"Accessories",null,null,"48\" x 96\"",null,"27810GR",null,null,"Hexagon Tile Pattern Wall Panel - Gray",null,null,null,null,null,null,null,null,null,504.05,"EA",{"$f":"+Instructions!$B$3","v":"N"},null,{"$f":"+Instructions!$C$22","v":0},504.05,null,"new",504.05,0,504.05,0,null,4,504.05,null,null,504.05,0,0,"",null,"X"]
[null,"Accessories",null,null,"60\" x 96\"",null,"27811WH",null,null,"Hexagon Tile Pattern Wall Panel - White",null,null,null,null,null,null,null,null,null,{"$f":"IF(Suggested=\"Yes\",AB498,AH498)","v":576.4},"EA",{"$f":"+Instructions!$B$3","v":"N"},null,{"$f":"+Instructions!$C$22","v":0},{"$f":"ROUND($AB498*(1-X498)+0.004999,2)","v":576.4},null,"new",576.4,{"$f":"+X498","v":0},{"$f":"+Y498","v":576.4},{"$f":"(AH498-AD498)/AH498","v":0},null,4,{"$f":"SUM(AK498:AM498)+AF498","v":576.4},null,null,{"$f":"ROUND(AD498/(1-VLOOKUP(AG498,Group,2,FALSE)),2)","v":576.4},{"$f":"IF(VLOOKUP(AG498,Group,5,FALSE)=\"YES\",VLOOKUP(ROUND(ROUND(AK498,1)-AK498,2),Round,2,FALSE)+VLOOKUP(AG498,Group,6,FALSE),0)","v":0},{"$f":"IF(VLOOKUP(AG498,Group,7,FALSE)=\"\",0,ROUND(AK498-0.04999,1)-AK498+AN498)","v":0},{"$f":"IF(VLOOKUP(AG498,Group,7,FALSE)=\"\",\"\",VLOOKUP(AG498,Group,7,FALSE))","v":""},null,"X"]
[null,"Accessories",null,null,"60\" x 96\"",null,"27811GR",null,null,"Hexagon Tile Pattern Wall Panel - Gray",null,null,null,null,null,null,null,null,null,{"$f":"IF(Suggested=\"Yes\",AB499,AH499)","v":576.4},"EA",{"$f":"+Instructions!$B$3","v":"N"},null,{"$f":"+Instructions!$C$22","v":0},{"$f":"ROUND($AB499*(1-X499)+0.004999,2)","v":576.4},null,"new",576.4,{"$f":"+X499","v":0},{"$f":"+Y499","v":576.4},{"$f":"(AH499-AD499)/AH499","v":0},null,4,{"$f":"SUM(AK499:AM499)+AF499","v":576.4},null,null,{"$f":"ROUND(AD499/(1-VLOOKUP(AG499,Group,2,FALSE)),2)","v":576.4},{"$f":"IF(VLOOKUP(AG499,Group,5,FALSE)=\"YES\",VLOOKUP(ROUND(ROUND(AK499,1)-AK499,2),Round,2,FALSE)+VLOOKUP(AG499,Group,6,FALSE),0)","v":0},{"$f":"IF(VLOOKUP(AG499,Group,7,FALSE)=\"\",0,ROUND(AK499-0.04999,1)-AK499+AN499)","v":0},{"$f":"IF(VLOOKUP(AG499,Group,7,FALSE)=\"\",\"\",VLOOKUP(AG499,Group,7,FALSE))","v":""},null,"X"]
[null,null,null,null,null,null,null,null,null,null,null,null,null,null,null,null,null,null,null,null,null,null,null,null,null,null,null,null,null,null,null,null,null,null,null,null,null,null,null,null,null,"X"]
[null,null,null,"Velena Wall Panels - Trims (A La Carte)",null,null,null,null,null,null,null,null,null,null,null,null,null,null,null,null,null,null,null,null,null,null,null,null,null,null,null,null,null,null,null,null,null,null,null,null,null,"X"]
[null,null,null,null,null,null,null,null,null,null,null,null,null,null,null,null,null,null,null,null,null,null,null,null,null,null,null,null,null,null,null,null,null,null,null,null,null,null,null,null,null,"X"]
[null,"Accessories",null,null,"96\" Long",null,27812,null,null,"Internal Corner - Satin Silver (Aluminum)",null,null,null,null,null,null,null,null,null,{"$f":"IF(Suggested=\"Yes\",AB503,AH503)","v":26.3},"EA",{"$f":"+Instructions!$B$3","v":"N"},null,{"$f":"+Instructions!$C$22","v":0},{"$f":"ROUND($AB503*(1-X503)+0.004999,2)","v":26.3},null,"new",26.3,{"$f":"+X503","v":0},{"$f":"+Y503","v":26.3},{"$f":"(AH503-AD503)/AH503","v":0},null,4,{"$f":"SUM(AK503:AM503)+AF503","v":26.3},null,null,{"$f":"ROUND(AD503/(1-VLOOKUP(AG503,Group,2,FALSE)),2)","v":26.3},{"$f":"IF(VLOOKUP(AG503,Group,5,FALSE)=\"YES\",VLOOKUP(ROUND(ROUND(AK503,1)-AK503,2),Round,2,FALSE)+VLOOKUP(AG503,Group,6,FALSE),0)","v":0},{"$f":"IF(VLOOKUP(AG503,Group,7,FALSE)=\"\",0,ROUND(AK503-0.04999,1)-AK503+AN503)","v":0},{"$f":"IF(VLOOKUP(AG503,Group,7,FALSE)=\"\",\"\",VLOOKUP(AG503,Group,7,FALSE))","v":""},null,"X"]
[null,"Accessories",null,null,"96\" Long",null,27813,null,null,"H-Section - Satin Silver (Aluminum)",null,null,null,null,null,null,null,null,null,17.350000000000001,"EA",{"$f":"+Instructions!$B$3","v":"N"},null,{"$f":"+Instructions!$C$22","v":0},17.350000000000001,null,"new",17.350000000000001,0,17.350000000000001,0,null,4,17.350000000000001,null,null,17.350000000000001,0,0,"",null,"X"]
[null,"Accessories",null,null,"96\" Long",null,27814,null,null,"End Cap - Satin Silver (Aluminum)",null,null,null,null,null,null,null,null,null,{"$f":"IF(Suggested=\"Yes\",AB505,AH505)","v":12.45},"EA",{"$f":"+Instructions!$B$3","v":"N"},null,{"$f":"+Instructions!$C$22","v":0},{"$f":"ROUND($AB505*(1-X505)+0.004999,2)","v":12.45},null,"new",12.45,{"$f":"+X505","v":0},{"$f":"+Y505","v":12.45},{"$f":"(AH505-AD505)/AH505","v":0},null,4,{"$f":"SUM(AK505:AM505)+AF505","v":12.45},null,null,{"$f":"ROUND(AD505/(1-VLOOKUP(AG505,Group,2,FALSE)),2)","v":12.45},{"$f":"IF(VLOOKUP(AG505,Group,5,FALSE)=\"YES\",VLOOKUP(ROUND(ROUND(AK505,1)-AK505,2),Round,2,FALSE)+VLOOKUP(AG505,Group,6,FALSE),0)","v":0},{"$f":"IF(VLOOKUP(AG505,Group,7,FALSE)=\"\",0,ROUND(AK505-0.04999,1)-AK505+AN505)","v":0},{"$f":"IF(VLOOKUP(AG505,Group,7,FALSE)=\"\",\"\",VLOOKUP(AG505,Group,7,FALSE))","v":""},null,"X"]
[null,"Accessories",null,null,"96\" Long",null,27824,null,null,"External Corner - Satin Silver (Aluminum)",null,null,null,null,null,null,null,null,null,{"$f":"IF(Suggested=\"Yes\",AB506,AH506)","v":17.350000000000001},"EA",{"$f":"+Instructions!$B$3","v":"N"},null,{"$f":"+Instructions!$C$22","v":0},{"$f":"ROUND($AB506*(1-X506)+0.004999,2)","v":17.350000000000001},null,"new",17.350000000000001,{"$f":"+X506","v":0},{"$f":"+Y506","v":17.350000000000001},{"$f":"(AH506-AD506)/AH506","v":0},null,4,{"$f":"SUM(AK506:AM506)+AF506","v":17.350000000000001},null,null,{"$f":"ROUND(AD506/(1-VLOOKUP(AG506,Group,2,FALSE)),2)","v":17.350000000000001},{"$f":"IF(VLOOKUP(AG506,Group,5,FALSE)=\"YES\",VLOOKUP(ROUND(ROUND(AK506,1)-AK506,2),Round,2,FALSE)+VLOOKUP(AG506,Group,6,FALSE),0)","v":0},{"$f":"IF(VLOOKUP(AG506,Group,7,FALSE)=\"\",0,ROUND(AK506-0.04999,1)-AK506+AN506)","v":0},{"$f":"IF(VLOOKUP(AG506,Group,7,FALSE)=\"\",\"\",VLOOKUP(AG506,Group,7,FALSE))","v":""},null,"X"]
[null,null,null,null,null,null,null,null,null,null,null,null,null,null,null,null,null,null,null,null,null,null,null,null,null,null,null,null,null,null,null,null,null,null,null,null,null,null,null,null,null,"X"]
[]
[null,null,"This price list is available electronically on an Excel spreadsheet at www.conestogatile.com/pricelists.",null,null,null,null,null,null,null,null,null,null,null,null,null,null,null,null,null,null,null,null,null,null,null,null,null,null,null,null,null,null,null,null,null,null,null,null,null,null,"X"]
[null,null,null,null,null,null,null,null,null,null,null,null,null,null,null,null,null,null,null,null,null,null,null,null,null,null,null,null,null,null,null,null,null,null,null,null,null,null,null,null,null,"X"]
[null,null,"The spreadsheet has many special features to assist you.  Apply your discount to generate your net costs for your purchasing department.  Apply your Premium gross margin percentage or custom prices to generate your own custom price list for your showroom.  Print out individual price list for each series that can be attached to the back of your sample boards for easy reference.",null,null,null,null,null,null,null,null,null,null,null,null,null,null,null,null,null,null,null,null,null,null,null,null,null,null,null,null,null,null,null,null,null,null,null,null,null,null,"X"]
[null,null,null,null,null,null,null,null,null,null,null,null,null,null,null,null,null,null,null,null,null,null,null,null,null,null,null,null,null,null,null,null,null,null,null,null,null,null,null,null,null,"X"]
["X","X","X","X","X","X","X","X","X",null,"X","X","X","X","X","X","X","X","X","X","X","X","X","X","X","X","X","X","X","X","X","X","X","X","X","X","X","X","X","X","X","X"]
[]
[null,null,null,"$.05 Round Matrix"]
[null,null,null,-0.04,0.01]
[null,null,null,-0.03,0.02]
[null,null,null,-0.02,0.03]
[null,null,null,-0.01,-0.01]
[null,null,null,0,0]
[null,null,null,0.01,1.0000000000005116E-2]
[null,null,null,0.02,2.0000000000003126E-2]
[null,null,null,0.03,3.0000000000001137E-2]
[null,null,null,0.04,-0.01]
[null,null,null,0.05,0]

{"sheet":"Websites","index":3,"n_rows":8,"n_cols":2,"rows_kept":8,"cut":false,"hidden":false,"merged":[]}
["Easy Access Website links"]
[]
["ConestogaTile's Website","www.conestogatile.com"]
[]
["Manufacturer's Home Page","http://arcfirst.net/"]
[]
[]
["Product","Direct Website Link"]

{"sheet":"Changes","index":4,"n_rows":152,"n_cols":3,"rows_kept":152,"cut":false,"hidden":false,"merged":[[142,1,142,2]]}
["Date"]
["Announced","Series","Description"]
[]
["New Products"]
["2011-08-17","Wave Shower Pan w/Integrated Clamp"]
["2011-08-17","Wave Shower Accessories"]
["2012-05-08","Tuff-Form Installation Materials","Standard Waterproofing Kits now available with Stainless Steel Grate (ARC565), Satin Brass Grate (ARC565SB) & Oil-Rubbed Bronze Grate (ARC565ORB). "]
["2012-05-08","Tuff-Form Installation Materials","Premium Waterproofing Kits now available, also with choice of Stainless Steel Grate (ARC566), Satin Brass Grate (ARC566SB) & Oil-Rubbed Bronze Grate (ARC566ORB)."]
["2013-09-05","TriForm Shower Bases & Linear Drains"]
["2015-08-19","TrueDEK Shower Foundation","TB5936-TR-S, 59\" x 36\" Tub Replacement Pan (Center drain hole located at the end)."]
["2016-03-01","TrueDEK Classic Foundation","TB5959-S, 59\" x 59\" Classic Base"]
["2016-03-01","TrueDEK Waterproofing Installation Materials:","WP1050-STD Standard Waterproofing Kit"]
[null," ","WP1000-PRE Premium Waterproofing Kit"]
[null," ","WP1090-PRO Pro Waterproofing Kit"]
[null," ","(The above Waterproofing Kits do not include the Drain Assemblies w/Grates)"]
[null," ","WP2001-TNK Tank/10 Waterproofing Compound 1 Gallon size"]
[null," ","WP2002-TNK Tank/10 Waterproofing Compound 2 Gallon size"]
[null," ","WP3425-JRT, 5\" x 25' Roll Joint Reinforcement Tape"]
[null," ","WP3450-JRT 5\" x 50' Roll Joint Reinforcement Tape"]
[null," ","WP3490-JRT, 5\" x 490' Roll Joint Reinforcement Tape"]
[null," ","WP3101-INT Internal Corner & WP3201-EXT External Corner (sold by the single piece)"]
[null," ","WP3112-INT Internal Corner and WP3212-EXT External Corner (sold 12 Pieces/SET)"]
["2016-03-01","Mullen Shower Accessories","MB0060-TLA Tiling Adaptor Kit (Fits 60\" Alcove Bases)"]
["2016-03-01","Caregiver Doors","CD2021-HG Door Handle, Hinged (for use with Mullen Base)"]
[null," ","CD2022-FX Door Handle, Fixed (for use with Mullen Base) "]
["2016-03-01","Velena Devote Shower Seats","Shower Seats with sleek appeal for modern spa-style showers"]
["2016-03-01","Velena Grab Bars","Grab Bars with modern, elegant and slim styling"]
["2016-05-31","TrueDEK Installation Materials","CD1290-CH Drain Assembly w/ Chrome Grate."]
["2017-04-03","TrueDEK Installation Materials","CD1250-BS Drain Assembly w/ Brushed Stainless Steel Pinhole Pattern Grate, CD1240-ORB Drain Assembly w/ Oil-Rubbed Bronze Pinhole Pattern Grate and CD1280-CH Drain Assembly w/ Polished Stainless Steel Pinhole Pattern Grate."]
["2017-04-03","MaxBench Shower Bench with Adjustable Height","BB1000-WH 25-1/4\" wide seat Fold-up shower seat."]
["2017-08-14","TrueDEK Installation Materials","CD1220-BS Drain Assembly w/ Brushed Stainless Steel Grid Pattern Grate, CD1222-ORB Drain Assembly w/ Oil-Rubbed Bronze Grid Pattern Grate and CD1221-CH Drain Assembly w/ Polished Stainless Steel Grid Pattern Grate."]
["2017-08-14","TrueDEK/TriForm Linear Shower Foundations","TrueDEK Shuffle Linear Drain Shower Receptor Bases added."]
["2018-02-12","TrueDEK Waterproofing/Tuff-Form Installation Materials","5 Gallon WP2005-TNK Tank/10 Waterproofing Compound now available."]
["2018-04-06","ShuffleDEK Shower Bases","Left and Right Hand Stainless Steel Trim pieces added."]
["2018-04-06","TrueDEK Classic Shower Bases","TB1616-S, 16\" x 16\" Classic Base added."]
["2018-04-06","TrueDEK Waterproofing/Installation Materials","The following items have been added to the WP1090-PRO Pro Waterproofing Kit:  32 #9 x 2\" Premium Torx-drive Coated Screws, 1 Torx Bit Driver, 6 10 oz. tubes of Tank/10 Polyurethane Construction Adhesive, 1 10 oz. tube of Painter's Acrylic Latex Caulk, 2 Pairs of Nitrile Gloves, 1 Paint Roller Handle, 2 Paint Roller Covers and 1 Paint Brush.  (These updated kits will be available once our inventory of the old kits is sold.  The Net Price for the new updated kits will be $234.80 Each.)"]
["2018-04-06","TrueDEK Waterproofing/Installation Materials","Now available individually by the full carton:  WP2112-TNK Tank/10 Polyurethane Construction Adhesive, WP4010-PAC Painter's Acrylic Latex Caulk and WP4011-SCR #9 x 2\" Premium Torx-drive Coated Screws."]
["2018-11-20","TrueDEK Classic Shower Bases","TB4812-PXT 48\" x 12\" TruDEK Pitch Extension added."]
["2019-03-12","FastDEK Shower Bases","No Tile bases with finished anti-slip texture finish.  Available in colors Black, Gray and White."]
["2019-03-12","TrueDEK Classic Shower Bases","TB6535-S 65\" x 35-1/2\" Shower Base added."]
["2019-03-12","TrueDEK Linear Shower Bases","TB3535-L 35-1/2\" x 35-1/2\" and TB3939-L 39-3/8\" x 39-3/8\" TrueDEK Linear Bases are available again.  (ARC had discontinued them but reconsidered and decided to continue offering them.)"]
["2019-03-12","TrueDEK Waterproofing/Tuff-Form Installation Materials","WP2003-TNK 3-1/2 Gallon size of Tank/10 Waterproofing Compound and WP5000-MXV Mixer Valve Gasket added.  Tank/10 Polyurethane Construction Adhesive now available in single 10 oz. tube as well as by the carton of 12 each."]
["2019-08-14","TrueDEK Classic Drains","The Classic Drains in the Grid, Pinhole & Swirl patterns are now available in the Matte Black finish."]
["2020-04-02","FastDEK Shower Bases","Five No Tile Shower Base sizes added and a color Grey Shower Base option and is available in all sizes."]
["2020-04-02","Heavy-Duty Grab Bars & Supports","Gray Straight Heavy-Duty Comfort Grip Grab Bars that were previously discontinued are available again."]
["2020-04-02","ShuffleDEK Linear Formers","Drain Covers that get filled in with tile added in various lengths."]
["2020-04-02","TrueDEK Waterproofing/Tuff-Form Installation Materials","WP2000-TNK 1/2 Gallon size of Tank/10 Waterproofing Compound added."]
["2020-04-02","Tuff Form8 Formers","Shower Bases with the added benefit of a rotating drain plate."]
["2021-03-16","TrueDEK Linear Formers & Linear Drain Covers","#21210, 59\" x 35-1/2\" TrueDEK Linear Base added.  #21211 Solid Drain Grate and #21228 Slotted Drain Grate added and are only compatible with the 21210 59\" x 35-1/2\" TrueDEK Linear Base."]
["2021-11-09","FastDEK Linear Shower Bases","Linear No Tile bases with finished anti-slip texture finish added and are available in color white only in 3 sizes."]
["2021-11-09","FastNICHE Shower Niches","No Tile, quick and easy to install, FastNICHE shower niches are constructed from sheet-molded compound plastic (SMC) for strength.  All sizes are available in a glossy white finish with the FastNICHE Full also offered in matte black."]
["2021-11-09","Glass Shower Screens","3 glass shower screens added with a matte black finish on the frame/border pieces. "]
["2021-11-09","Glass Shower Screens & Deflector Panels","Available in 8 different Screen widths."]
["2021-11-09","Heavy-Duty Grab Bars & Supports","#01820-BU 26-3/4\" height Fold-up Blue Support Bar with Fixed Leg added."]
["2021-11-09","Origins Wall Panels","No Tile Wall panels that are made of structural WPS plywood substrate."]
["2021-11-09","TrueBOARD Tileable Wall Kit","#27738 3' x 5' x 1/2\" Tileable backer board kit and #WP1080-TRU installation kit."]
["2021-11-09","TrueDEK Classic Shower Bases","#21035 60\" x 36\" Tub Replacement Pan (Center drain hole located on end) Shower Base added."]
["2021-11-09","TrueDEK Linear Shower Bases","#21210 59\" x 35-1/2\" TrueDEK Linear Base (Tub Replacement Size) added.  #21211 Linear Drain Assy. w/ Brushed Stainless Steel Solid Cover and #21228 Linear Drain Assy. w/ Brushed Stainless Steel Slotted Cover added and are only compatible with the 21210 59\" x 35-1/2\" TrueDEK Linear Base."]
["2021-11-09","Velena Series Seats","Available with or without an adjustable leg and with Black or White pad."]
["2022-02-25","FastDEK Linear Shower Bases","#21240 72\" x 48\" Ultimate Linear Shower Base added.  Spare Stainless Steel Drain Covers added to line."]
["2022-02-25","TrueDEK Classic Shower Bases","#21053 72\" x 48\" Shower Base added."]
["2022-02-25","TrueDEK Linear Drains","Linear Drain Assembly Solid and Slotted color options Matte Black and Oil-Rubbed Bronze added."]
["2022-02-25","TrueDEK Shower Bases","TB6012-PXT 12\" x 60\" TruePITCH Extension.  (Replacing the #TB4812-PXT 48\" x 12\" TruePITCH Extension.)"]
["2022-09-27","Rugao Grab Bars","Available in 12\", 18\" or 24\" lengths and in colors Dark Grey or White."]
["2022-09-27","Velena Bathroom Accessories","Available in 8 different options, some available in colors Black or White."]
["2023-07-10","TrueDEK Classic Drains","CD1260 Classic Tile-In Drain Assembly w/ Stainless Steel Drain Cover.  Compatible with all TrueDEK Classic and TrueDEK Classic8 shower bases."]
["2023-08-29","FastDEK Shower Bases","12839WH 59\" x 35-1/2\" and 11894 78-3/4\" x 39-3/8\" White FastDEK Bases added.  FastDEK Ramp and Ramp Corner added as well as the FB2000-IK FastDEK Installation Kit."]
["2023-08-29","FastDEK Standalone Shower Kits","Standalone shower complete with base, wall panels, glass screen and door."]
["2023-08-29","TrueDEK Classic Drains","Classic Drains in the Pinhole & Swirl patterns are now available in the Satin Brass finish."]
["2023-08-29","Velena Wall Panels","No Tile Wall panels constructed from durable sheet-molded compound plastic (SMC), the same rigid material as the TrueDEK Classic Shower Bases.  They offer high mechanical strength and an extremely durable watertight finish, with the panels joined using aluminum trims and sealed with silicone caulk."]
[]
[" "]
[]
["Discontinued Products"]
["2012-05-08","Tuff-Form Installation Materials","LB00113 Standard Mapei Kit"]
["2013-09-05","Caregiver Doors","15290 Standard Alcove Caregiver Door for Mullen Pan"]
["2015-01-01","Tuff-Form Installation Materials","LB00121 Mapegum 55 lb size."]
["2015-01-01","Mullen Shower Accessories","26261, 26262, 26263 and 26264 Alcove Adaption Kits for Mullen Shower Pans."]
["2015-01-01","DeWalt Concrete Saw","ARC560 DeWalt Masonry Saw Kit and ARC561 DeWalt Masonry Replacement Blade."]
["2015-01-01","Caregiver Doors","#'s 91112N (54-1/2\" to 55-1/2\" width), 91179N (50-3/4\" to 51-3/4\" width) and 91181N (58-1/2\" to 59-1/2\" width) Standard Alcove Caregiver Door for Tuff Form Pan."]
["2015-01-01","Deluxe Shower Seats without Backs & Arms","4070 18-1/8\" wide Standard Seat(No Pad), 04110 23\" wide Wide Seat(No Pad), 04100 18-1/8\" wide Standard U-Shaped Seat(No Pad), 04120 23\" wide Wide U-Shaped Seat(No Pad),"]
["2015-01-01","Sturdy Bathing Stools","22411 17-5/8\" wide Adjustable Height Molded Bath Seat."]
["2015-01-01","Lifetime Vanities","All Models."]
["2016-03-01","Tuff-Form Installation Materials -","ARC565 Standard Waterproofing Kit with Stainless Steel Grate"]
[null," ","ARC565 Standard Waterproofing Kit with Stainless Steel Grate"]
[null," ","ARC565SB Standard Waterproofing Kit with Satin Brass Grate"]
[null," ","ARC565ORB Standard Waterproofing Kit with Oil-Rubbed Bronze Grate"]
[null," ","ARC566 Premium Waterproofing Kit with Stainless Steel Grate"]
[null," ","ARC566SB Premium Waterproofing Kit with Satin Brass Grate"]
[null," ","ARC566ORB Premium Waterproofing Kit with Oil-Rubbed Bronze Grate"]
[null," ","ARC122 Drain Adaptor w/ Satin Brass Grate"]
[null," ","ARC124 Drain Adaptor w/ Satin Brass Grate & Drain Gasket"]
[null," ","LB00116 Mapeband Internal Corners and LB00117 Mapeband External Corners, (replaced with Corners shown in the new products section)."]
[null," ","LB00119 Mapeband Drain Outlet Gasket, (now included with the tile Drain Assemblies w/grate)."]
["2016-03-01","TriForm Linear Shower Foundations","21214 and 21216 Linear Drain Assemblies"]
["2016-03-01","Mullen Shower Pan w/Integrated Clamp","The following Corner Shower Pans:"]
[null," ","26100 42\" x 42\""]
[null," ","26101 49-7/8\" x 30-1/8\", left and right handled pans"]
[null," ","26072 49-7/8\" x 34-7/8\", left and right handled pans"]
[null," ","26102 53-7/8\" x 30-1/8\", left and right handled pans"]
[null," ","26107 53-7/8\" x 34-7/8\", left and right handled pans"]
[null," ","26104 58-1/2\" x 30-1/8\", left and right handled pans"]
["2016-03-01","Step Safely Warm Floor","All Step Safely Warm Floor products"]
["2016-03-01","Hands-Free Body Dryer","BD1000 82\" high White Hands-Free Body Dryer"]
["2016-03-01","Bendy Rails & Breathable Curtains","The following Breathable Curtains:"]
[null," ","24073 84\" x 84\""]
[null," ","24074 35-1/4\" x 78-3/4\""]
[null," ","24075 70-3/4\" x 55\""]
[null," ","24076 70-3/4\" x 70-3/4\""]
[null," ","24080 70-3/4\" x 94-1/2\""]
["2016-03-01","Deluxe Shower Seat","04570 25-7/8\" Extra-Wide Seat with No Pad"]
["2017-04-03","Mullen Shower Pan w/Integrated Clamp","All Mullen Shower Pans."]
["2017-04-03","Mullen Shower Accessories","All Mullen Shower Accessories."]
["2017-04-03","Sturdy Bathing Stools with Adjustable Height","All Sturdy Bathing Stools; BS2300-WH (old #02300) 19-5/8\" wide Shower Stool without Back, BS2310-WH (old #02310) 19-5/8\" wide Shower Stool with Back and BS2320-WS (old #05080) 19-5/8\" wide Wood Slatted Stool."]
["2017-04-03","Velena Devote Shower Seats","All Velena Devote Shower Seats."]
["2017-04-03","Adjustable Toilet Seat","BS2330-WH (old #ARC243) White Adjustable Toilet Seat."]
["2017-04-03","Velena Grab Bars","All Velena Grab Bars."]
["2018-02-12","Caregiver Doors","CD2959-WB (old #15177) 58-7/8\" to 60-1/4\" wide Caregiver Door - White w/Black Trim, CD2011-WB (old #24139) Extra-wide Compensator - White w/Black Trim, CD2023-HG (old #ARC241) Door Handle - Hinged/White and CD2024-FX (old #ARC242) Door Handle - Fixed/White."]
["2018-02-12","MaxBench Shower Bench with Adjustable Height","BB1000-WH 25-1/4\" wide seat MaxBench Fold-up Shower Seat."]
["2018-04-06","TrueDEK Waterproofing/Installation Materials","WP1050-STD Standard Waterproofing Kit and WP3490-JRT 5\" x 490' Roll of Joint Reinforcement Tape."]
["2018-11-20","TrueDEK Linear Shower Bases","TB3535-L 35-1/2\" x 35-1/2\" and TB3939-L 39-3/8\" x 39-3/8\" TrueDEK Linear Bases only."]
["2018-11-20","Heavy-Duty Grab Bars & Supports","GB1902-GR 12\" Gray, GB1907-GR 16\" Gray, GB1911-BU 18\" Blue, GB1912-GR 18\" Gray, GB1922-GR 24\" Gray, GB1932-GR 32\" Gray, GB1942-GR 36\" Gray & GB1952-GR 42\" Gray Straight Heavy-Duty Comfort Grip Grab Bars only."]
["2020-04-02","TrueDEK Waterproofing/Tuff-Form Installation Materials","WP2003-TNK 3-1/2 Gallon size of Tank/10 Waterproofing Compound and WP4011-SCR #9 x 2\" Premium Torx-drive Coated Screws."]
["2020-12-21","TrueDEK Classic Drains","CD1220-BS Classic Drain Assembly w/ Brushed Stainless Steel Grid Pattern Grate."]
["2021-03-16","TrueDEK Classic Formers","59\" x 59\" TB5959-S and 65\" x 35-1/2\" TB6535-S TrueDEK Classic Formers only."]
["2021-12-21","Deluxe Shower Seats without Back & Arms (4000 Series)","23\" wide seat 04110P w/Blue Pad and the 04210P w/Gray Pad."]
["2021-12-21","Glass Shower Screens","LB00112 39-3/8\" x 76-3/4\" Freestanding Glass Screen."]
["2021-12-21","ShuffleDEK Linear Formers","All ShuffleDEK bases, drain covers and trim."]
["2021-12-21","Transition Grab Bars","#01200-BR 12\" Brown Flat End Grab Bar and #01210-BR 18\" Brown Flat End Grab Bar. "]
["2021-12-21","TrueDEK Classic Drains","CD1221-CH Classic Drain Assembly w/ Polished Stainless Steel Grid Pattern Grate, CD1222-ORB Classic Drain Assembly w/ Oil-Rubbed Bronze Grid Pattern Grate and CD1223-BK Classic Drain Assembly w/ Matte Black Grid Pattern Grate."]
["2021-12-21","TrueDEK Classic MiniDEK Former","#21001 16\" x 16\" TrueDEK Classic MiniDEK Former."]
["2022-02-25","Heavy-Duty Grab Bars & Supports","01820-BU Blue Fold-up Support Bar with Fixed Leg only."]
["2022-02-25","TrueBOARD Tileable Wall Kit","#WP1080-TRU installation kit.  (ARC is recommending the WP1000-PRE Premium Waterproofing Kit or the WP1090-PRO Pro Waterproofing Kit for installation.)"]
["2022-02-25","TrueDEK Shower Bases","#TB4812-PXT 48\" x 12\" TruePITCH Extension.  (Replaced with the #TB6012-PXT 12\" x 60\" TruePITCH Extension.)"]
["2023-08-29","Origins Wall Panels","Entire offering."]
["2023-08-29","TrueBOARD Tileable Wall Kit","Entire offering."]
["2023-08-29","Velena Bathroom Accessories","Entire offering."]
[]
[]
[]
["Changes"]
["2012-05-08","Fusion Shower Bases now called Tuff-Form Shower Bases.  Wave Shower Pan now called Mullen Shower Pan."]
["2016-03-01","AKW is now known as \"ARC\".  They have renamed the Tuff-Form Shower Bases and are now known as TrueDEK Classic Foundations.  The TriForm Shower Bases are now know as TrueDEK Linear Foundations.  Also, Mapegum has been replaced with Tank/10 Waterproofing Compound.  All their item numbers have changed as well for their products.  On our new price list we will reference the old number, if applicable, as well as new numbers.  Drain Assemblies w/Grates are no longer included in the new Waterproofing Kits and must be purchased separately."]
["2017-04-03","TrueDEK Installation Materials","WP3401-DRN (old #LB00119) Drain Gasket available for individual sale again."]
["2018-04-06","ShuffleDEK Shower Bases","Item codes for the 3 ShuffleDEK Shower Bases have changed and also the side the drain is located on for the rectangular bases has changed as well:  TB4747-LS is now TB4747SD, TB3547-LS is now TB3547-SD (long side drain) and the TB4735-LS is now TB4735-SD (short side drain). "]
["2020-04-02","General Information","Accessibility Resource Center, Inc. has recently been acquired by AKW Holdings.  AKW has been ARC’s main source of products since their founding in 2010.  One of the most notable benefits of this merger will be the lowering of prices across the product range.  Their new name is AKW Resource Centre, Inc., but they will continue to call themselves ARC, Inc..  As a result of this merger several of ARC's part numbers will be reverting back to their original part numbers.  The new price list will reflect these changes as well as reference the previous part numbers used."]
["2020-04-02","Frameless Glass Shower Screens","Now known as Level Best Shower Screens."]
["2020-04-02","ShuffleDEK Shower Bases","Now known as ShuffleDEK Linear Formers."]
["2020-04-02","TrueDEK Classic Foundations","Now known as TrueDEK Classic Formers."]
["2020-04-02","TrueDEK Linear Shower Bases","Now known as TrueDEK Linear Formers & Linear Drain Covers."]
["2021-03-16","TrueDEK Classic Formers","The TB5936-TR-S 59\" x 36\" Tub Replacement Pan (Center drain hole located on end) has been replaced with #21035 60\" x 36\" Tub Replacement Pan (Center drain hole located on end).  It is now light blue in color and has the ribbed backing."]
["2023-08-29","Glass Shower Screens","Item codes for the 4 Screens with Polished Chrome finished frame/border have changed.  LB00105 is now LB00215, LB00106 is now LB00216, LB00107 is LB00217 and LB00108 is now LB00218."]